Body_Code,Body_Name,Service,Posting Date,GL Code,GL Code Desc,Doc Number,Doc Net Amount,Supplier Name
http://statistics.data.gov.uk/id/local-authority/38,Oxfordshire County Council,Care Homes - Over 65 Physical Sypport,12/04/2022,5686,,3111162114,"-63,191.78",Orders of St John
http://statistics.data.gov.uk/id/local-authority/38,Oxfordshire County Council,UTILITIES,28/04/2022,3950,Non System - Gas,2200981775,"-51,371.24",Total Gas & Power Ltd
http://statistics.data.gov.uk/id/local-authority/38,Oxfordshire County Council,High Cost INMSS Placements,07/04/2022,4861,Hired and Contracted Services,2200977255,"-33,419.00",ST MARYS WRESTWOOD EDUCATIONAL
http://statistics.data.gov.uk/id/local-authority/38,Oxfordshire County Council,CHC Fast Track - Care Homes - Over 65,12/04/2022,5687,,3111161294,"-32,785.73",Oxford Beaumont
http://statistics.data.gov.uk/id/local-authority/38,Oxfordshire County Council,Continuing Care - Support at Home - U65,14/04/2022,5691,,3111163529,"-30,137.00",Cherry Care Services
http://statistics.data.gov.uk/id/local-authority/38,Oxfordshire County Council,COMM DRAWDOWN FUNDNG,27/04/2022,8511,Legal Fees & expenses,2200980967,"-21,543.07",Aspinall Verdi LTD
http://statistics.data.gov.uk/id/local-authority/38,Oxfordshire County Council,Covid 19 CHC,12/04/2022,5687,,3111159833,"-20,864.29",Freeland House
http://statistics.data.gov.uk/id/local-authority/38,Oxfordshire County Council,Care Homes - Under 65 Autism / Abated,12/04/2022,5686,,3111159579,"-17,588.34",Accomplish
http://statistics.data.gov.uk/id/local-authority/38,Oxfordshire County Council,High Cost INMSS Placements,21/04/2022,5537,Payments to Other Establishments,2200979743,"-15,834.00",BARNARDO SERVICES LTD
http://statistics.data.gov.uk/id/local-authority/38,Oxfordshire County Council,Care Homes - Over 65 Physical Sypport,12/04/2022,5687,,3111160101,"-15,450.00",Heathfield House Nursing Home
http://statistics.data.gov.uk/id/local-authority/38,Oxfordshire County Council,Support at Home U65 Learning Disability,12/04/2022,5687,,3111160177,"-14,457.15",Huntercombe Hall Ltd
http://statistics.data.gov.uk/id/local-authority/38,Oxfordshire County Council,PUBLIC HEALTH GENERA,14/04/2022,5186,Licences,2200979032,"-14,253.34",Pinnacle Health Partnership LLP
http://statistics.data.gov.uk/id/local-authority/38,Oxfordshire County Council,Support at Home 65+ Physical Support,26/04/2022,5699,,3111166603,"-13,728.94",Care Hearted Ltd
http://statistics.data.gov.uk/id/local-authority/38,Oxfordshire County Council,Continuing Care - Care Homes - 65+,12/04/2022,5687,,3111159405,"-13,667.84",ACER HEALTHCARE LTD
http://statistics.data.gov.uk/id/local-authority/38,Oxfordshire County Council,Care Homes - Over 65 Physical Sypport,12/04/2022,5686,,3111162594,"-13,105.69",Orders of St John
http://statistics.data.gov.uk/id/local-authority/38,Oxfordshire County Council,Covid 19 CHC,12/04/2022,5687,,3111160869,"-11,992.86",Green Gates NH (BUPA)
http://statistics.data.gov.uk/id/local-authority/38,Oxfordshire County Council,Care Homes - Under 65 Leaning Disability,12/04/2022,5686,,3111161605,"-10,665.32",Stepping Stones (Glos)
http://statistics.data.gov.uk/id/local-authority/38,Oxfordshire County Council,Continuing Care - Support at Home - U65,14/04/2022,5691,,3111163549,"-10,350.00",XPERIENCE RECRUITMENT LIMITED
http://statistics.data.gov.uk/id/local-authority/38,Oxfordshire County Council,Funded Nursing Care  - Over 65,12/04/2022,5692,,3111159900,"-9,782.00",Freeland House
http://statistics.data.gov.uk/id/local-authority/38,Oxfordshire County Council,Care Homes - Over 65 Physical Sypport,12/04/2022,5686,,3111162339,"-9,523.00",Orders of St John
http://statistics.data.gov.uk/id/local-authority/38,Oxfordshire County Council,Continuing Care - Care Homes - 65+,12/04/2022,5687,,3111161364,"-9,502.85",Richmond Letcombe Regis
http://statistics.data.gov.uk/id/local-authority/38,Oxfordshire County Council,Support at Home U65 Learning Disability,12/04/2022,5688,,3111158774,"-9,204.43",PRECIOUS HOMES LTD
http://statistics.data.gov.uk/id/local-authority/38,Oxfordshire County Council,Continuing Care - Care Homes - 65+,12/04/2022,5687,,3111161971,"-8,046.43",MARIA MALLABAND CARE GROUP
http://statistics.data.gov.uk/id/local-authority/38,Oxfordshire County Council,CHC Fast Track - Care Homes - Over 65,12/04/2022,5687,,3111161395,"-7,971.43",Rushcourt Nursing Home
http://statistics.data.gov.uk/id/local-authority/38,Oxfordshire County Council,Support at Home 65+ Physical Support,12/04/2022,5685,B*Cycle tracks,3111161992,"-7,597.02",MARIA MALLABAND CARE GROUP
http://statistics.data.gov.uk/id/local-authority/38,Oxfordshire County Council,Support at Home 65+ Physical Support,12/04/2022,5686,,3111160616,"-7,347.15",Enstone House
http://statistics.data.gov.uk/id/local-authority/38,Oxfordshire County Council,Care Homes - Over 65 Mental Health,12/04/2022,5687,,3111161755,"-7,154.80",Four Seasons (Headington) Ltd
http://statistics.data.gov.uk/id/local-authority/38,Oxfordshire County Council,Delegated Health Tasks  - Under 65,14/04/2022,5691,,3111163464,"-7,115.20",Countywide Caring Limited
http://statistics.data.gov.uk/id/local-authority/38,Oxfordshire County Council,TREE MAINT OPS,05/04/2022,5526,Payments to Private Contractors,2200975631,"-7,055.00",Chevron Traffic Management
http://statistics.data.gov.uk/id/local-authority/38,Oxfordshire County Council,Care Homes - Over 65 Physical Sypport,12/04/2022,5687,,3111161863,"-6,600.00",The Triangle Nursing Home
http://statistics.data.gov.uk/id/local-authority/38,Oxfordshire County Council,WHEATLEY SPORTS CNTR,27/04/2022,5500,Payments to Other Local Authorities,2200981503,"-6,144.27",South Oxfordshire District Council
http://statistics.data.gov.uk/id/local-authority/38,Oxfordshire County Council,WHEATLEY SPORTS CNTR,29/04/2022,5500,Payments to Other Local Authorities,2200982129,"-6,144.27",South Oxfordshire District Council
http://statistics.data.gov.uk/id/local-authority/38,Oxfordshire County Council,Care Homes - Over 65 Physical Sypport,12/04/2022,5686,,3111160515,"-6,133.18",CUMNOR HILL HOUSE
http://statistics.data.gov.uk/id/local-authority/38,Oxfordshire County Council,High Cost INMSS Placements,13/04/2022,5537,Payments to Other Establishments,2200978842,"-6,037.66",Wychwood School
http://statistics.data.gov.uk/id/local-authority/38,Oxfordshire County Council,Funded Nursing Care  - Over 65,12/04/2022,5692,,3111160601,"-5,949.60",SANCTUARY CARE LTD
http://statistics.data.gov.uk/id/local-authority/38,Oxfordshire County Council,Continuing Care - Care Homes - 65+,12/04/2022,5687,,3111159395,"-5,757.99",ACER HEALTHCARE LTD
http://statistics.data.gov.uk/id/local-authority/38,Oxfordshire County Council,Support at Home 65+ Memory & Cognition,12/04/2022,5686,,3111160297,"-5,750.00",Mon Choisy
http://statistics.data.gov.uk/id/local-authority/38,Oxfordshire County Council,Care Homes - Over 65 Physical Sypport,12/04/2022,5687,,3111160378,"-5,545.00",CHURCHFIELDS CARE HOME
http://statistics.data.gov.uk/id/local-authority/38,Oxfordshire County Council,CHC Fast Track - Care Homes - Over 65,12/04/2022,5687,,3111161989,"-5,342.86",MARIA MALLABAND CARE GROUP
http://statistics.data.gov.uk/id/local-authority/38,Oxfordshire County Council,Support at Home 65+ Physical Support,12/04/2022,5687,,3111160225,"-5,259.37",Mill House Nursing Home
http://statistics.data.gov.uk/id/local-authority/38,Oxfordshire County Council,Care Homes - Over 65 Memory & Cognition,12/04/2022,5687,,3111161233,"-5,178.57",Middletown Grange Care Home
http://statistics.data.gov.uk/id/local-authority/38,Oxfordshire County Council,Funded Nursing Care  - Over 65,12/04/2022,5692,,3111159972,"-5,118.80",HEALTHCARE HOMES (SPRING) LIMITED
http://statistics.data.gov.uk/id/local-authority/38,Oxfordshire County Council,Care Homes - Over 65 Physical Sypport,12/04/2022,5687,,3111160070,"-4,797.54",Heathfield House Nursing Home
http://statistics.data.gov.uk/id/local-authority/38,Oxfordshire County Council,Support at Home 65+ Physical Support,12/04/2022,5687,,3111160873,"-4,600.00",Green Gates NH (BUPA)
http://statistics.data.gov.uk/id/local-authority/38,Oxfordshire County Council,Covid 19 CHC,12/04/2022,5687,,3111159960,"-4,557.14",METHODIST HOMES
http://statistics.data.gov.uk/id/local-authority/38,Oxfordshire County Council,LEGAL BUDGET,21/04/2022,5251,Legal Costs,2200979746,"-4,510.00",WILLIS PALMER
http://statistics.data.gov.uk/id/local-authority/38,Oxfordshire County Council,Support at Home 65+ Physical Support,26/04/2022,5696,,3111166754,"-4,483.87",All Care GB Ltd
http://statistics.data.gov.uk/id/local-authority/38,Oxfordshire County Council,Support at Home 65+ Memory & Cognition,12/04/2022,5685,B*Cycle tracks,3111160712,"-4,449.60",SANCTUARY CARE LTD
http://statistics.data.gov.uk/id/local-authority/38,Oxfordshire County Council,Continuing Care - Care Homes - 65+,12/04/2022,5687,,3111161498,"-4,312.76",St Andrews Residential Care Home L
http://statistics.data.gov.uk/id/local-authority/38,Oxfordshire County Council,CHC Fast Track - Care Homes - Over 65,12/04/2022,5687,,3111161590,"-4,290.00",St Lukes Nursing Home (Oxford)
http://statistics.data.gov.uk/id/local-authority/38,Oxfordshire County Council,Care Homes - Over 65 Leaning Disability,12/04/2022,5687,,3111159913,"-4,285.71",METHODIST HOMES
http://statistics.data.gov.uk/id/local-authority/38,Oxfordshire County Council,Care Homes - Over 65 Memory & Cognition,12/04/2022,5686,,3111161546,"-4,091.43",St Johns Residential Home
http://statistics.data.gov.uk/id/local-authority/38,Oxfordshire County Council,CHC Fast Track - Care Homes - Over 65,12/04/2022,5687,,3111160825,"-4,007.14",GCH (St Katherines) Ltd
http://statistics.data.gov.uk/id/local-authority/38,Oxfordshire County Council,Care Homes - Over 65 Physical Sypport,12/04/2022,5687,,3111160244,"-3,934.29",Mill House Nursing Home
http://statistics.data.gov.uk/id/local-authority/38,Oxfordshire County Council,Support at Home U65 Learning Disability,12/04/2022,5688,,3111159692,"-3,910.00",You and Me Supported Living
http://statistics.data.gov.uk/id/local-authority/38,Oxfordshire County Council,Support at Home U65 Learning Disability,12/04/2022,5688,,3111158837,"-3,850.00",You and Me Supported Living
http://statistics.data.gov.uk/id/local-authority/38,Oxfordshire County Council,Care Homes - Over 65 Leaning Disability,12/04/2022,5686,,3111159593,"-3,848.76",ALBANY FARM CARE (OXFORD) LTD
http://statistics.data.gov.uk/id/local-authority/38,Oxfordshire County Council,Funded Nursing Care  - Over 65,12/04/2022,5692,,3111162132,"-3,698.40",Orders of St John
http://statistics.data.gov.uk/id/local-authority/38,Oxfordshire County Council,Continuing Care - Care Homes - 65+,12/04/2022,5687,,3111160130,"-3,672.00",Chacombe Park Care Home
http://statistics.data.gov.uk/id/local-authority/38,Oxfordshire County Council,Care Homes - Under 65 Leaning Disability,12/04/2022,5685,B*Cycle tracks,3111161817,"-3,583.68",The Langston
http://statistics.data.gov.uk/id/local-authority/38,Oxfordshire County Council,Support at Home 65+ Physical Support,12/04/2022,5685,B*Cycle tracks,3111160811,"-3,487.20",GCH (St Katherines) Ltd
http://statistics.data.gov.uk/id/local-authority/38,Oxfordshire County Council,Care Homes - Over 65 Physical Sypport,12/04/2022,5686,,3111160802,"-3,465.00",SANCTUARY CARE LTD
http://statistics.data.gov.uk/id/local-authority/38,Oxfordshire County Council,Continuing Care - Care Homes - 65+,12/04/2022,5687,,3111161475,"-3,400.00",Barchester Healthcare Homes Ltd
http://statistics.data.gov.uk/id/local-authority/38,Oxfordshire County Council,Care Homes - Over 65 Memory & Cognition,12/04/2022,5685,B*Cycle tracks,3111160866,"-3,162.17",Green Gates NH (BUPA)
http://statistics.data.gov.uk/id/local-authority/38,Oxfordshire County Council,COMM DRAWDOWN FUNDNG,29/04/2022,8511,Legal Fees & expenses,2200982508,"-3,150.00",Tamsin Cox
http://statistics.data.gov.uk/id/local-authority/38,Oxfordshire County Council,Support at Home 65+ Memory & Cognition,12/04/2022,5686,,3111162434,"-2,996.00",Orders of St John
http://statistics.data.gov.uk/id/local-authority/38,Oxfordshire County Council,Continuing Care - Care Homes - 65+,12/04/2022,5687,,3111160849,"-2,919.24",Gracewell Healthcare 3 Ltd
http://statistics.data.gov.uk/id/local-authority/38,Oxfordshire County Council,Care Homes - Over 65 Physical Sypport,12/04/2022,5686,,3111160053,"-2,914.29",CARE UK COMMUNITY PARTNERSHIPS LIMI
http://statistics.data.gov.uk/id/local-authority/38,Oxfordshire County Council,Support at Home 65+ Physical Support,12/04/2022,5685,B*Cycle tracks,3111161728,"-2,910.51",The Grange Care Centre
http://statistics.data.gov.uk/id/local-authority/38,Oxfordshire County Council,Support at Home 65+ Physical Support,27/04/2022,2040,Agency Staff,2200980984,"-2,845.86",Home Helpers Care Ltd
http://statistics.data.gov.uk/id/local-authority/38,Oxfordshire County Council,Care Homes - Over 65 Physical Sypport,12/04/2022,5685,B*Cycle tracks,3111160990,"-2,829.89",LAWTON GROUP LTD
http://statistics.data.gov.uk/id/local-authority/38,Oxfordshire County Council,INFORMATION & ADVICE,07/04/2022,4940,Other Services,2200976880,"-2,750.00",Affinity Works Limited
http://statistics.data.gov.uk/id/local-authority/38,Oxfordshire County Council,Care Homes - Over 65 Physical Sypport,12/04/2022,5687,,3111160882,"-2,681.14",Green Pastures Christian NH
http://statistics.data.gov.uk/id/local-authority/38,Oxfordshire County Council,Continuing Care - Support at Home - U65,29/04/2022,5691,,3111168880,"-2,599.84",Henley Care Ltd
http://statistics.data.gov.uk/id/local-authority/38,Oxfordshire County Council,Councillors Priorities Fund,25/04/2022,4940,Other Services,3111165224,"-2,550.00",Faringdon Town Council
http://statistics.data.gov.uk/id/local-authority/38,Oxfordshire County Council,GRASS CUTTING DIST.,28/04/2022,5526,Payments to Private Contractors,3111168653,"-2,519.50",Bloxham Parish Council
http://statistics.data.gov.uk/id/local-authority/38,Oxfordshire County Council,Funded Nursing Care  - Over 65,12/04/2022,5692,,3111162248,"-2,492.40",Orders of St John
http://statistics.data.gov.uk/id/local-authority/38,Oxfordshire County Council,Support at Home 65+ Physical Support,26/04/2022,5696,,3111166685,"-2,489.00",All Care GB Ltd
http://statistics.data.gov.uk/id/local-authority/38,Oxfordshire County Council,Care Homes - Over 65 Physical Sypport,12/04/2022,5686,,3111161318,"-2,477.14",Penhurst Gardens
http://statistics.data.gov.uk/id/local-authority/38,Oxfordshire County Council,Support at Home 65+ Physical Support,12/04/2022,5686,,3111162288,"-2,461.00",Orders of St John
http://statistics.data.gov.uk/id/local-authority/38,Oxfordshire County Council,Care Homes - Over 65 Memory & Cognition,12/04/2022,5686,,3111162066,"-2,421.43",Orders of St John
http://statistics.data.gov.uk/id/local-authority/38,Oxfordshire County Council,Support at Home 65+ Physical Support,12/04/2022,5687,,3111160017,"-2,400.00",Heathfield House Nursing Home
http://statistics.data.gov.uk/id/local-authority/38,Oxfordshire County Council,Care Homes - Over 65 Physical Sypport,12/04/2022,5686,,3111162437,"-2,381.00",OSJ  - Old Station House
http://statistics.data.gov.uk/id/local-authority/38,Oxfordshire County Council,Care Homes - Over 65 Physical Sypport,12/04/2022,5687,,3111161872,"-2,315.95",The Triangle Nursing Home
http://statistics.data.gov.uk/id/local-authority/38,Oxfordshire County Council,Funded Nursing Care  - Over 65,12/04/2022,5692,,3111161207,"-2,304.80",Merryfield Nursing Home
http://statistics.data.gov.uk/id/local-authority/38,Oxfordshire County Council,Care Homes - Over 65 Physical Sypport,12/04/2022,5687,,3111161461,"-2,208.45",Barchester Healthcare Homes Ltd
http://statistics.data.gov.uk/id/local-authority/38,Oxfordshire County Council,FOSTERING MAIN,11/04/2022,7190,Other Recovered Costs,3111156643,"-2,184.00",Personal Redacted Data
http://statistics.data.gov.uk/id/local-authority/38,Oxfordshire County Council,Care Homes - Over 65 Physical Sypport,12/04/2022,5687,,3111159797,"-2,182.14",Freeland House
http://statistics.data.gov.uk/id/local-authority/38,Oxfordshire County Council,Care Homes - Over 65 Memory & Cognition,12/04/2022,5686,,3111162264,"-2,140.00",Orders of St John
http://statistics.data.gov.uk/id/local-authority/38,Oxfordshire County Council,Support at Home 65+ Mental Health,26/04/2022,5699,,3111166333,"-2,067.99",Care Outlook Ltd
http://statistics.data.gov.uk/id/local-authority/38,Oxfordshire County Council,Support at Home 65+ Memory & Cognition,12/04/2022,5686,,3111161859,"-2,000.00",The Ridings (Anchor Trust)
http://statistics.data.gov.uk/id/local-authority/38,Oxfordshire County Council,Funded Nursing Care  - Over 65,12/04/2022,5692,,3111161365,"-1,983.20",Richmond Letcombe Regis
http://statistics.data.gov.uk/id/local-authority/38,Oxfordshire County Council,,04/04/2022,1531,Cash Allocation Control Account,3111153818,"-1,975.26",The Leys Health Centre
http://statistics.data.gov.uk/id/local-authority/38,Oxfordshire County Council,Independent Foster,27/04/2022,5559,,3111168403,"-1,944.57",FUSION FOSTERING LTD
http://statistics.data.gov.uk/id/local-authority/38,Oxfordshire County Council,Support at Home 65+ Memory & Cognition,12/04/2022,5686,,3111161074,"-1,928.57",Leafield Rest Home
http://statistics.data.gov.uk/id/local-authority/38,Oxfordshire County Council,CHC Fast Track - Care Homes - Over 65,12/04/2022,5687,,3111161457,"-1,864.29",Barchester Healthcare Homes Ltd
http://statistics.data.gov.uk/id/local-authority/38,Oxfordshire County Council,Funded Nursing Care  - Over 65,12/04/2022,5692,,3111161135,"-1,849.20",Lincroft Meadow
http://statistics.data.gov.uk/id/local-authority/38,Oxfordshire County Council,Care Homes - Over 65 Memory & Cognition,12/04/2022,5687,,3111159731,"-1,840.37",Fewcott Healthcare Ltd
http://statistics.data.gov.uk/id/local-authority/38,Oxfordshire County Council,Support at Home 65+ Physical Support,26/04/2022,5699,,3111166368,"-1,838.67",All Care GB Ltd
http://statistics.data.gov.uk/id/local-authority/38,Oxfordshire County Council,Support at Home 65+ Physical Support,12/04/2022,5686,,3111162618,"-1,819.00",Orders of St John
http://statistics.data.gov.uk/id/local-authority/38,Oxfordshire County Council,Reading Adoption Support Fund,13/04/2022,4861,Hired and Contracted Services,2200978832,"-1,812.50",Hands on Play Therapy
http://statistics.data.gov.uk/id/local-authority/38,Oxfordshire County Council,Care Homes - Over 65 Physical Sypport,12/04/2022,5686,,3111160761,"-1,806.86",SANCTUARY CARE LTD
http://statistics.data.gov.uk/id/local-authority/38,Oxfordshire County Council,Funded Nursing Care  - Over 65,12/04/2022,5692,,3111162262,"-1,795.60",Orders of St John
http://statistics.data.gov.uk/id/local-authority/38,Oxfordshire County Council,Support at Home 65+ Sensory Support,12/04/2022,5685,B*Cycle tracks,3111162168,"-1,756.47",Orders of St John
http://statistics.data.gov.uk/id/local-authority/38,Oxfordshire County Council,Support at Home U65 Learning Disability,12/04/2022,5688,,3111158591,"-1,755.04",H F TRUST LTD
http://statistics.data.gov.uk/id/local-authority/38,Oxfordshire County Council,Continuing Care - Support at Home - U65,06/04/2022,5691,,3111154726,"-1,712.73",The Care Workshop Limited
http://statistics.data.gov.uk/id/local-authority/38,Oxfordshire County Council,Support at Home 65+ Physical Support,12/04/2022,5686,,3111162480,"-1,712.00",Orders of St John
http://statistics.data.gov.uk/id/local-authority/38,Oxfordshire County Council,Funded Nursing Care  - Over 65,12/04/2022,5692,,3111161489,"-1,688.40",Barchester Healthcare Homes Ltd
http://statistics.data.gov.uk/id/local-authority/38,Oxfordshire County Council,Care Homes - Over 65 Memory & Cognition,12/04/2022,5687,,3111161744,"-1,600.00",Four Seasons (Headington) Ltd
http://statistics.data.gov.uk/id/local-authority/38,Oxfordshire County Council,Care Homes - Over 65 Memory & Cognition,12/04/2022,5687,,3111161618,"-1,571.43",Tall Trees
http://statistics.data.gov.uk/id/local-authority/38,Oxfordshire County Council,Care Homes - Over 65 Physical Sypport,12/04/2022,5687,,3111162141,"-1,554.14",Orders of St John
http://statistics.data.gov.uk/id/local-authority/38,Oxfordshire County Council,Care Homes - Over 65 Physical Sypport,12/04/2022,5687,,3111160385,"-1,552.60",CHURCHFIELDS CARE HOME
http://statistics.data.gov.uk/id/local-authority/38,Oxfordshire County Council,CHC Fast Track - Care Homes - Over 65,12/04/2022,5687,,3111160793,"-1,542.86",SANCTUARY CARE LTD
http://statistics.data.gov.uk/id/local-authority/38,Oxfordshire County Council,COMMUNICATIONS,25/04/2022,4494,Purchase of IT Equipment,2200980458,"-1,510.00",Cetronic Power Solutions
http://statistics.data.gov.uk/id/local-authority/38,Oxfordshire County Council,Support at Home 65+ Memory & Cognition,12/04/2022,5685,B*Cycle tracks,3111162065,"-1,501.53",Orders of St John
http://statistics.data.gov.uk/id/local-authority/38,Oxfordshire County Council,CHC Fast Track - Care Homes - Over 65,12/04/2022,5687,,3111160962,"-1,478.57",Cedar Court Care Home
http://statistics.data.gov.uk/id/local-authority/38,Oxfordshire County Council,Continuing Care - Support at Home - U65,06/04/2022,5691,,3111154727,"-1,459.72",The Care Workshop Limited
http://statistics.data.gov.uk/id/local-authority/38,Oxfordshire County Council,Family Solutions Plus Non-staff - Centra,27/04/2022,4940,Other Services,2200980988,"-1,423.60",Aylesbury Nursery Child First
http://statistics.data.gov.uk/id/local-authority/38,Oxfordshire County Council,Care Homes - Under 65 Physical Sypport,12/04/2022,5687,,3111161720,"-1,407.86",The Grange Care Centre
http://statistics.data.gov.uk/id/local-authority/38,Oxfordshire County Council,,19/04/2022,1448,Blackfield Inc & Exp A/c,3111163668,"-1,377.47",OCC One Time Vendor
http://statistics.data.gov.uk/id/local-authority/38,Oxfordshire County Council,CHC Fast Track - Care Homes - Over 65,12/04/2022,5687,,3111160134,"-1,371.43",Chacombe Park Care Home
http://statistics.data.gov.uk/id/local-authority/38,Oxfordshire County Council,Care Homes - Over 65 Memory & Cognition,12/04/2022,5686,,3111161797,"-1,363.89",METHODIST HOMES
http://statistics.data.gov.uk/id/local-authority/38,Oxfordshire County Council,Care Homes - Over 65 Physical Sypport,12/04/2022,5687,,3111159352,"-1,357.26",ACER HEALTHCARE LTD
http://statistics.data.gov.uk/id/local-authority/38,Oxfordshire County Council,Continuing Care - Care Homes - 65+,12/04/2022,5687,,3111160844,"-1,335.43",Gracewell Healthcare 3 Ltd
http://statistics.data.gov.uk/id/local-authority/38,Oxfordshire County Council,Support at Home U65 Learning Disability,04/04/2022,5688,,3111153816,"-1,328.57",Action Deafness
http://statistics.data.gov.uk/id/local-authority/38,Oxfordshire County Council,ICT Operations & Maintenance,01/04/2022,5072,Telephone - Equipment,2200976260,"-1,279.57",Vodafone
http://statistics.data.gov.uk/id/local-authority/38,Oxfordshire County Council,Care Homes - Over 65 Physical Sypport,12/04/2022,5687,,3111160308,"-1,226.91",Cherwood House Care Centre
http://statistics.data.gov.uk/id/local-authority/38,Oxfordshire County Council,Care Homes - Over 65 Memory & Cognition,12/04/2022,5686,,3111160125,"-1,224.00",Chacombe Park Care Home
http://statistics.data.gov.uk/id/local-authority/38,Oxfordshire County Council,COMMUNITY & ROAD SAFETY,27/04/2022,3103,Other Training Courses and Qualification,2200980993,"-1,215.00",The Bike Academy (South) Ltd
http://statistics.data.gov.uk/id/local-authority/38,Oxfordshire County Council,TVERC,29/04/2022,3241,Professional Subscriptions,2200982130,"-1,200.00",ALERC
http://statistics.data.gov.uk/id/local-authority/38,Oxfordshire County Council,Support at Home 65+ Physical Support,12/04/2022,5685,B*Cycle tracks,3111162146,"-1,144.86",Orders of St John
http://statistics.data.gov.uk/id/local-authority/38,Oxfordshire County Council,Support at Home 65+ Physical Support,12/04/2022,5685,B*Cycle tracks,3111162256,"-1,144.86",Orders of St John
http://statistics.data.gov.uk/id/local-authority/38,Oxfordshire County Council,TRANSPORT GENERAL,29/04/2022,4270,HTM / Other Vehicle - Hire Charges,2200982511,"-1,096.28",DAYS Fleet
http://statistics.data.gov.uk/id/local-authority/38,Oxfordshire County Council,Care Homes - Over 65 Physical Sypport,12/04/2022,5685,B*Cycle tracks,3111160794,"-1,083.71",GCH (St Katherines) Ltd
http://statistics.data.gov.uk/id/local-authority/38,Oxfordshire County Council,FAM GRP CONFERENCES,04/04/2022,4940,Other Services,2200975391,"-1,071.00",Emma Wood
http://statistics.data.gov.uk/id/local-authority/38,Oxfordshire County Council,Support at Home 65+ Memory & Cognition,12/04/2022,5686,,3111162111,"-1,065.43",Orders of St John
http://statistics.data.gov.uk/id/local-authority/38,Oxfordshire County Council,SI EQUIPMENT,27/04/2022,4450,Disability Aids and Equipment,2200981391,"-1,045.50",Phonak UK Limited
http://statistics.data.gov.uk/id/local-authority/38,Oxfordshire County Council,Care Homes - Over 65 Physical Sypport,12/04/2022,5687,,3111160274,"-1,038.73",Mill House Nursing Home
http://statistics.data.gov.uk/id/local-authority/38,Oxfordshire County Council,PROCUREMENT,27/04/2022,4232,Vehicle Fuel,2200981338,"-1,030.20",Certas Energy UK Ltd
http://statistics.data.gov.uk/id/local-authority/38,Oxfordshire County Council,Support at Home 65+ Physical Support,12/04/2022,5685,B*Cycle tracks,3111159947,-991.60,Freeland House
http://statistics.data.gov.uk/id/local-authority/38,Oxfordshire County Council,SEN TRANSPORT,14/04/2022,4330,Transport to School Activities,3111163131,-958.33,Unitaxi Ltd
http://statistics.data.gov.uk/id/local-authority/38,Oxfordshire County Council,Support at Home U65 Learning Disability,12/04/2022,5688,,3111158839,-942.86,You and Me Supported Living
http://statistics.data.gov.uk/id/local-authority/38,Oxfordshire County Council,MEADOWBROOK TRANSPT,29/04/2022,4330,Transport to School Activities,3111168729,-916.00,Browns Taxis Ltd
http://statistics.data.gov.uk/id/local-authority/38,Oxfordshire County Council,Care Homes - Over 65 Memory & Cognition,12/04/2022,5686,,3111160606,-893.57,Enstone House
http://statistics.data.gov.uk/id/local-authority/38,Oxfordshire County Council,Funded Nursing Care  - Over 65,12/04/2022,5692,,3111159306,-857.60,Abbey Crest Nursing Home
http://statistics.data.gov.uk/id/local-authority/38,Oxfordshire County Council,OPPB CONTCARE RNCC,12/04/2022,5687,,3111160216,-857.60,Mill House Nursing Home
http://statistics.data.gov.uk/id/local-authority/38,Oxfordshire County Council,Support at Home 65+ Physical Support,12/04/2022,5686,,3111162626,-856.00,Orders of St John
http://statistics.data.gov.uk/id/local-authority/38,Oxfordshire County Council,Care Homes - Over 65 Physical Sypport,12/04/2022,5687,,3111162200,-847.71,Orders of St John
http://statistics.data.gov.uk/id/local-authority/38,Oxfordshire County Council,TRANSPORT GENERAL,22/04/2022,4210,Vehicles and Plant - Repairs and Main,2200980048,-841.72,DAYS Fleet
http://statistics.data.gov.uk/id/local-authority/38,Oxfordshire County Council,Support at Home 65+ Physical Support,12/04/2022,5685,B*Cycle tracks,3111162078,-801.40,Orders of St John
http://statistics.data.gov.uk/id/local-authority/38,Oxfordshire County Council,Funded Nursing Care  - Over 65,12/04/2022,5692,,3111162388,-750.40,Orders of St John
http://statistics.data.gov.uk/id/local-authority/38,Oxfordshire County Council,Care Homes - Over 65 Memory & Cognition,12/04/2022,5686,,3111160008,-750.00,Heathfield House Nursing Home
http://statistics.data.gov.uk/id/local-authority/38,Oxfordshire County Council,RESIDENTIAL TREATMEN,04/04/2022,5686,,2200975183,-750.00,WESTERN COUNSELLING SERVICES LTD
http://statistics.data.gov.uk/id/local-authority/38,Oxfordshire County Council,Support at Home 65+ Physical Support,12/04/2022,5686,,3111162185,-749.00,Orders of St John
http://statistics.data.gov.uk/id/local-authority/38,Oxfordshire County Council,Care Homes - Over 65 Memory & Cognition,12/04/2022,5686,,3111162239,-749.00,Orders of St John
http://statistics.data.gov.uk/id/local-authority/38,Oxfordshire County Council,Care Homes - Over 65 Memory & Cognition,12/04/2022,5686,,3111162278,-749.00,Orders of St John
http://statistics.data.gov.uk/id/local-authority/38,Oxfordshire County Council,Support at Home 65+ Physical Support,12/04/2022,5686,,3111162451,-749.00,OSJ  - Old Station House
http://statistics.data.gov.uk/id/local-authority/38,Oxfordshire County Council,Support at Home 65+ Physical Support,12/04/2022,5685,B*Cycle tracks,3111162072,-686.91,Orders of St John
http://statistics.data.gov.uk/id/local-authority/38,Oxfordshire County Council,2 YEAR OLD FUNDING,07/04/2022,5537,Payments to Other Establishments,3111154889,-681.60,Bridges Childcare
http://statistics.data.gov.uk/id/local-authority/38,Oxfordshire County Council,OPERATIONS,26/04/2022,4407,Equipment,2200980944,-624.20,TW ENGINEERING CO LTD
http://statistics.data.gov.uk/id/local-authority/38,Oxfordshire County Council,OPERATIONS,26/04/2022,4407,Equipment,2200980948,-624.20,TW ENGINEERING CO LTD
http://statistics.data.gov.uk/id/local-authority/38,Oxfordshire County Council,Funded Nursing Care  - Over 65,12/04/2022,5692,,3111160700,-616.40,SANCTUARY CARE LTD
http://statistics.data.gov.uk/id/local-authority/38,Oxfordshire County Council,REAL COST ALLOWANCES,11/04/2022,5662,B*Christmas Allowance,3111156498,-614.91,Personal Redacted Data
http://statistics.data.gov.uk/id/local-authority/38,Oxfordshire County Council,Care Homes - Over 65 Physical Sypport,12/04/2022,5687,,3111160945,-613.46,Cedar Court Care Home
http://statistics.data.gov.uk/id/local-authority/38,Oxfordshire County Council,CHC Fast Track - Care Homes - Over 65,12/04/2022,5687,,3111160758,-578.57,SANCTUARY CARE LTD
http://statistics.data.gov.uk/id/local-authority/38,Oxfordshire County Council,L&D CORE PROGRAMME,29/04/2022,3103,Other Training Courses and Qualification,2200982175,-564.20,Agiito Limited
http://statistics.data.gov.uk/id/local-authority/38,Oxfordshire County Council,Continuing Care - Care Homes - 65+,12/04/2022,5687,,3111161638,-528.87,The Close Nursing Home
http://statistics.data.gov.uk/id/local-authority/38,Oxfordshire County Council,2 YEAR OLD FUNDING,07/04/2022,5537,Payments to Other Establishments,3111154888,-511.20,Kids Unlimited (Clearwater Place)
http://statistics.data.gov.uk/id/local-authority/38,Oxfordshire County Council,OXF. EMPLOYMENT SERV,21/04/2022,3103,Other Training Courses and Qualification,2200979706,500.00,BASE
http://statistics.data.gov.uk/id/local-authority/38,Oxfordshire County Council,LAC PUPIL PREMIUM,26/04/2022,5537,Payments to Other Establishments,3111168033,500.00,Burford School
http://statistics.data.gov.uk/id/local-authority/38,Oxfordshire County Council,FOSTERING TEAM,28/04/2022,4861,Hired and Contracted Services,2200981995,500.00,Green Light People Solutions
http://statistics.data.gov.uk/id/local-authority/38,Oxfordshire County Council,FOSTERING TEAM,28/04/2022,4861,Hired and Contracted Services,2200981996,500.00,Green Light People Solutions
http://statistics.data.gov.uk/id/local-authority/38,Oxfordshire County Council,FOSTERING TEAM,28/04/2022,4861,Hired and Contracted Services,2200981997,500.00,Green Light People Solutions
http://statistics.data.gov.uk/id/local-authority/38,Oxfordshire County Council,Support at Home U65 Physical Support,29/04/2022,5693,,3111168769,500.00,HEALTHCARE ACCESS LTD
http://statistics.data.gov.uk/id/local-authority/38,Oxfordshire County Council,REAL TIME BUS INFO,20/04/2022,4861,Hired and Contracted Services,2200979543,500.00,M2M Tech Limited
http://statistics.data.gov.uk/id/local-authority/38,Oxfordshire County Council,POST18 UASC DCSF FND,13/04/2022,3942,Hire of Accommodation and Facilities,3111162809,500.00,Personal Redacted Data
http://statistics.data.gov.uk/id/local-authority/38,Oxfordshire County Council,LAC PUPIL PREMIUM,26/04/2022,5537,Payments to Other Establishments,3111168037,500.00,Montgomery Infant School and Nurser
http://statistics.data.gov.uk/id/local-authority/38,Oxfordshire County Council,HIGHWAYS GENERAL,13/04/2022,5055,Insurance Costs,3111163059,500.00,OCC One Time Vendor
http://statistics.data.gov.uk/id/local-authority/38,Oxfordshire County Council,LEGAL BUDGET,25/04/2022,5251,Legal Costs,3111165183,500.00,OCC One Time Vendor
http://statistics.data.gov.uk/id/local-authority/38,Oxfordshire County Council,HIGHWAYS GENERAL,28/04/2022,5055,Insurance Costs,3111168422,500.00,OCC One Time Vendor
http://statistics.data.gov.uk/id/local-authority/38,Oxfordshire County Council,COMMUNITY & ROAD SAFETY,21/04/2022,4495,IT Software,2200979786,500.00,Orange-Learning Limited
http://statistics.data.gov.uk/id/local-authority/38,Oxfordshire County Council,POST 16 SEN,11/04/2022,4330,Transport to School Activities,3111157916,500.00,Oxon Transport Services Ltd
http://statistics.data.gov.uk/id/local-authority/38,Oxfordshire County Council,Children in Care Non-staffing - North,21/04/2022,5227,Other Transport Arrangements,3111164709,500.00,Phoenixx Cars Ltd
http://statistics.data.gov.uk/id/local-authority/38,Oxfordshire County Council,CHC Fast Track - Sup at Homes - Over 65,06/04/2022,5691,,3111154735,500.00,Star Projections
http://statistics.data.gov.uk/id/local-authority/38,Oxfordshire County Council,LEAVING CARE NORTH,07/04/2022,3942,Hire of Accommodation and Facilities,3111154936,500.00,Personal Redacted Data
http://statistics.data.gov.uk/id/local-authority/38,Oxfordshire County Council,Councillors Priorities Fund,08/04/2022,4940,Other Services,3111155175,500.00,The Thursday Lunch Club
http://statistics.data.gov.uk/id/local-authority/38,Oxfordshire County Council,LAC PUPIL PREMIUM,26/04/2022,5537,Payments to Other Establishments,3111168032,500.00,Woodlands School
http://statistics.data.gov.uk/id/local-authority/38,Oxfordshire County Council,Support at Home 65+ Physical Support,26/04/2022,5689,,3111167685,500.04,Home Helpers Care Ltd
http://statistics.data.gov.uk/id/local-authority/38,Oxfordshire County Council,Support at Home U65 Physical Support,26/04/2022,5689,,3111167061,500.33,Bicester PA and Care LLP
http://statistics.data.gov.uk/id/local-authority/38,Oxfordshire County Council,Support at Home U65 Learning Disability,12/04/2022,5690,,3111158435,500.66,Autism at Kingwood Limited
http://statistics.data.gov.uk/id/local-authority/38,Oxfordshire County Council,Support at Home U65 Learning Disability,12/04/2022,5690,,3111158445,500.66,MacIntyre Care (Womaston)
http://statistics.data.gov.uk/id/local-authority/38,Oxfordshire County Council,SM DISABILITIES,26/04/2022,5554,Childrens' Social Care - Direct Payments,3111166423,500.74,Purple Conversation Com In Co (DP)
http://statistics.data.gov.uk/id/local-authority/38,Oxfordshire County Council,SM DISABILITIES,26/04/2022,5554,Childrens' Social Care - Direct Payments,3111166163,500.74,Personal Redacted Data
http://statistics.data.gov.uk/id/local-authority/38,Oxfordshire County Council,UASC 16&17,12/04/2022,5365,Non-Staff Subsistence and Expenses,9300055341,501.05,OCC SS Banbury Area Off Cash
http://statistics.data.gov.uk/id/local-authority/38,Oxfordshire County Council,FOSTERING MAIN,11/04/2022,5227,Other Transport Arrangements,3111156687,501.20,Personal Redacted Data
http://statistics.data.gov.uk/id/local-authority/38,Oxfordshire County Council,VACANT PROPERTY,01/04/2022,4000,Council Tax,3500082511,501.24,West Oxfordshire District Council
http://statistics.data.gov.uk/id/local-authority/38,Oxfordshire County Council,LEAVING CARE NORTH,13/04/2022,3942,Hire of Accommodation and Facilities,3111162812,501.95,Personal Redacted Data
http://statistics.data.gov.uk/id/local-authority/38,Oxfordshire County Council,Support at Home U65 Physical Support,11/04/2022,5899,Social Care - Direct Payments,3111156243,502.32,Personal Redacted Data
http://statistics.data.gov.uk/id/local-authority/38,Oxfordshire County Council,VACANT PROPERTY,27/04/2022,4000,Council Tax,3500083290,503.00,West Oxfordshire District Council
http://statistics.data.gov.uk/id/local-authority/38,Oxfordshire County Council,Support at Home U65 Physical Support,26/04/2022,5689,,3111167802,503.16,PLL Care Services
http://statistics.data.gov.uk/id/local-authority/38,Oxfordshire County Council,FOSTERING MAIN,11/04/2022,5227,Other Transport Arrangements,3111157044,503.41,Personal Redacted Data
http://statistics.data.gov.uk/id/local-authority/38,Oxfordshire County Council,LEAVING CARE CITY 2,29/04/2022,5419,Registration and Inspection Fees,9300055459,503.60,OCC SS Banbury Area Off Cash
http://statistics.data.gov.uk/id/local-authority/38,Oxfordshire County Council,LEGAL BUDGET,04/04/2022,5251,Legal Costs,2200975115,504.00,Dr Gwen Adshead
http://statistics.data.gov.uk/id/local-authority/38,Oxfordshire County Council,Support at Home U65 Sensory Support,11/04/2022,5899,Social Care - Direct Payments,3111155984,504.00,Personal Redacted Data
http://statistics.data.gov.uk/id/local-authority/38,Oxfordshire County Council,Support at Home 65+ Physical Support,11/04/2022,5899,Social Care - Direct Payments,3111155958,504.00,Personal Redacted Data
http://statistics.data.gov.uk/id/local-authority/38,Oxfordshire County Council,WCR IMPROVEMENT,01/04/2022,5190,Subscriptions,2200977308,504.00,TAGMASTER UK LIMITED
http://statistics.data.gov.uk/id/local-authority/38,Oxfordshire County Council,Support at Home 65+ Learning Disability,12/04/2022,5690,,3111158430,504.26,HF TRUST Ltd
http://statistics.data.gov.uk/id/local-authority/38,Oxfordshire County Council,SM DISABILITIES,26/04/2022,5554,Childrens' Social Care - Direct Payments,3111166246,504.55,Personal Redacted Data
http://statistics.data.gov.uk/id/local-authority/38,Oxfordshire County Council,SM DISABILITIES,26/04/2022,5554,Childrens' Social Care - Direct Payments,3111166248,504.55,Personal Redacted Data
http://statistics.data.gov.uk/id/local-authority/38,Oxfordshire County Council,DEFINITIVE MAP,01/04/2022,4790,"Publicity, Promotions and Advertisement",2200980945,505.02,Tmp (Uk) Ltd
http://statistics.data.gov.uk/id/local-authority/38,Oxfordshire County Council,SEN TRANSPORT,11/04/2022,4320,Pupil / Client Travel Reimbursement,3111158129,505.12,Personal Redacted Data
http://statistics.data.gov.uk/id/local-authority/38,Oxfordshire County Council,Support at Home 65+ Memory & Cognition,26/04/2022,5699,,3111166804,505.45,Mega Resources Ltd
http://statistics.data.gov.uk/id/local-authority/38,Oxfordshire County Council,Support at Home U65 Mental Health,11/04/2022,5899,Social Care - Direct Payments,3111157144,505.48,Purple Conversation Com In Co (DP)
http://statistics.data.gov.uk/id/local-authority/38,Oxfordshire County Council,Support at Home U65 Other /Soc Isolation,06/04/2022,5693,,3111154652,505.98,Autism at Kingwood Limited
http://statistics.data.gov.uk/id/local-authority/38,Oxfordshire County Council,Support at Home U65 Other /Soc Isolation,06/04/2022,5693,,3111154655,505.98,Autism at Kingwood Limited
http://statistics.data.gov.uk/id/local-authority/38,Oxfordshire County Council,Support at Home U65 HFA,12/04/2022,5688,,3111158753,506.70,The Laurels (Witney)
http://statistics.data.gov.uk/id/local-authority/38,Oxfordshire County Council,FOSTERING MAIN,11/04/2022,5227,Other Transport Arrangements,3111156937,507.00,Personal Redacted Data
http://statistics.data.gov.uk/id/local-authority/38,Oxfordshire County Council,Support at Home U65 Learning Disability,11/04/2022,5899,Social Care - Direct Payments,3111156761,507.08,Purple Conversation Com In Co (DP)
http://statistics.data.gov.uk/id/local-authority/38,Oxfordshire County Council,Property Cleaning,20/04/2022,3787,Premises Repairs,2200979475,507.11,Seldram Supplies
http://statistics.data.gov.uk/id/local-authority/38,Oxfordshire County Council,Support at Home 65+ Memory & Cognition,01/04/2022,5693,,3111153650,507.75,Pioneering Care Bicester Limited
http://statistics.data.gov.uk/id/local-authority/38,Oxfordshire County Council,Support at Home 65+ Physical Support,20/04/2022,5693,,3111164591,507.88,CARESTREAM HOME CARE
http://statistics.data.gov.uk/id/local-authority/38,Oxfordshire County Council,Planned Maintenance,22/04/2022,3787,Premises Repairs,2200979945,508.00,Ambiflex Ltd
http://statistics.data.gov.uk/id/local-authority/38,Oxfordshire County Council,Support at Home 65+ Memory & Cognition,12/04/2022,5685,B*Cycle tracks,3111160485,508.03,Vale House
http://statistics.data.gov.uk/id/local-authority/38,Oxfordshire County Council,SEN Miscellaneous Expenditure,26/04/2022,4859,Medical and Counselling Fees,2200980527,508.05,OT Synergy
http://statistics.data.gov.uk/id/local-authority/38,Oxfordshire County Council,Support at Home 65+ Physical Support,26/04/2022,5689,,3111167729,508.07,My Carer Ltd
http://statistics.data.gov.uk/id/local-authority/38,Oxfordshire County Council,Support at Home U65 Physical Support,14/04/2022,5696,,3111163207,508.18,Orders of St John Care Trust
http://statistics.data.gov.uk/id/local-authority/38,Oxfordshire County Council,RECRUITMENT+MEDICALS,11/04/2022,4516,Domestic and Cleaning Equipment,2200978330,508.20,Blue Dragon (Hillingdon) Ltd
http://statistics.data.gov.uk/id/local-authority/38,Oxfordshire County Council,Support at Home U65 MH OBC Contract,11/04/2022,5899,Social Care - Direct Payments,3111156174,508.36,Personal Redacted Data
http://statistics.data.gov.uk/id/local-authority/38,Oxfordshire County Council,SM DISABILITIES,26/04/2022,5554,Childrens' Social Care - Direct Payments,3111166324,508.75,Purple Conversation Com In Co (DP)
http://statistics.data.gov.uk/id/local-authority/38,Oxfordshire County Council,Support at Home U65 Learning Disability,11/04/2022,5899,Social Care - Direct Payments,3111156945,509.56,Purple Conversation Com In Co (DP)
http://statistics.data.gov.uk/id/local-authority/38,Oxfordshire County Council,Support at Home 65+ Physical Support,26/04/2022,5689,,3111167838,509.72,PLL Care Services
http://statistics.data.gov.uk/id/local-authority/38,Oxfordshire County Council,Support at Home 65+ Physical Support,08/04/2022,5693,,3111155116,510.00,Care with Care Ltd
http://statistics.data.gov.uk/id/local-authority/38,Oxfordshire County Council,ON ST PARK OXFD P&D,06/04/2022,4861,Hired and Contracted Services,2200976074,510.00,Flowbird Smart City
http://statistics.data.gov.uk/id/local-authority/38,Oxfordshire County Council,ON ST PARK OXFD P&D,27/04/2022,4861,Hired and Contracted Services,2200981295,510.00,Flowbird Smart City
http://statistics.data.gov.uk/id/local-authority/38,Oxfordshire County Council,Support at Home 65+ Physical Support,13/04/2022,5693,,3111162952,510.16,Direct Link Care Ltd
http://statistics.data.gov.uk/id/local-authority/38,Oxfordshire County Council,Support at Home 65+ Physical Support,14/04/2022,5696,,3111163304,510.22,Orders of St John Care Trust
http://statistics.data.gov.uk/id/local-authority/38,Oxfordshire County Council,Support at Home U65 Mental Health,13/04/2022,5693,,3111162957,510.30,Direct Link Care Ltd
http://statistics.data.gov.uk/id/local-authority/38,Oxfordshire County Council,Support at Home U65 Learning Disability,11/04/2022,5899,Social Care - Direct Payments,3111155696,511.04,Connection Support (Oxford)
http://statistics.data.gov.uk/id/local-authority/38,Oxfordshire County Council,North Team,05/04/2022,5690,,3111153836,511.33,OCC One Time Vendor
http://statistics.data.gov.uk/id/local-authority/38,Oxfordshire County Council,Support at Home 65+ Physical Support,26/04/2022,5699,,3111166849,511.33,PLL Care Services
http://statistics.data.gov.uk/id/local-authority/38,Oxfordshire County Council,Support at Home 65+ Other /Soc Isolation,13/04/2022,5693,,3111162950,512.00,Personal Redacted Data
http://statistics.data.gov.uk/id/local-authority/38,Oxfordshire County Council,UASC 16&17,26/04/2022,5365,Non-Staff Subsistence and Expenses,9300055408,512.35,OCC SS Oxford City Div 1 Cash
http://statistics.data.gov.uk/id/local-authority/38,Oxfordshire County Council,Community Support Service Banbury,19/04/2022,2040,Agency Staff,2200979241,512.40,Completely Care Ltd
http://statistics.data.gov.uk/id/local-authority/38,Oxfordshire County Council,Community Support Service Wallingford,28/04/2022,2040,Agency Staff,2200981572,512.40,Completely Care Ltd
http://statistics.data.gov.uk/id/local-authority/38,Oxfordshire County Council,SEN TRANSPORT,22/04/2022,4330,Transport to School Activities,3111165435,512.50,The Oxfordshire Taxi Company Ltd T/
http://statistics.data.gov.uk/id/local-authority/38,Oxfordshire County Council,Care Homes - Under 65 Physical Sypport,12/04/2022,5686,,3111162472,512.86,Orders of St John
http://statistics.data.gov.uk/id/local-authority/38,Oxfordshire County Council,MEADOWBROOK TRANSPT,22/04/2022,4330,Transport to School Activities,3111165284,512.95,The Oxfordshire Taxi Company Ltd T/
http://statistics.data.gov.uk/id/local-authority/38,Oxfordshire County Council,SM DISABILITIES,26/04/2022,5554,Childrens' Social Care - Direct Payments,3111166242,513.01,Personal Redacted Data
http://statistics.data.gov.uk/id/local-authority/38,Oxfordshire County Council,40 THE MOORS,19/04/2022,5398,Pocket Money (Paid to Children),9300055367,513.10,OCC SS Oxford City Div 1 Cash
http://statistics.data.gov.uk/id/local-authority/38,Oxfordshire County Council,Support at Home 65+ Physical Support,26/04/2022,5899,Social Care - Direct Payments,3111167982,513.20,Purple Conversation Com In Co (DP)
http://statistics.data.gov.uk/id/local-authority/38,Oxfordshire County Council,LEAVING CARE NORTH,26/04/2022,4407,Equipment,9300055407,513.65,OCC SS Oxford City Div 1 Cash
http://statistics.data.gov.uk/id/local-authority/38,Oxfordshire County Council,UASC 16&17,06/04/2022,5665,B*Fostering Project Care Fee,9300055289,514.20,OCC SS Oxford City Div 1 Cash
http://statistics.data.gov.uk/id/local-authority/38,Oxfordshire County Council,Care Homes - Over 65 Mental Health,12/04/2022,5687,,3111161767,514.29,Four Seasons (Headington) Ltd
http://statistics.data.gov.uk/id/local-authority/38,Oxfordshire County Council,Support at Home 65+ Physical Support,14/04/2022,5696,,3111163260,514.42,Orders of St John Care Trust
http://statistics.data.gov.uk/id/local-authority/38,Oxfordshire County Council,STOP SMOKING SERVICE,12/04/2022,4934,,3111163367,514.43,The Leys Pharmacy
http://statistics.data.gov.uk/id/local-authority/38,Oxfordshire County Council,Support at Home U65 Memory & Cognition,11/04/2022,5899,Social Care - Direct Payments,3111157293,514.68,Purple Conversation Com In Co (DP)
http://statistics.data.gov.uk/id/local-authority/38,Oxfordshire County Council,Support at Home 65+ Physical Support,11/04/2022,5899,Social Care - Direct Payments,3111157032,515.08,Purple Conversation Com In Co (DP)
http://statistics.data.gov.uk/id/local-authority/38,Oxfordshire County Council,Support at Home 65+ Mental Health,26/04/2022,5698,,3111167624,515.52,Oxford Private Care
http://statistics.data.gov.uk/id/local-authority/38,Oxfordshire County Council,Support at Home U65 Sensory Support,11/04/2022,5899,Social Care - Direct Payments,3111155981,515.52,Personal Redacted Data
http://statistics.data.gov.uk/id/local-authority/38,Oxfordshire County Council,SEN TRANSPORT,21/04/2022,4320,Pupil / Client Travel Reimbursement,3111164787,515.76,Personal Redacted Data
http://statistics.data.gov.uk/id/local-authority/38,Oxfordshire County Council,SEN TRANSPORT,12/04/2022,4320,Pupil / Client Travel Reimbursement,3111162762,515.76,Personal Redacted Data
http://statistics.data.gov.uk/id/local-authority/38,Oxfordshire County Council,FOSTERING MAIN,11/04/2022,5227,Other Transport Arrangements,3111156630,515.90,Personal Redacted Data
http://statistics.data.gov.uk/id/local-authority/38,Oxfordshire County Council,Support at Home 65+ Physical Support,26/04/2022,5689,,3111167736,516.02,My Carer Ltd
http://statistics.data.gov.uk/id/local-authority/38,Oxfordshire County Council,STREET SWEEPINGS,25/04/2022,5227,Other Transport Arrangements,2200980392,516.17,M & M Skip Hire Ltd
http://statistics.data.gov.uk/id/local-authority/38,Oxfordshire County Council,Support at Home U65 Learning Disability,22/04/2022,5227,Other Transport Arrangements,3111165388,516.18,The Oxfordshire Taxi Company Ltd T/
http://statistics.data.gov.uk/id/local-authority/38,Oxfordshire County Council,Support at Home 65+ Memory & Cognition,11/04/2022,5899,Social Care - Direct Payments,3111156091,516.60,Personal Redacted Data
http://statistics.data.gov.uk/id/local-authority/38,Oxfordshire County Council,Support at Home 65+ Physical Support,11/04/2022,5899,Social Care - Direct Payments,3111155899,516.80,Personal Redacted Data
http://statistics.data.gov.uk/id/local-authority/38,Oxfordshire County Council,Support at Home 65+ Physical Support,26/04/2022,5699,,3111166779,517.40,Home Helpers Care Ltd
http://statistics.data.gov.uk/id/local-authority/38,Oxfordshire County Council,Support at Home 65+ Physical Support,26/04/2022,5699,,3111166743,517.41,Greigcare Home Service
http://statistics.data.gov.uk/id/local-authority/38,Oxfordshire County Council,COVID-19 response COD,19/04/2022,3942,Hire of Accommodation and Facilities,2200979330,517.50,Seacourt Hall
http://statistics.data.gov.uk/id/local-authority/38,Oxfordshire County Council,SHARED LIVES,11/04/2022,5555,Payments to Carers,3111157458,517.56,Personal Redacted Data
http://statistics.data.gov.uk/id/local-authority/38,Oxfordshire County Council,Support at Home U65 Physical Support,26/04/2022,5689,,3111167963,518.01,T.HOW HOMELY LTD
http://statistics.data.gov.uk/id/local-authority/38,Oxfordshire County Council,Support at Home 65+ Physical Support,26/04/2022,5696,,3111166780,518.70,All Care GB Ltd
http://statistics.data.gov.uk/id/local-authority/38,Oxfordshire County Council,Support at Home 65+ Physical Support,26/04/2022,5696,,3111166817,518.70,All Care GB Ltd
http://statistics.data.gov.uk/id/local-authority/38,Oxfordshire County Council,High Cost INMSS Placements,10/04/2022,5537,Payments to Other Establishments,3500083004,519.00,LVS Oxford
http://statistics.data.gov.uk/id/local-authority/38,Oxfordshire County Council,Support at Home 65+ Physical Support,29/04/2022,5693,,3111168798,519.12,Pioneering Care Bicester Limited
http://statistics.data.gov.uk/id/local-authority/38,Oxfordshire County Council,SM DISABILITIES,26/04/2022,5554,Childrens' Social Care - Direct Payments,3111166421,519.12,Purple Conversation Com In Co (DP)
http://statistics.data.gov.uk/id/local-authority/38,Oxfordshire County Council,Support at Home U65 Physical Support,11/04/2022,5899,Social Care - Direct Payments,3111155865,519.20,Personal Redacted Data
http://statistics.data.gov.uk/id/local-authority/38,Oxfordshire County Council,Support at Home 65+ Physical Support,26/04/2022,5689,,3111167807,519.36,PLL Care Services
http://statistics.data.gov.uk/id/local-authority/38,Oxfordshire County Council,Support at Home U65 Physical Support,11/04/2022,5899,Social Care - Direct Payments,3111157058,519.92,Purple Conversation Com In Co (DP)
http://statistics.data.gov.uk/id/local-authority/38,Oxfordshire County Council,POST 16 SEN,22/04/2022,4330,Transport to School Activities,3111164986,520.00,Bicester Cars UK Ltd
http://statistics.data.gov.uk/id/local-authority/38,Oxfordshire County Council,Family Solutions Plus Non-staff - South,11/04/2022,5227,Other Transport Arrangements,3111157842,520.00,Henley Taxis Ltd
http://statistics.data.gov.uk/id/local-authority/38,Oxfordshire County Council,Support at Home 65+ Physical Support,19/04/2022,5899,Social Care - Direct Payments,3111163727,520.00,Personal Redacted Data
http://statistics.data.gov.uk/id/local-authority/38,Oxfordshire County Council,REGISTRAR,19/04/2022,7382,Ceremonies,3111164441,520.00,OCC One Time Vendor
http://statistics.data.gov.uk/id/local-authority/38,Oxfordshire County Council,TRANSPORT COSTS,21/04/2022,5227,Other Transport Arrangements,3111164710,520.00,Phoenixx Cars Ltd
http://statistics.data.gov.uk/id/local-authority/38,Oxfordshire County Council,FLEET COSTS,04/04/2022,4270,HTM / Other Vehicle - Hire Charges,2200975007,520.00,West Wallasey Fleet Hire Services
http://statistics.data.gov.uk/id/local-authority/38,Oxfordshire County Council,Support at Home 65+ Learning Disability,01/04/2022,5696,,3111153621,520.20,Housing&care21
http://statistics.data.gov.uk/id/local-authority/38,Oxfordshire County Council,Support at Home 65+ Learning Disability,20/04/2022,5696,,3111164544,520.20,Housing&care21
http://statistics.data.gov.uk/id/local-authority/38,Oxfordshire County Council,Support at Home 65+ Physical Support,26/04/2022,5699,,3111166548,520.46,Agincare UK Ltd
http://statistics.data.gov.uk/id/local-authority/38,Oxfordshire County Council,Support at Home 65+ Learning Disability,12/04/2022,5690,,3111159024,520.46,The Ice Centre
http://statistics.data.gov.uk/id/local-authority/38,Oxfordshire County Council,Support at Home 65+ Physical Support,26/04/2022,5689,,3111167670,520.64,Home Helpers Care Ltd
http://statistics.data.gov.uk/id/local-authority/38,Oxfordshire County Council,Planned Maintenance,20/04/2022,3787,Premises Repairs,2200979496,520.68,Windrush Door & Window Services Ltd
http://statistics.data.gov.uk/id/local-authority/38,Oxfordshire County Council,Support at Home 65+ Physical Support,26/04/2022,5689,,3111167600,520.86,Greigcare Home Service
http://statistics.data.gov.uk/id/local-authority/38,Oxfordshire County Council,SKILLS & LEARNING,06/04/2022,4706,Stationery and other office consumables,2200976029,521.10,Lyreco UK Ltd
http://statistics.data.gov.uk/id/local-authority/38,Oxfordshire County Council,Support at Home 65+ Physical Support,26/04/2022,5689,,3111167077,521.25,Care Outlook Ltd
http://statistics.data.gov.uk/id/local-authority/38,Oxfordshire County Council,Support at Home 65+ Physical Support,26/04/2022,5698,,3111167287,521.39,Day & Night Care Assistance
http://statistics.data.gov.uk/id/local-authority/38,Oxfordshire County Council,Support at Home U65 Physical Support,26/04/2022,5689,,3111167288,521.42,Casa Care Ltd
http://statistics.data.gov.uk/id/local-authority/38,Oxfordshire County Council,FOSTERING MAIN,05/04/2022,5545,B*Fostering Enhancements - Level 2,3111153923,521.43,Personal Redacted Data
http://statistics.data.gov.uk/id/local-authority/38,Oxfordshire County Council,Support at Home U65 Physical Support,11/04/2022,5899,Social Care - Direct Payments,3111157213,521.48,Purple Conversation Com In Co (DP)
http://statistics.data.gov.uk/id/local-authority/38,Oxfordshire County Council,Planned Maintenance,01/04/2022,3787,Premises Repairs,2200975627,522.00,BI-FOLD ROLFE LTD
http://statistics.data.gov.uk/id/local-authority/38,Oxfordshire County Council,FOSTERING MAIN,05/04/2022,5549,B*Fostering Allowance - Regulation 38,3111154030,523.00,Personal Redacted Data
http://statistics.data.gov.uk/id/local-authority/38,Oxfordshire County Council,FOSTERING MAIN,11/04/2022,5549,B*Fostering Allowance - Regulation 38,3111156663,523.00,Personal Redacted Data
http://statistics.data.gov.uk/id/local-authority/38,Oxfordshire County Council,FOSTERING MAIN,19/04/2022,5549,B*Fostering Allowance - Regulation 38,3111164070,523.00,Personal Redacted Data
http://statistics.data.gov.uk/id/local-authority/38,Oxfordshire County Council,FOSTERING MAIN,26/04/2022,5549,B*Fostering Allowance - Regulation 38,3111166172,523.00,Personal Redacted Data
http://statistics.data.gov.uk/id/local-authority/38,Oxfordshire County Council,Support at Home 65+ Learning Disability,11/04/2022,5899,Social Care - Direct Payments,3111156654,523.08,Purple Conversation Com In Co (DP)
http://statistics.data.gov.uk/id/local-authority/38,Oxfordshire County Council,STAFF HOUSING GEN,12/04/2022,4000,Council Tax,3111158332,523.91,OCC One Time Vendor
http://statistics.data.gov.uk/id/local-authority/38,Oxfordshire County Council,Support at Home U65 Learning Disability,11/04/2022,5899,Social Care - Direct Payments,3111155955,524.00,Personal Redacted Data
http://statistics.data.gov.uk/id/local-authority/38,Oxfordshire County Council,SM DISABILITIES,26/04/2022,5554,Childrens' Social Care - Direct Payments,3111166339,524.56,Purple Conversation Com In Co (DP)
http://statistics.data.gov.uk/id/local-authority/38,Oxfordshire County Council,Support at Home U65 Other /Soc Isolation,06/04/2022,5693,,3111154653,524.72,Autism at Kingwood Limited
http://statistics.data.gov.uk/id/local-authority/38,Oxfordshire County Council,Support at Home U65 Other /Soc Isolation,06/04/2022,5693,,3111154654,524.72,Autism at Kingwood Limited
http://statistics.data.gov.uk/id/local-authority/38,Oxfordshire County Council,Support at Home U65 Other /Soc Isolation,13/04/2022,5693,,3111162967,524.72,Autism at Kingwood Limited
http://statistics.data.gov.uk/id/local-authority/38,Oxfordshire County Council,Vulnerable Learners,13/04/2022,4861,Hired and Contracted Services,3111163052,524.97,NOAs Ark Nursery
http://statistics.data.gov.uk/id/local-authority/38,Oxfordshire County Council,Support at Home 65+ Physical Support,29/04/2022,5693,,3111168773,525.00,HEALTHCARE ACCESS LTD
http://statistics.data.gov.uk/id/local-authority/38,Oxfordshire County Council,FOSTERING MAIN,05/04/2022,5541,B*Foster Parents,3111154014,525.00,Personal Redacted Data
http://statistics.data.gov.uk/id/local-authority/38,Oxfordshire County Council,FOSTERING MAIN,11/04/2022,5541,B*Foster Parents,3111156651,525.00,Personal Redacted Data
http://statistics.data.gov.uk/id/local-authority/38,Oxfordshire County Council,FOSTERING MAIN,19/04/2022,5541,B*Foster Parents,3111164056,525.00,Personal Redacted Data
http://statistics.data.gov.uk/id/local-authority/38,Oxfordshire County Council,FOSTERING MAIN,26/04/2022,5541,B*Foster Parents,3111166158,525.00,Personal Redacted Data
http://statistics.data.gov.uk/id/local-authority/38,Oxfordshire County Council,FOSTERING MAIN,05/04/2022,5541,B*Foster Parents,3111154325,525.00,Personal Redacted Data
http://statistics.data.gov.uk/id/local-authority/38,Oxfordshire County Council,FOSTERING MAIN,11/04/2022,5541,B*Foster Parents,3111156888,525.00,Personal Redacted Data
http://statistics.data.gov.uk/id/local-authority/38,Oxfordshire County Council,FOSTERING MAIN,19/04/2022,5541,B*Foster Parents,3111164329,525.00,Personal Redacted Data
http://statistics.data.gov.uk/id/local-authority/38,Oxfordshire County Council,FOSTERING MAIN,26/04/2022,5541,B*Foster Parents,3111166441,525.00,Personal Redacted Data
http://statistics.data.gov.uk/id/local-authority/38,Oxfordshire County Council,Support at Home 65+ Memory & Cognition,11/04/2022,5899,Social Care - Direct Payments,3111155817,525.00,Personal Redacted Data
http://statistics.data.gov.uk/id/local-authority/38,Oxfordshire County Council,SEN TRANSPORT,21/04/2022,4330,Transport to School Activities,3111164719,525.00,The Gallery Trust
http://statistics.data.gov.uk/id/local-authority/38,Oxfordshire County Council,Support at Home 65+ Memory & Cognition,14/04/2022,5696,,3111163183,525.67,Orders of St John Care Trust
http://statistics.data.gov.uk/id/local-authority/38,Oxfordshire County Council,FOSTERING MAIN,11/04/2022,5548,B*Fostering - Special Rates & Plus Amou,3111156665,525.72,Personal Redacted Data
http://statistics.data.gov.uk/id/local-authority/38,Oxfordshire County Council,Planned Maintenance,12/04/2022,3787,Premises Repairs,2200978656,526.22,BI-FOLD ROLFE LTD
http://statistics.data.gov.uk/id/local-authority/38,Oxfordshire County Council,Support at Home U65 Learning Disability,11/04/2022,5899,Social Care - Direct Payments,3111156853,526.28,Purple Conversation Com In Co (DP)
http://statistics.data.gov.uk/id/local-authority/38,Oxfordshire County Council,Support at Home U65 Physical Support,11/04/2022,5899,Social Care - Direct Payments,3111157197,526.28,Purple Conversation Com In Co (DP)
http://statistics.data.gov.uk/id/local-authority/38,Oxfordshire County Council,FOSTERING MAIN,26/04/2022,5227,Other Transport Arrangements,3111166170,526.38,Personal Redacted Data
http://statistics.data.gov.uk/id/local-authority/38,Oxfordshire County Council,Support at Home U65 Autism /Abated,12/04/2022,5690,,3111158440,526.50,Autism at Kingwood Limited
http://statistics.data.gov.uk/id/local-authority/38,Oxfordshire County Council,Support at Home U65 Learning Disability,12/04/2022,5690,,3111159185,527.14,Turnstyle
http://statistics.data.gov.uk/id/local-authority/38,Oxfordshire County Council,Support at Home 65+ Physical Support,26/04/2022,5699,,3111166918,527.41,YOD Ltd
http://statistics.data.gov.uk/id/local-authority/38,Oxfordshire County Council,Support at Home U65 Learning Disability,11/04/2022,5899,Social Care - Direct Payments,3111157066,527.96,Purple Conversation Com In Co (DP)
http://statistics.data.gov.uk/id/local-authority/38,Oxfordshire County Council,GRASS CUTTING DIST.,14/04/2022,5526,Payments to Private Contractors,3111163593,528.80,Little Milton Parish Council
http://statistics.data.gov.uk/id/local-authority/38,Oxfordshire County Council,Support at Home U65 Learning Disability,12/04/2022,5690,,3111159165,529.16,Turnstyle
http://statistics.data.gov.uk/id/local-authority/38,Oxfordshire County Council,Support at Home 65+ Learning Disability,12/04/2022,5690,,3111159208,529.16,Turnstyle
http://statistics.data.gov.uk/id/local-authority/38,Oxfordshire County Council,Support at Home 65+ Physical Support,08/04/2022,5693,,3111155146,529.20,JMC Care Solutions Limited
http://statistics.data.gov.uk/id/local-authority/38,Oxfordshire County Council,Support at Home 65+ Physical Support,22/04/2022,5693,,3111165093,529.20,JMC Care Solutions Limited
http://statistics.data.gov.uk/id/local-authority/38,Oxfordshire County Council,Support at Home 65+ Physical Support,13/04/2022,5693,,3111162982,529.20,Oxford Private Care
http://statistics.data.gov.uk/id/local-authority/38,Oxfordshire County Council,Support at Home U65 Other /Soc Isolation,11/04/2022,5899,Social Care - Direct Payments,3111156633,529.48,Purple Conversation Com In Co (DP)
http://statistics.data.gov.uk/id/local-authority/38,Oxfordshire County Council,FOSTERING MAIN,26/04/2022,5549,B*Fostering Allowance - Regulation 38,3111166097,529.90,Personal Redacted Data
http://statistics.data.gov.uk/id/local-authority/38,Oxfordshire County Council,Planned Maintenance,22/04/2022,3787,Premises Repairs,2200980053,530.00,Ambiflex Ltd
http://statistics.data.gov.uk/id/local-authority/38,Oxfordshire County Council,REGISTRAR,19/04/2022,7382,Ceremonies,3111164440,530.00,OCC One Time Vendor
http://statistics.data.gov.uk/id/local-authority/38,Oxfordshire County Council,SHARED LIVES,11/04/2022,5555,Payments to Carers,3111157469,530.80,Personal Redacted Data
http://statistics.data.gov.uk/id/local-authority/38,Oxfordshire County Council,REGISTRAR,19/04/2022,7382,Ceremonies,3111164439,531.00,OCC One Time Vendor
http://statistics.data.gov.uk/id/local-authority/38,Oxfordshire County Council,Support at Home 65+ Physical Support,26/04/2022,5689,,3111167801,531.00,PLL Care Services
http://statistics.data.gov.uk/id/local-authority/38,Oxfordshire County Council,Support at Home U65 Physical Support,11/04/2022,5899,Social Care - Direct Payments,3111156519,531.08,Purple Conversation Com In Co (DP)
http://statistics.data.gov.uk/id/local-authority/38,Oxfordshire County Council,FAM GRP CONFERENCES,01/04/2022,5668,Technical and Professional Consultant F,2200978165,531.39,Geneva Quarshie
http://statistics.data.gov.uk/id/local-authority/38,Oxfordshire County Council,Support at Home 65+ Physical Support,26/04/2022,5696,,3111166742,531.68,All Care GB Ltd
http://statistics.data.gov.uk/id/local-authority/38,Oxfordshire County Council,Delegated Health Tasks  - Over 65,26/04/2022,5689,,3111167244,531.81,Caremark (West Oxfordshire & Cherwe
http://statistics.data.gov.uk/id/local-authority/38,Oxfordshire County Council,Support at Home 65+ Physical Support,26/04/2022,5689,,3111166992,531.89,Alina Homecare
http://statistics.data.gov.uk/id/local-authority/38,Oxfordshire County Council,Support at Home U65 Learning Disability,11/04/2022,5227,Other Transport Arrangements,3111157581,532.00,Her Ride Limited
http://statistics.data.gov.uk/id/local-authority/38,Oxfordshire County Council,SEN TRANSPORT,20/04/2022,5227,Other Transport Arrangements,3111164609,532.00,OMC GLOBAL LIMITED
http://statistics.data.gov.uk/id/local-authority/38,Oxfordshire County Council,PLACEMENTS-FRELEVANT,19/04/2022,5558,,3111163679,532.42,Stepping Stones Projects
http://statistics.data.gov.uk/id/local-authority/38,Oxfordshire County Council,Support at Home U65 Mental Health,26/04/2022,5689,,3111167076,532.71,Care Outlook Ltd
http://statistics.data.gov.uk/id/local-authority/38,Oxfordshire County Council,Bracknell Adoption Support Fund,01/04/2022,4861,Hired and Contracted Services,2200975244,532.91,BARNARDO SERVICES LTD
http://statistics.data.gov.uk/id/local-authority/38,Oxfordshire County Council,FOSTERING MAIN,11/04/2022,5549,B*Fostering Allowance - Regulation 38,3111156876,533.00,Personal Redacted Data
http://statistics.data.gov.uk/id/local-authority/38,Oxfordshire County Council,FOSTERING MAIN,19/04/2022,5549,B*Fostering Allowance - Regulation 38,3111164315,533.00,Personal Redacted Data
http://statistics.data.gov.uk/id/local-authority/38,Oxfordshire County Council,FOSTERING MAIN,26/04/2022,5549,B*Fostering Allowance - Regulation 38,3111166426,533.00,Personal Redacted Data
http://statistics.data.gov.uk/id/local-authority/38,Oxfordshire County Council,Family Solutions Plus Non-staff - South,21/04/2022,3942,Hire of Accommodation and Facilities,2200979797,533.20,AG Family Support Limited
http://statistics.data.gov.uk/id/local-authority/38,Oxfordshire County Council,Support at Home U65 Physical Support,11/04/2022,5899,Social Care - Direct Payments,3111157303,533.48,Purple Conversation Com In Co (DP)
http://statistics.data.gov.uk/id/local-authority/38,Oxfordshire County Council,Support at Home 65+ Physical Support,26/04/2022,5696,,3111166807,533.52,All Care GB Ltd
http://statistics.data.gov.uk/id/local-authority/38,Oxfordshire County Council,Planned Maintenance,12/04/2022,3787,Premises Repairs,2200978659,534.00,Barker & Evans Ltd
http://statistics.data.gov.uk/id/local-authority/38,Oxfordshire County Council,FOSTERING MAIN,05/04/2022,5549,B*Fostering Allowance - Regulation 38,3111153929,534.00,Personal Redacted Data
http://statistics.data.gov.uk/id/local-authority/38,Oxfordshire County Council,FOSTERING MAIN,11/04/2022,5549,B*Fostering Allowance - Regulation 38,3111156556,534.00,Personal Redacted Data
http://statistics.data.gov.uk/id/local-authority/38,Oxfordshire County Council,FOSTERING MAIN,19/04/2022,5549,B*Fostering Allowance - Regulation 38,3111163965,534.00,Personal Redacted Data
http://statistics.data.gov.uk/id/local-authority/38,Oxfordshire County Council,FOSTERING MAIN,26/04/2022,5549,B*Fostering Allowance - Regulation 38,3111166099,534.00,Personal Redacted Data
http://statistics.data.gov.uk/id/local-authority/38,Oxfordshire County Council,Planned Maintenance,01/04/2022,3787,Premises Repairs,2200979349,534.53,Wolseley UK Limited
http://statistics.data.gov.uk/id/local-authority/38,Oxfordshire County Council,SEN TRANSPORT,11/04/2022,4320,Pupil / Client Travel Reimbursement,3111158137,534.60,Personal Redacted Data
http://statistics.data.gov.uk/id/local-authority/38,Oxfordshire County Council,PLACEMENTS-FRELEVANT,19/04/2022,5558,,3111163672,534.64,Stepping Stones Projects
http://statistics.data.gov.uk/id/local-authority/38,Oxfordshire County Council,PLACEMENTS-FRELEVANT,19/04/2022,5558,,3111163673,534.64,Stepping Stones Projects
http://statistics.data.gov.uk/id/local-authority/38,Oxfordshire County Council,Support at Home U65 Learning Disability,11/04/2022,5899,Social Care - Direct Payments,3111156421,534.88,Purple Conversation Com In Co (DP)
http://statistics.data.gov.uk/id/local-authority/38,Oxfordshire County Council,Support at Home 65+ Memory & Cognition,12/04/2022,5686,,3111162371,535.00,Orders of St John
http://statistics.data.gov.uk/id/local-authority/38,Oxfordshire County Council,Support at Home U65 Physical Support,26/04/2022,5699,,3111166595,535.38,Care Hearted Ltd
http://statistics.data.gov.uk/id/local-authority/38,Oxfordshire County Council,Support at Home 65+ Physical Support,08/04/2022,5693,,3111155128,535.50,Enable Health Ltd
http://statistics.data.gov.uk/id/local-authority/38,Oxfordshire County Council,Support at Home U65 Learning Disability,26/04/2022,5689,,3111167045,535.56,Amber Healthcare Personnel Ltd
http://statistics.data.gov.uk/id/local-authority/38,Oxfordshire County Council,FOSTERING MAIN,05/04/2022,5541,B*Foster Parents,3111153919,536.00,Personal Redacted Data
http://statistics.data.gov.uk/id/local-authority/38,Oxfordshire County Council,FOSTERING MAIN,05/04/2022,5541,B*Foster Parents,3111153920,536.00,Personal Redacted Data
http://statistics.data.gov.uk/id/local-authority/38,Oxfordshire County Council,FOSTERING MAIN,11/04/2022,5541,B*Foster Parents,3111156535,536.00,Personal Redacted Data
http://statistics.data.gov.uk/id/local-authority/38,Oxfordshire County Council,FOSTERING MAIN,11/04/2022,5541,B*Foster Parents,3111156537,536.00,Personal Redacted Data
http://statistics.data.gov.uk/id/local-authority/38,Oxfordshire County Council,FOSTERING MAIN,19/04/2022,5541,B*Foster Parents,3111163948,536.00,Personal Redacted Data
http://statistics.data.gov.uk/id/local-authority/38,Oxfordshire County Council,FOSTERING MAIN,19/04/2022,5541,B*Foster Parents,3111163950,536.00,Personal Redacted Data
http://statistics.data.gov.uk/id/local-authority/38,Oxfordshire County Council,Support at Home U65 Physical Support,11/04/2022,5899,Social Care - Direct Payments,3111155994,536.00,Personal Redacted Data
http://statistics.data.gov.uk/id/local-authority/38,Oxfordshire County Council,LANDLORD & TENANT,27/04/2022,4001,Uniform Business Rates,3500083232,536.00,Oxford City Council
http://statistics.data.gov.uk/id/local-authority/38,Oxfordshire County Council,Support at Home U65 Learning Disability,11/04/2022,5899,Social Care - Direct Payments,3111156045,536.00,Personal Redacted Data
http://statistics.data.gov.uk/id/local-authority/38,Oxfordshire County Council,Vulnerable Learners,25/04/2022,4940,Other Services,2200980366,536.00,Vanessa Sibley - Aspire Early Years
http://statistics.data.gov.uk/id/local-authority/38,Oxfordshire County Council,SEN TRANSPORT,12/04/2022,4320,Pupil / Client Travel Reimbursement,3111162758,536.69,Personal Redacted Data
http://statistics.data.gov.uk/id/local-authority/38,Oxfordshire County Council,SEN TRANSPORT,21/04/2022,4320,Pupil / Client Travel Reimbursement,3111164791,536.69,Personal Redacted Data
http://statistics.data.gov.uk/id/local-authority/38,Oxfordshire County Council,Support at Home 65+ Physical Support,26/04/2022,5698,,3111167477,537.22,KCARE NURSING AGENCY
http://statistics.data.gov.uk/id/local-authority/38,Oxfordshire County Council,TRANSLATION,04/04/2022,5668,Technical and Professional Consultant F,2200975170,537.33,K International PLC
http://statistics.data.gov.uk/id/local-authority/38,Oxfordshire County Council,Support at Home 65+ Physical Support,26/04/2022,5698,,3111167554,537.82,Oxford Private Care
http://statistics.data.gov.uk/id/local-authority/38,Oxfordshire County Council,Support at Home 65+ Physical Support,14/04/2022,5696,,3111163279,538.08,Orders of St John Care Trust
http://statistics.data.gov.uk/id/local-authority/38,Oxfordshire County Council,FOSTERING MAIN,26/04/2022,5549,B*Fostering Allowance - Regulation 38,3111166546,538.80,Personal Redacted Data
http://statistics.data.gov.uk/id/local-authority/38,Oxfordshire County Council,GRASS CUTTING DIST.,12/04/2022,5526,Payments to Private Contractors,3111158242,538.94,Claydon with Clattercote Parish Cou
http://statistics.data.gov.uk/id/local-authority/38,Oxfordshire County Council,FPT NORTH,05/04/2022,5394,Other Expenses,3111154038,539.00,Personal Redacted Data
http://statistics.data.gov.uk/id/local-authority/38,Oxfordshire County Council,FOSTERING MAIN,05/04/2022,5573,,3111154018,539.14,Personal Redacted Data
http://statistics.data.gov.uk/id/local-authority/38,Oxfordshire County Council,Restorative Project Ring Fenced Funding,01/04/2022,3103,Other Training Courses and Qualification,2200976301,539.64,The Mint House
http://statistics.data.gov.uk/id/local-authority/38,Oxfordshire County Council,Support at Home U65 Learning Disability,12/04/2022,5690,,3111159092,539.66,Oxford Wholefoods
http://statistics.data.gov.uk/id/local-authority/38,Oxfordshire County Council,Community Support Service Banbury,12/04/2022,5227,Other Transport Arrangements,3111158295,540.00,A2B Castle Cars Ltd
http://statistics.data.gov.uk/id/local-authority/38,Oxfordshire County Council,Swindon Adoption Support Fund,04/04/2022,4861,Hired and Contracted Services,2200975104,540.00,Joanna Cowley
http://statistics.data.gov.uk/id/local-authority/38,Oxfordshire County Council,Support at Home U65 Learning Disability,22/04/2022,5227,Other Transport Arrangements,3111165302,540.00,The Oxfordshire Taxi Company Ltd T/
http://statistics.data.gov.uk/id/local-authority/38,Oxfordshire County Council,SEN TRANSPORT,22/04/2022,5227,Other Transport Arrangements,3111165308,540.00,The Oxfordshire Taxi Company Ltd T/
http://statistics.data.gov.uk/id/local-authority/38,Oxfordshire County Council,COMMUNITY & ROAD SAFETY,06/04/2022,3103,Other Training Courses and Qualification,2200976486,540.00,Windrush Bike Project CIC
http://statistics.data.gov.uk/id/local-authority/38,Oxfordshire County Council,LANDLORD & TENANT,01/04/2022,4001,Uniform Business Rates,3500082455,540.25,Oxford City Council
http://statistics.data.gov.uk/id/local-authority/38,Oxfordshire County Council,Independent Foster,12/04/2022,5559,,3111158188,541.00,BY THE BRIDGE
http://statistics.data.gov.uk/id/local-authority/38,Oxfordshire County Council,Support at Home 65+ Physical Support,26/04/2022,5699,,3111166816,541.26,Mega Resources Ltd
http://statistics.data.gov.uk/id/local-authority/38,Oxfordshire County Council,Support at Home U65 Physical Support,05/04/2022,5899,Social Care - Direct Payments,3111153863,541.66,Purple Conversation Com In Co (DP)
http://statistics.data.gov.uk/id/local-authority/38,Oxfordshire County Council,Support at Home 65+ Physical Support,26/04/2022,5689,,3111167571,542.04,Greigcare Home Service
http://statistics.data.gov.uk/id/local-authority/38,Oxfordshire County Council,Support at Home 65+ Learning Disability,26/04/2022,5689,,3111167576,542.29,Greigcare Home Service
http://statistics.data.gov.uk/id/local-authority/38,Oxfordshire County Council,TRADING STANDARDS,06/04/2022,5668,Technical and Professional Consultant F,2200976518,542.43,Slough Borough Council
http://statistics.data.gov.uk/id/local-authority/38,Oxfordshire County Council,Support at Home 65+ Physical Support,27/04/2022,5693,,3111168171,542.64,A CARING HAND LTD
http://statistics.data.gov.uk/id/local-authority/38,Oxfordshire County Council,Support at Home U65 Learning Disability,11/04/2022,5899,Social Care - Direct Payments,3111156412,543.08,Purple Conversation Com In Co (DP)
http://statistics.data.gov.uk/id/local-authority/38,Oxfordshire County Council,Support at Home 65+ Physical Support,11/04/2022,5899,Social Care - Direct Payments,3111156755,543.08,Purple Conversation Com In Co (DP)
http://statistics.data.gov.uk/id/local-authority/38,Oxfordshire County Council,Support at Home U65 Learning Disability,11/04/2022,5899,Social Care - Direct Payments,3111157326,543.08,Purple Conversation Com In Co (DP)
http://statistics.data.gov.uk/id/local-authority/38,Oxfordshire County Council,Support at Home U65 Learning Disability,12/04/2022,5688,,3111159594,543.18,Autism at Kingwood Limited
http://statistics.data.gov.uk/id/local-authority/38,Oxfordshire County Council,Delegated Health Tasks  - Over 65,01/04/2022,5691,,3111153707,543.20,The Caring Company (Oxon)
http://statistics.data.gov.uk/id/local-authority/38,Oxfordshire County Council,Delegated Health Tasks  - Over 65,14/04/2022,5691,,3111163541,543.20,The Caring Company (Oxon)
http://statistics.data.gov.uk/id/local-authority/38,Oxfordshire County Council,TRANSPORT COSTS,12/04/2022,5227,Other Transport Arrangements,3111158342,544.00,Lightway Services Ltd
http://statistics.data.gov.uk/id/local-authority/38,Oxfordshire County Council,Support at Home 65+ Physical Support,11/04/2022,5899,Social Care - Direct Payments,3111156275,544.00,Personal Redacted Data
http://statistics.data.gov.uk/id/local-authority/38,Oxfordshire County Council,TRAFF SIGNALS MTCE,11/04/2022,4531,Materials,2200978302,544.67,Telent Technology Services Limited
http://statistics.data.gov.uk/id/local-authority/38,Oxfordshire County Council,Community Support Serv Sustainability Fd,05/04/2022,5520,Payments to Voluntary bodies,3111154592,545.00,Green Pastures Christian NH
http://statistics.data.gov.uk/id/local-authority/38,Oxfordshire County Council,Support at Home U65 Learning Disability,26/04/2022,5689,,3111167839,545.64,PLL Care Services
http://statistics.data.gov.uk/id/local-authority/38,Oxfordshire County Council,Support at Home 65+ Physical Support,20/04/2022,5693,,3111164578,546.00,BE WELL CARE LTD
http://statistics.data.gov.uk/id/local-authority/38,Oxfordshire County Council,POST 16 SEN,14/04/2022,4330,Transport to School Activities,3111163414,546.00,Vine Community Services Ltd T/A
http://statistics.data.gov.uk/id/local-authority/38,Oxfordshire County Council,POST18 UASC DCSF FND,11/04/2022,4685,Clothing and Uniforms,9300055329,546.05,OCC SS Oxford City Div 1 Cash
http://statistics.data.gov.uk/id/local-authority/38,Oxfordshire County Council,FAMILY TIME TEAM,13/04/2022,5554,Childrens' Social Care - Direct Payments,2200978868,546.26,BDP Social Care LTD
http://statistics.data.gov.uk/id/local-authority/38,Oxfordshire County Council,FAMILY TIME TEAM,13/04/2022,5554,Childrens' Social Care - Direct Payments,2200978872,546.26,BDP Social Care LTD
http://statistics.data.gov.uk/id/local-authority/38,Oxfordshire County Council,FAMILY TIME TEAM,13/04/2022,5554,Childrens' Social Care - Direct Payments,2200978883,546.26,BDP Social Care LTD
http://statistics.data.gov.uk/id/local-authority/38,Oxfordshire County Council,FAMILY TIME TEAM,13/04/2022,5554,Childrens' Social Care - Direct Payments,2200978884,546.26,BDP Social Care LTD
http://statistics.data.gov.uk/id/local-authority/38,Oxfordshire County Council,FAMILY TIME TEAM,13/04/2022,5554,Childrens' Social Care - Direct Payments,2200978886,546.26,BDP Social Care LTD
http://statistics.data.gov.uk/id/local-authority/38,Oxfordshire County Council,Support at Home U65 Physical Support,26/04/2022,5689,,3111167354,546.33,Oxfordshire Crossroads
http://statistics.data.gov.uk/id/local-authority/38,Oxfordshire County Council,Planned Maintenance,20/04/2022,3787,Premises Repairs,2200979511,546.50,Darren Bryan Security Services
http://statistics.data.gov.uk/id/local-authority/38,Oxfordshire County Council,VOIDS/VACANCY COSTS,12/04/2022,3945,Rent,3111162647,546.51,Cherwell District Council
http://statistics.data.gov.uk/id/local-authority/38,Oxfordshire County Council,VOIDS/VACANCY COSTS,12/04/2022,3945,Rent,3111162648,546.51,Cherwell District Council
http://statistics.data.gov.uk/id/local-authority/38,Oxfordshire County Council,ON ST PARK OXFD SPA,21/04/2022,5091,Postage and Delivery,2200979745,546.59,Royal Mail Retail
http://statistics.data.gov.uk/id/local-authority/38,Oxfordshire County Council,Support at Home U65 Physical Support,26/04/2022,5698,,3111167135,546.82,Acquire Care Ltd
http://statistics.data.gov.uk/id/local-authority/38,Oxfordshire County Council,Support at Home U65 Learning Disability,26/04/2022,5682,,3111166963,546.89,The Brandon Trust
http://statistics.data.gov.uk/id/local-authority/38,Oxfordshire County Council,Support at Home 65+ Physical Support,14/04/2022,5696,,3111163297,546.96,Orders of St John Care Trust
http://statistics.data.gov.uk/id/local-authority/38,Oxfordshire County Council,Support at Home 65+ Memory & Cognition,26/04/2022,5699,,3111166924,546.98,YOD Ltd
http://statistics.data.gov.uk/id/local-authority/38,Oxfordshire County Council,Support at Home 65+ Physical Support,26/04/2022,5689,,3111167733,547.09,My Carer Ltd
http://statistics.data.gov.uk/id/local-authority/38,Oxfordshire County Council,LANDLORD & TENANT,07/04/2022,8004,Design Consultant,2200976656,547.11,Comensura Ltd
http://statistics.data.gov.uk/id/local-authority/38,Oxfordshire County Council,Support at Home U65 Physical Support,11/04/2022,5899,Social Care - Direct Payments,3111156669,547.20,Purple Conversation Com In Co (DP)
http://statistics.data.gov.uk/id/local-authority/38,Oxfordshire County Council,Support at Home 65+ Physical Support,26/04/2022,5689,,3111167769,547.34,Oasis Private Care Ltd
http://statistics.data.gov.uk/id/local-authority/38,Oxfordshire County Council,COUNTYWIDE COSTS,26/04/2022,4070,Cleaning services,2200980501,547.50,JKG Independent Services LTD
http://statistics.data.gov.uk/id/local-authority/38,Oxfordshire County Council,MARLBOROUGH,07/04/2022,4450,Disability Aids and Equipment,2200977047,547.61,Rentokil Hygiene
http://statistics.data.gov.uk/id/local-authority/38,Oxfordshire County Council,Support at Home 65+ Memory & Cognition,29/04/2022,5693,,3111168779,548.10,Pioneering Care Bicester Limited
http://statistics.data.gov.uk/id/local-authority/38,Oxfordshire County Council,Family Solutions Plus Non-staff - Centra,12/04/2022,5365,Non-Staff Subsistence and Expenses,9300055335,549.20,OCC SS Oxford City Div 1 Cash
http://statistics.data.gov.uk/id/local-authority/38,Oxfordshire County Council,Family Solutions Plus Non-staff - Centra,19/04/2022,4940,Other Services,2200979269,549.44,Completely Care Ltd
http://statistics.data.gov.uk/id/local-authority/38,Oxfordshire County Council,Support at Home 65+ Physical Support,26/04/2022,5689,,3111167826,549.87,PLL Care Services
http://statistics.data.gov.uk/id/local-authority/38,Oxfordshire County Council,SEN Miscellaneous Expenditure,20/04/2022,4861,Hired and Contracted Services,2200979415,550.00,Achieve Occupational Therapy Ltd
http://statistics.data.gov.uk/id/local-authority/38,Oxfordshire County Council,Family Solutions Plus Non-staff - North,19/04/2022,5227,Other Transport Arrangements,3111164470,550.00,Cherwell Cars
http://statistics.data.gov.uk/id/local-authority/38,Oxfordshire County Council,Swindon Adoption Support Fund,05/04/2022,6500,Government Grants (Revenue),2200975691,550.00,Personal Redacted Data
http://statistics.data.gov.uk/id/local-authority/38,Oxfordshire County Council,LEGAL SERVICES,12/04/2022,5251,Legal Costs,2200978499,550.00,David Marusza
http://statistics.data.gov.uk/id/local-authority/38,Oxfordshire County Council,LEGAL SERVICES,07/04/2022,5251,Legal Costs,2200976979,550.00,Personal Redacted Data
http://statistics.data.gov.uk/id/local-authority/38,Oxfordshire County Council,LEGAL SERVICES,08/04/2022,5251,Legal Costs,2200977907,550.00,Personal Redacted Data
http://statistics.data.gov.uk/id/local-authority/38,Oxfordshire County Council,LEGAL SERVICES,01/04/2022,5251,Legal Costs,2200980031,550.00,Personal Redacted Data
http://statistics.data.gov.uk/id/local-authority/38,Oxfordshire County Council,Reading Adoption Support Fund,04/04/2022,4861,Hired and Contracted Services,2200975399,550.00,Louise Shuttleworth Psychotherapy
http://statistics.data.gov.uk/id/local-authority/38,Oxfordshire County Council,LEGAL SERVICES,01/04/2022,5251,Legal Costs,2200979677,550.00,Ms Sian Cox
http://statistics.data.gov.uk/id/local-authority/38,Oxfordshire County Council,LEGAL SERVICES,07/04/2022,5251,Legal Costs,2200976950,550.00,Oliver Powell (Harcourt)
http://statistics.data.gov.uk/id/local-authority/38,Oxfordshire County Council,LEGAL SERVICES,07/04/2022,5251,Legal Costs,2200976967,550.00,Oliver Powell (Harcourt)
http://statistics.data.gov.uk/id/local-authority/38,Oxfordshire County Council,LEGAL SERVICES,22/04/2022,5251,Legal Costs,2200980042,550.00,Paige Campbell
http://statistics.data.gov.uk/id/local-authority/38,Oxfordshire County Council,LEGAL SERVICES,22/04/2022,5251,Legal Costs,2200979996,550.00,Vicky Reynolds
http://statistics.data.gov.uk/id/local-authority/38,Oxfordshire County Council,LEGAL SERVICES,28/04/2022,5251,Legal Costs,2200981639,550.00,Vicky Reynolds
http://statistics.data.gov.uk/id/local-authority/38,Oxfordshire County Council,LEGAL SERVICES,28/04/2022,5251,Legal Costs,2200981650,550.00,Vicky Reynolds
http://statistics.data.gov.uk/id/local-authority/38,Oxfordshire County Council,Support at Home U65 Learning Disability,26/04/2022,5682,,3111166915,550.49,The Brandon Trust
http://statistics.data.gov.uk/id/local-authority/38,Oxfordshire County Council,Support at Home 65+ Mental Health,11/04/2022,5899,Social Care - Direct Payments,3111156672,551.08,Purple Conversation Com In Co (DP)
http://statistics.data.gov.uk/id/local-authority/38,Oxfordshire County Council,Support at Home U65 Mental Health,26/04/2022,5696,,3111166663,551.38,All Care GB Ltd
http://statistics.data.gov.uk/id/local-authority/38,Oxfordshire County Council,Support at Home 65+ Physical Support,26/04/2022,5696,,3111166756,551.38,All Care GB Ltd
http://statistics.data.gov.uk/id/local-authority/38,Oxfordshire County Council,Support at Home 65+ Physical Support,26/04/2022,5696,,3111166762,551.38,All Care GB Ltd
http://statistics.data.gov.uk/id/local-authority/38,Oxfordshire County Council,Support at Home 65+ Physical Support,26/04/2022,5696,,3111166770,551.38,All Care GB Ltd
http://statistics.data.gov.uk/id/local-authority/38,Oxfordshire County Council,Support at Home 65+ Physical Support,26/04/2022,5699,,3111166763,551.69,Home Helpers Care Ltd
http://statistics.data.gov.uk/id/local-authority/38,Oxfordshire County Council,SEN TRANSPORT,21/04/2022,5227,Other Transport Arrangements,3111164747,552.00,Banbury Taxis
http://statistics.data.gov.uk/id/local-authority/38,Oxfordshire County Council,PLACEMENTS-FRELEVANT,19/04/2022,5558,,3111163671,552.46,Stepping Stones Projects
http://statistics.data.gov.uk/id/local-authority/38,Oxfordshire County Council,PLACEMENTS-FRELEVANT,19/04/2022,5558,,3111163674,552.46,Stepping Stones Projects
http://statistics.data.gov.uk/id/local-authority/38,Oxfordshire County Council,PLACEMENTS-FRELEVANT,19/04/2022,5558,,3111163675,552.46,Stepping Stones Projects
http://statistics.data.gov.uk/id/local-authority/38,Oxfordshire County Council,PLACEMENTS-FRELEVANT,19/04/2022,5558,,3111163676,552.46,Stepping Stones Projects
http://statistics.data.gov.uk/id/local-authority/38,Oxfordshire County Council,SEN TRANSPORT,12/04/2022,4320,Pupil / Client Travel Reimbursement,3111162703,552.60,Personal Redacted Data
http://statistics.data.gov.uk/id/local-authority/38,Oxfordshire County Council,SEN TRANSPORT,12/04/2022,4320,Pupil / Client Travel Reimbursement,3111162724,552.60,Personal Redacted Data
http://statistics.data.gov.uk/id/local-authority/38,Oxfordshire County Council,SHARED LIVES,14/04/2022,5394,Other Expenses,9300055360,553.21,OCC SS Vale of White Horse Bank
http://statistics.data.gov.uk/id/local-authority/38,Oxfordshire County Council,PLACEMENTS-FRELEVANT,19/04/2022,5558,,3111163677,553.57,Stepping Stones Projects
http://statistics.data.gov.uk/id/local-authority/38,Oxfordshire County Council,PLACEMENTS-FRELEVANT,19/04/2022,5558,,3111163678,553.57,Stepping Stones Projects
http://statistics.data.gov.uk/id/local-authority/38,Oxfordshire County Council,POST 16 SEN,22/04/2022,4330,Transport to School Activities,3111164990,554.00,Bicester Cars UK Ltd
http://statistics.data.gov.uk/id/local-authority/38,Oxfordshire County Council,FOSTERING MAIN,26/04/2022,5227,Other Transport Arrangements,3111166519,554.18,Personal Redacted Data
http://statistics.data.gov.uk/id/local-authority/38,Oxfordshire County Council,LEGAL BUDGET,01/04/2022,5251,Legal Costs,2200974726,554.40,Tetum Solution
http://statistics.data.gov.uk/id/local-authority/38,Oxfordshire County Council,GRASS CUTTING DIST.,12/04/2022,5526,Payments to Private Contractors,3111158244,554.73,Cuddesdon & Denton Parish Council
http://statistics.data.gov.uk/id/local-authority/38,Oxfordshire County Council,Support at Home U65 Physical Support,01/04/2022,5693,,3111153550,555.87,A CARING HAND LTD
http://statistics.data.gov.uk/id/local-authority/38,Oxfordshire County Council,Support at Home 65+ Physical Support,01/04/2022,5693,,3111153559,555.87,A CARING HAND LTD
http://statistics.data.gov.uk/id/local-authority/38,Oxfordshire County Council,Support at Home 65+ Physical Support,01/04/2022,5693,,3111153569,555.87,A CARING HAND LTD
http://statistics.data.gov.uk/id/local-authority/38,Oxfordshire County Council,Support at Home 65+ Physical Support,01/04/2022,5693,,3111153573,555.87,A CARING HAND LTD
http://statistics.data.gov.uk/id/local-authority/38,Oxfordshire County Council,Support at Home U65 Physical Support,27/04/2022,5693,,3111168162,555.87,A CARING HAND LTD
http://statistics.data.gov.uk/id/local-authority/38,Oxfordshire County Council,Support at Home 65+ Physical Support,27/04/2022,5693,,3111168180,555.87,A CARING HAND LTD
http://statistics.data.gov.uk/id/local-authority/38,Oxfordshire County Council,Support at Home 65+ Physical Support,27/04/2022,5693,,3111168184,555.87,A CARING HAND LTD
http://statistics.data.gov.uk/id/local-authority/38,Oxfordshire County Council,Support at Home 65+ Subsantance Abuse,26/04/2022,5689,,3111167924,555.88,Response Organisation
http://statistics.data.gov.uk/id/local-authority/38,Oxfordshire County Council,Youth Justice & Exploitation,27/04/2022,5665,B*Fostering Project Care Fee,9300055436,555.95,OCC SS Oxford City Div 1 Cash
http://statistics.data.gov.uk/id/local-authority/38,Oxfordshire County Council,Support at Home 65+ Memory & Cognition,26/04/2022,5698,,3111167357,555.96,Day & Night Care Assistance
http://statistics.data.gov.uk/id/local-authority/38,Oxfordshire County Council,LEGAL BUDGET,05/04/2022,5251,Legal Costs,2200975692,556.06,Medlaw Limited
http://statistics.data.gov.uk/id/local-authority/38,Oxfordshire County Council,Support at Home 65+ Physical Support,26/04/2022,5698,,3111167552,556.07,Oxford Private Care
http://statistics.data.gov.uk/id/local-authority/38,Oxfordshire County Council,Support at Home 65+ Memory & Cognition,14/04/2022,5696,,3111163309,556.85,Orders of St John Care Trust
http://statistics.data.gov.uk/id/local-authority/38,Oxfordshire County Council,CHC Fast Track - Care Homes - Over 65,12/04/2022,5687,,3111159764,557.14,Fewcott Healthcare Ltd
http://statistics.data.gov.uk/id/local-authority/38,Oxfordshire County Council,Support at Home U65 Learning Disability,11/04/2022,5899,Social Care - Direct Payments,3111156003,557.60,Personal Redacted Data
http://statistics.data.gov.uk/id/local-authority/38,Oxfordshire County Council,Support at Home 65+ Physical Support,06/04/2022,5693,,3111154623,557.97,CARE & CARERS LTD
http://statistics.data.gov.uk/id/local-authority/38,Oxfordshire County Council,Continuing Care - Support at Home - U65,06/04/2022,5691,,3111154733,558.00,Home Instead Senior Care Kidlington
http://statistics.data.gov.uk/id/local-authority/38,Oxfordshire County Council,Support at Home U65 Learning Disability,26/04/2022,5682,,3111166878,558.39,The Brandon Trust
http://statistics.data.gov.uk/id/local-authority/38,Oxfordshire County Council,Support at Home 65+ Physical Support,11/04/2022,5899,Social Care - Direct Payments,3111155860,558.48,Personal Redacted Data
http://statistics.data.gov.uk/id/local-authority/38,Oxfordshire County Council,Support at Home 65+ Physical Support,26/04/2022,5693,,3111165623,558.60,CARESTREAM HOME CARE
http://statistics.data.gov.uk/id/local-authority/38,Oxfordshire County Council,Support at Home 65+ Memory & Cognition,26/04/2022,5689,,3111167870,558.81,Prestige Nursing Ltd
http://statistics.data.gov.uk/id/local-authority/38,Oxfordshire County Council,UASC 16&17,05/04/2022,5549,B*Fostering Allowance - Regulation 38,3111153937,558.90,Personal Redacted Data
http://statistics.data.gov.uk/id/local-authority/38,Oxfordshire County Council,FOSTERING MAIN,26/04/2022,5549,B*Fostering Allowance - Regulation 38,3111166314,558.90,Personal Redacted Data
http://statistics.data.gov.uk/id/local-authority/38,Oxfordshire County Council,Support at Home 65+ Physical Support,26/04/2022,5699,,3111166802,558.93,Mega Resources Ltd
http://statistics.data.gov.uk/id/local-authority/38,Oxfordshire County Council,Support at Home U65 Mental Health,11/04/2022,5899,Social Care - Direct Payments,3111156359,559.08,Purple Conversation Com In Co (DP)
http://statistics.data.gov.uk/id/local-authority/38,Oxfordshire County Council,Support at Home 65+ Physical Support,26/04/2022,5689,,3111167668,559.22,Home Helpers Care Ltd
http://statistics.data.gov.uk/id/local-authority/38,Oxfordshire County Council,PREMISES,13/04/2022,4111,Security Costs,2200978887,560.00,Darren Bryan Security Services
http://statistics.data.gov.uk/id/local-authority/38,Oxfordshire County Council,LAC PUPIL PREMIUM,25/04/2022,5380,"Author, Speaker and Lecturer Fees",2200980299,560.00,Horsewyse
http://statistics.data.gov.uk/id/local-authority/38,Oxfordshire County Council,Oxfordshire Adoption Support Fund,20/04/2022,4861,Hired and Contracted Services,2200979445,560.00,PACT (PARENTS & CHILDREN TOGETHER)
http://statistics.data.gov.uk/id/local-authority/38,Oxfordshire County Council,West Berkshire Adoption Support Fund,20/04/2022,4861,Hired and Contracted Services,2200979450,560.00,PACT (PARENTS & CHILDREN TOGETHER)
http://statistics.data.gov.uk/id/local-authority/38,Oxfordshire County Council,Wokingham Adoption Support Fund,06/04/2022,4861,Hired and Contracted Services,2200976257,560.00,The Paperclip Group
http://statistics.data.gov.uk/id/local-authority/38,Oxfordshire County Council,Support at Home 65+ Physical Support,11/04/2022,5899,Social Care - Direct Payments,3111155815,560.00,Personal Redacted Data
http://statistics.data.gov.uk/id/local-authority/38,Oxfordshire County Council,Support at Home U65 Physical Support,26/04/2022,5689,,3111167080,560.33,Care Outlook Ltd
http://statistics.data.gov.uk/id/local-authority/38,Oxfordshire County Council,FAM GRP CONFERENCES,12/04/2022,4940,Other Services,2200978670,561.00,Emma Wood
http://statistics.data.gov.uk/id/local-authority/38,Oxfordshire County Council,LANDLORD & TENANT,27/04/2022,4001,Uniform Business Rates,3500083299,561.00,West Oxfordshire District Council
http://statistics.data.gov.uk/id/local-authority/38,Oxfordshire County Council,Support at Home U65 Physical Support,11/04/2022,5899,Social Care - Direct Payments,3111156444,562.28,Purple Conversation Com In Co (DP)
http://statistics.data.gov.uk/id/local-authority/38,Oxfordshire County Council,SM DISABILITIES,26/04/2022,5554,Childrens' Social Care - Direct Payments,3111166234,562.43,Personal Redacted Data
http://statistics.data.gov.uk/id/local-authority/38,Oxfordshire County Council,Support at Home 65+ Physical Support,29/04/2022,5693,,3111168758,562.50,HEALTHCARE ACCESS LTD
http://statistics.data.gov.uk/id/local-authority/38,Oxfordshire County Council,Planned Maintenance,01/04/2022,3787,Premises Repairs,2200975612,562.50,Metro Rod Ltd (Oxon & West Bucks)
http://statistics.data.gov.uk/id/local-authority/38,Oxfordshire County Council,Care Homes - Over 65 Physical Sypport,12/04/2022,5685,B*Cycle tracks,3111160234,562.80,Cherwood House Care Centre
http://statistics.data.gov.uk/id/local-authority/38,Oxfordshire County Council,Support at Home 65+ Physical Support,26/04/2022,5689,,3111167234,563.10,Caremark (West Oxfordshire & Cherwe
http://statistics.data.gov.uk/id/local-authority/38,Oxfordshire County Council,Support at Home 65+ Physical Support,26/04/2022,5689,,3111167102,563.35,Care Outlook Ltd
http://statistics.data.gov.uk/id/local-authority/38,Oxfordshire County Council,Delegated Health Tasks  - Over 65,08/04/2022,5691,,3111155223,563.60,Acquire Care Ltd
http://statistics.data.gov.uk/id/local-authority/38,Oxfordshire County Council,Support at Home U65 Learning Disability,11/04/2022,5899,Social Care - Direct Payments,3111157053,563.72,Purple Conversation Com In Co (DP)
http://statistics.data.gov.uk/id/local-authority/38,Oxfordshire County Council,Support at Home U65 Physical Support,11/04/2022,5899,Social Care - Direct Payments,3111155844,564.00,Personal Redacted Data
http://statistics.data.gov.uk/id/local-authority/38,Oxfordshire County Council,Support at Home U65 Learning Disability,22/04/2022,5227,Other Transport Arrangements,3111165258,564.17,The Oxfordshire Taxi Company Ltd T/
http://statistics.data.gov.uk/id/local-authority/38,Oxfordshire County Council,L&D CORE PROGRAMME,27/04/2022,3103,Other Training Courses and Qualification,2200981466,564.20,Agiito Limited
http://statistics.data.gov.uk/id/local-authority/38,Oxfordshire County Council,Support at Home U65 Learning Disability,14/04/2022,5696,,3111163291,565.33,Orders of St John Care Trust
http://statistics.data.gov.uk/id/local-authority/38,Oxfordshire County Council,LANDLORD & TENANT,05/04/2022,4001,Uniform Business Rates,3500082867,565.50,West Oxfordshire District Council
http://statistics.data.gov.uk/id/local-authority/38,Oxfordshire County Council,Support at Home U65 Learning Disability,11/04/2022,5899,Social Care - Direct Payments,3111156343,565.88,Personal Redacted Data
http://statistics.data.gov.uk/id/local-authority/38,Oxfordshire County Council,Support at Home 65+ Physical Support,27/04/2022,5693,,3111168204,566.98,CARE & CARERS LTD
http://statistics.data.gov.uk/id/local-authority/38,Oxfordshire County Council,Community Support Service - Abingdon,05/04/2022,2040,Agency Staff,2200975433,567.00,Completely Care Ltd
http://statistics.data.gov.uk/id/local-authority/38,Oxfordshire County Council,Support at Home 65+ Physical Support,29/04/2022,5693,,3111168813,567.29,XPERIENCE RECRUITMENT LIMITED
http://statistics.data.gov.uk/id/local-authority/38,Oxfordshire County Council,Support at Home 65+ Memory & Cognition,11/04/2022,5899,Social Care - Direct Payments,3111156324,567.68,Personal Redacted Data
http://statistics.data.gov.uk/id/local-authority/38,Oxfordshire County Council,SEN TRANSPORT,21/04/2022,4320,Pupil / Client Travel Reimbursement,3111164784,568.26,Personal Redacted Data
http://statistics.data.gov.uk/id/local-authority/38,Oxfordshire County Council,SEN TRANSPORT,21/04/2022,4320,Pupil / Client Travel Reimbursement,3111164793,568.26,Personal Redacted Data
http://statistics.data.gov.uk/id/local-authority/38,Oxfordshire County Council,UASC 16&17,04/04/2022,4685,Clothing and Uniforms,9300055266,568.47,OCC SS Oxford City Div 1 Cash
http://statistics.data.gov.uk/id/local-authority/38,Oxfordshire County Council,Support at Home U65 Learning Disability,26/04/2022,5689,,3111167800,568.49,Pechiv Ltd
http://statistics.data.gov.uk/id/local-authority/38,Oxfordshire County Council,Youth Justice & Exploitation,20/04/2022,5665,B*Fostering Project Care Fee,9300055368,568.60,OCC SS Oxford City Div 1 Cash
http://statistics.data.gov.uk/id/local-authority/38,Oxfordshire County Council,MAINSTREAM-PRIMARY,26/04/2022,4320,Pupil / Client Travel Reimbursement,3111165643,568.89,Personal Redacted Data
http://statistics.data.gov.uk/id/local-authority/38,Oxfordshire County Council,Support at Home 65+ Physical Support,26/04/2022,5689,,3111167110,569.16,Care Outlook Ltd
http://statistics.data.gov.uk/id/local-authority/38,Oxfordshire County Council,Support at Home 65+ Physical Support,26/04/2022,5689,,3111167523,569.76,Goldsmith Personnel Ltd
http://statistics.data.gov.uk/id/local-authority/38,Oxfordshire County Council,Wokingham Adoption Support Fund,01/04/2022,4861,Hired and Contracted Services,2200974721,570.00,Heads & Hearts Ltd
http://statistics.data.gov.uk/id/local-authority/38,Oxfordshire County Council,Bracknell Adoption Support Fund,05/04/2022,4861,Hired and Contracted Services,2200975576,570.00,Heads & Hearts Ltd
http://statistics.data.gov.uk/id/local-authority/38,Oxfordshire County Council,TRANSPORT COSTS,11/04/2022,4330,Transport to School Activities,3111157579,570.00,Her Ride Limited
http://statistics.data.gov.uk/id/local-authority/38,Oxfordshire County Council,UASC 16&17,11/04/2022,5665,B*Fostering Project Care Fee,9300055331,570.15,OCC SS Oxford City Div 1 Cash
http://statistics.data.gov.uk/id/local-authority/38,Oxfordshire County Council,COUNTY PRINT FINSHRS,01/04/2022,4705,Printing,2200975897,570.37,Print & Stationery Management Co Lt
http://statistics.data.gov.uk/id/local-authority/38,Oxfordshire County Council,Support at Home U65 Other /Soc Isolation,13/04/2022,5693,,3111162974,570.49,Oasis Private Care Ltd
http://statistics.data.gov.uk/id/local-authority/38,Oxfordshire County Council,Support at Home 65+ Physical Support,22/04/2022,5693,,3111165081,570.52,Genuine Carers Ltd
http://statistics.data.gov.uk/id/local-authority/38,Oxfordshire County Council,Support at Home 65+ Physical Support,22/04/2022,5693,,3111165089,570.72,Genuine Carers Ltd
http://statistics.data.gov.uk/id/local-authority/38,Oxfordshire County Council,Support at Home U65 Learning Disability,26/04/2022,5696,,3111166768,571.08,All Care GB Ltd
http://statistics.data.gov.uk/id/local-authority/38,Oxfordshire County Council,Support at Home U65 Physical Support,11/04/2022,5899,Social Care - Direct Payments,3111157292,571.08,Purple Conversation Com In Co (DP)
http://statistics.data.gov.uk/id/local-authority/38,Oxfordshire County Council,Support at Home U65 Mental Health,11/04/2022,5899,Social Care - Direct Payments,3111157311,571.08,Purple Conversation Com In Co (DP)
http://statistics.data.gov.uk/id/local-authority/38,Oxfordshire County Council,FOSTERING MAIN,26/04/2022,5548,B*Fostering - Special Rates & Plus Amou,3111166484,571.43,Personal Redacted Data
http://statistics.data.gov.uk/id/local-authority/38,Oxfordshire County Council,Support at Home U65 Learning Disability,11/04/2022,5899,Social Care - Direct Payments,3111157379,571.56,Rosekel Resourcing Ltd
http://statistics.data.gov.uk/id/local-authority/38,Oxfordshire County Council,Support at Home U65 Learning Disability,12/04/2022,5690,,3111159016,571.80,Guideposts Trust
http://statistics.data.gov.uk/id/local-authority/38,Oxfordshire County Council,Support at Home U65 Learning Disability,11/04/2022,5899,Social Care - Direct Payments,3111155849,572.00,Personal Redacted Data
http://statistics.data.gov.uk/id/local-authority/38,Oxfordshire County Council,Support at Home 65+ Memory & Cognition,11/04/2022,5899,Social Care - Direct Payments,3111155702,572.00,Personal Redacted Data
http://statistics.data.gov.uk/id/local-authority/38,Oxfordshire County Council,LANDLORD & TENANT,13/04/2022,4001,Uniform Business Rates,3500083042,572.50,Cherwell District Council
http://statistics.data.gov.uk/id/local-authority/38,Oxfordshire County Council,LANDLORD & TENANT,01/04/2022,4001,Uniform Business Rates,3500082525,572.50,South Oxfordshire District Council
http://statistics.data.gov.uk/id/local-authority/38,Oxfordshire County Council,Independent Foster,12/04/2022,5559,,3111158202,572.55,Fostering UK Ltd
http://statistics.data.gov.uk/id/local-authority/38,Oxfordshire County Council,AGENCY RESID - DISAB,05/04/2022,5549,B*Fostering Allowance - Regulation 38,3111154484,573.00,Personal Redacted Data
http://statistics.data.gov.uk/id/local-authority/38,Oxfordshire County Council,AGENCY RESID - DISAB,11/04/2022,5549,B*Fostering Allowance - Regulation 38,3111157042,573.00,Personal Redacted Data
http://statistics.data.gov.uk/id/local-authority/38,Oxfordshire County Council,AGENCY RESID - DISAB,19/04/2022,5549,B*Fostering Allowance - Regulation 38,3111164430,573.00,Personal Redacted Data
http://statistics.data.gov.uk/id/local-authority/38,Oxfordshire County Council,AGENCY RESID - DISAB,26/04/2022,5549,B*Fostering Allowance - Regulation 38,3111166541,573.00,Personal Redacted Data
http://statistics.data.gov.uk/id/local-authority/38,Oxfordshire County Council,AGENCY RESID - DISAB,05/04/2022,5549,B*Fostering Allowance - Regulation 38,3111154225,573.00,Personal Redacted Data
http://statistics.data.gov.uk/id/local-authority/38,Oxfordshire County Council,AGENCY RESID - DISAB,11/04/2022,5549,B*Fostering Allowance - Regulation 38,3111156819,573.00,Personal Redacted Data
http://statistics.data.gov.uk/id/local-authority/38,Oxfordshire County Council,AGENCY RESID - DISAB,19/04/2022,5549,B*Fostering Allowance - Regulation 38,3111164246,573.00,Personal Redacted Data
http://statistics.data.gov.uk/id/local-authority/38,Oxfordshire County Council,AGENCY RESID - DISAB,26/04/2022,5549,B*Fostering Allowance - Regulation 38,3111166356,573.00,Personal Redacted Data
http://statistics.data.gov.uk/id/local-authority/38,Oxfordshire County Council,GRASS CUTTING DIST.,11/04/2022,5526,Payments to Private Contractors,3111155291,573.07,Ardington and Lockinge Parish Counc
http://statistics.data.gov.uk/id/local-authority/38,Oxfordshire County Council,Support at Home 65+ Physical Support,11/04/2022,5899,Social Care - Direct Payments,3111157145,573.24,Purple Conversation Com In Co (DP)
http://statistics.data.gov.uk/id/local-authority/38,Oxfordshire County Council,Planned Maintenance,01/04/2022,3787,Premises Repairs,2200975611,573.75,Metro Rod Ltd (Oxon & West Bucks)
http://statistics.data.gov.uk/id/local-authority/38,Oxfordshire County Council,LANDLORD & TENANT,27/04/2022,4001,Uniform Business Rates,3500083220,574.00,Cherwell District Council
http://statistics.data.gov.uk/id/local-authority/38,Oxfordshire County Council,LANDLORD & TENANT,27/04/2022,4001,Uniform Business Rates,3500083311,574.00,South Oxfordshire District Council
http://statistics.data.gov.uk/id/local-authority/38,Oxfordshire County Council,TRO TEAM,12/04/2022,4790,"Publicity, Promotions and Advertisement",2200978607,574.29,Tmp (Uk) Ltd
http://statistics.data.gov.uk/id/local-authority/38,Oxfordshire County Council,Support at Home 65+ Physical Support,26/04/2022,5698,,3111167451,574.41,Day & Night Care Assistance
http://statistics.data.gov.uk/id/local-authority/38,Oxfordshire County Council,FOSTERING MAIN,05/04/2022,5545,B*Fostering Enhancements - Level 2,3111154187,575.00,Personal Redacted Data
http://statistics.data.gov.uk/id/local-authority/38,Oxfordshire County Council,FOSTERING MAIN,11/04/2022,5545,B*Fostering Enhancements - Level 2,3111156432,575.00,Personal Redacted Data
http://statistics.data.gov.uk/id/local-authority/38,Oxfordshire County Council,FOSTERING MAIN,19/04/2022,5545,B*Fostering Enhancements - Level 2,3111163860,575.00,Personal Redacted Data
http://statistics.data.gov.uk/id/local-authority/38,Oxfordshire County Council,FOSTERING MAIN,26/04/2022,5545,B*Fostering Enhancements - Level 2,3111166041,575.00,Personal Redacted Data
http://statistics.data.gov.uk/id/local-authority/38,Oxfordshire County Council,SEN TRANSPORT,11/04/2022,5227,Other Transport Arrangements,3111157753,575.00,Crown Cabs Travel Ltd
http://statistics.data.gov.uk/id/local-authority/38,Oxfordshire County Council,SEN TRANSPORT,11/04/2022,5227,Other Transport Arrangements,3111157759,575.00,Crown Cabs Travel Ltd
http://statistics.data.gov.uk/id/local-authority/38,Oxfordshire County Council,SEN TRANSPORT,11/04/2022,5227,Other Transport Arrangements,3111157761,575.00,Crown Cabs Travel Ltd
http://statistics.data.gov.uk/id/local-authority/38,Oxfordshire County Council,Family Solutions Plus Non-staff - Centra,26/04/2022,5554,Childrens' Social Care - Direct Payments,2200980830,575.00,Oxford Cognitive Behavioural Therap
http://statistics.data.gov.uk/id/local-authority/38,Oxfordshire County Council,Support at Home U65 Learning Disability,11/04/2022,5227,Other Transport Arrangements,3111157985,575.00,Oxon Transport Services Ltd
http://statistics.data.gov.uk/id/local-authority/38,Oxfordshire County Council,SEN TRANSPORT,11/04/2022,5227,Other Transport Arrangements,3111157662,575.00,R & S Travel Services Ltd T/A A 2 Z
http://statistics.data.gov.uk/id/local-authority/38,Oxfordshire County Council,COMM DRAWDOWN FUNDNG,22/04/2022,8510,Other expenses,2200979988,575.00,Streetwise Services Ltd
http://statistics.data.gov.uk/id/local-authority/38,Oxfordshire County Council,Support at Home 65+ Physical Support,26/04/2022,5699,,3111166771,575.62,Home Helpers Care Ltd
http://statistics.data.gov.uk/id/local-authority/38,Oxfordshire County Council,Support at Home 65+ Physical Support,26/04/2022,5698,,3111167667,575.80,Oxfordshire Crossroads
http://statistics.data.gov.uk/id/local-authority/38,Oxfordshire County Council,Family Solutions Plus Non-staff - South,12/04/2022,5227,Other Transport Arrangements,2200978662,576.00,SMOOTH CABS LIMITED
http://statistics.data.gov.uk/id/local-authority/38,Oxfordshire County Council,COMM DRAWDOWN FUNDNG,07/04/2022,8004,Design Consultant,2200977258,576.64,AECOM Infrastructure & Environment
http://statistics.data.gov.uk/id/local-authority/38,Oxfordshire County Council,Support at Home 65+ Memory & Cognition,26/04/2022,5699,,3111166787,576.70,Kare Plus Oxford
http://statistics.data.gov.uk/id/local-authority/38,Oxfordshire County Council,Support at Home U65 Learning Disability,13/04/2022,5697,,3111162925,576.80,Stepping Stones
http://statistics.data.gov.uk/id/local-authority/38,Oxfordshire County Council,FOSTERING MAIN,05/04/2022,5541,B*Foster Parents,3111154217,577.00,Personal Redacted Data
http://statistics.data.gov.uk/id/local-authority/38,Oxfordshire County Council,FOSTERING MAIN,11/04/2022,5541,B*Foster Parents,3111156812,577.00,Personal Redacted Data
http://statistics.data.gov.uk/id/local-authority/38,Oxfordshire County Council,FOSTERING MAIN,19/04/2022,5541,B*Foster Parents,3111164237,577.00,Personal Redacted Data
http://statistics.data.gov.uk/id/local-authority/38,Oxfordshire County Council,FOSTERING MAIN,26/04/2022,5541,B*Foster Parents,3111166344,577.00,Personal Redacted Data
http://statistics.data.gov.uk/id/local-authority/38,Oxfordshire County Council,FOSTERING MAIN,05/04/2022,5541,B*Foster Parents,3111154048,577.00,Personal Redacted Data
http://statistics.data.gov.uk/id/local-authority/38,Oxfordshire County Council,FOSTERING MAIN,11/04/2022,5541,B*Foster Parents,3111156683,577.00,Personal Redacted Data
http://statistics.data.gov.uk/id/local-authority/38,Oxfordshire County Council,FOSTERING MAIN,26/04/2022,5541,B*Foster Parents,3111166193,577.00,Personal Redacted Data
http://statistics.data.gov.uk/id/local-authority/38,Oxfordshire County Council,FOSTERING MAIN,05/04/2022,5227,Other Transport Arrangements,3111154369,577.14,Personal Redacted Data
http://statistics.data.gov.uk/id/local-authority/38,Oxfordshire County Council,Support at Home 65+ Physical Support,11/04/2022,5899,Social Care - Direct Payments,3111156576,577.24,Purple Conversation Com In Co (DP)
http://statistics.data.gov.uk/id/local-authority/38,Oxfordshire County Council,Support at Home U65 HFA,11/04/2022,5899,Social Care - Direct Payments,3111156523,577.60,Purple Conversation Com In Co (DP)
http://statistics.data.gov.uk/id/local-authority/38,Oxfordshire County Council,Support at Home 65+ Physical Support,26/04/2022,5696,,3111166711,577.98,All Care GB Ltd
http://statistics.data.gov.uk/id/local-authority/38,Oxfordshire County Council,Support at Home 65+ Physical Support,26/04/2022,5696,,3111166824,577.98,All Care GB Ltd
http://statistics.data.gov.uk/id/local-authority/38,Oxfordshire County Council,FOSTERING MAIN,26/04/2022,5227,Other Transport Arrangements,3111166211,578.12,Personal Redacted Data
http://statistics.data.gov.uk/id/local-authority/38,Oxfordshire County Council,CHC Fast Track - Sup at Homes - Over 65,25/04/2022,5691,,3111165529,578.50,Joining Hands Healthcare Ltd
http://statistics.data.gov.uk/id/local-authority/38,Oxfordshire County Council,Support at Home U65 Learning Disability,12/04/2022,5690,,3111159123,578.74,Turnstyle
http://statistics.data.gov.uk/id/local-authority/38,Oxfordshire County Council,LIABILITY,13/04/2022,3153,,3111163060,578.92,OCC One Time Vendor
http://statistics.data.gov.uk/id/local-authority/38,Oxfordshire County Council,Support at Home 65+ Physical Support,06/04/2022,5693,,3111154659,580.20,TOPKARE LIMITED
http://statistics.data.gov.uk/id/local-authority/38,Oxfordshire County Council,SM DISABILITIES,26/04/2022,5554,Childrens' Social Care - Direct Payments,3111166360,580.81,Purple Conversation Com In Co (DP)
http://statistics.data.gov.uk/id/local-authority/38,Oxfordshire County Council,Support at Home U65 Learning Disability,11/04/2022,5899,Social Care - Direct Payments,3111155795,581.92,Personal Redacted Data
http://statistics.data.gov.uk/id/local-authority/38,Oxfordshire County Council,ADOPTION ALLOWANCES,05/04/2022,5664,B*Holiday Allowance,3111154550,582.30,Personal Redacted Data
http://statistics.data.gov.uk/id/local-authority/38,Oxfordshire County Council,ADOPTION ALLOWANCES,11/04/2022,5664,B*Holiday Allowance,3111155648,582.30,Personal Redacted Data
http://statistics.data.gov.uk/id/local-authority/38,Oxfordshire County Council,ADOPTION ALLOWANCES,19/04/2022,5664,B*Holiday Allowance,3111164302,582.30,Personal Redacted Data
http://statistics.data.gov.uk/id/local-authority/38,Oxfordshire County Council,ADOPTION ALLOWANCES,26/04/2022,5664,B*Holiday Allowance,3111165991,582.30,Personal Redacted Data
http://statistics.data.gov.uk/id/local-authority/38,Oxfordshire County Council,COMMUNITY & ROAD SAFETY,07/04/2022,4790,"Publicity, Promotions and Advertisement",2200976628,583.00,Global Media Group Services Ltd
http://statistics.data.gov.uk/id/local-authority/38,Oxfordshire County Council,Support at Home 65+ Physical Support,08/04/2022,5697,,3111155108,583.00,VKL Healthcare Ltd
http://statistics.data.gov.uk/id/local-authority/38,Oxfordshire County Council,WATER EATON P & R,01/04/2022,4861,Hired and Contracted Services,2200974869,583.32,Aspire Enterprise Services Ltd
http://statistics.data.gov.uk/id/local-authority/38,Oxfordshire County Council,SEN Alternative Provision,01/04/2022,4861,Hired and Contracted Services,2200975307,583.50,NISAI SATELLITE SCHOOL
http://statistics.data.gov.uk/id/local-authority/38,Oxfordshire County Council,Support at Home U65 Learning Disability,12/04/2022,5690,,3111159046,583.84,MacIntyre Care (Womaston)
http://statistics.data.gov.uk/id/local-authority/38,Oxfordshire County Council,Support at Home U65 Learning Disability,12/04/2022,5690,,3111159068,583.84,MacIntyre Care (Womaston)
http://statistics.data.gov.uk/id/local-authority/38,Oxfordshire County Council,Support at Home 65+ Learning Disability,12/04/2022,5690,,3111159077,583.84,MacIntyre Care (Womaston)
http://statistics.data.gov.uk/id/local-authority/38,Oxfordshire County Council,Support at Home U65 Learning Disability,12/04/2022,5690,,3111159081,583.84,MacIntyre Care (Womaston)
http://statistics.data.gov.uk/id/local-authority/38,Oxfordshire County Council,Support at Home 65+ Physical Support,26/04/2022,5689,,3111167652,583.93,Home Helpers Care Ltd
http://statistics.data.gov.uk/id/local-authority/38,Oxfordshire County Council,Support at Home U65 Learning Disability,12/04/2022,5690,,3111158432,584.10,Autism at Kingwood Limited
http://statistics.data.gov.uk/id/local-authority/38,Oxfordshire County Council,Support at Home U65 Learning Disability,12/04/2022,5690,,3111158436,584.10,Autism at Kingwood Limited
http://statistics.data.gov.uk/id/local-authority/38,Oxfordshire County Council,EDWARD FIELD  KIDLIN,08/04/2022,3357,,3111155063,584.60,OCC One Time Vendor
http://statistics.data.gov.uk/id/local-authority/38,Oxfordshire County Council,Support at Home U65 Physical Support,26/04/2022,5698,,3111167566,584.94,Oxford Private Care
http://statistics.data.gov.uk/id/local-authority/38,Oxfordshire County Council,Support at Home 65+ Physical Support,27/04/2022,5697,,3111168139,585.00,Headway Oxford
http://statistics.data.gov.uk/id/local-authority/38,Oxfordshire County Council,Support at Home 65+ Physical Support,27/04/2022,5697,,3111168143,585.00,Headway Oxford
http://statistics.data.gov.uk/id/local-authority/38,Oxfordshire County Council,FOSTERING MAIN,26/04/2022,5548,B*Fostering - Special Rates & Plus Amou,3111166123,586.29,Personal Redacted Data
http://statistics.data.gov.uk/id/local-authority/38,Oxfordshire County Council,ALTERNATIVES TO CARE,21/04/2022,4940,Other Services,2200979707,586.38,THORNBURY NURSING SERVICES
http://statistics.data.gov.uk/id/local-authority/38,Oxfordshire County Council,Support at Home U65 Learning Disability,11/04/2022,5899,Social Care - Direct Payments,3111156081,586.56,Personal Redacted Data
http://statistics.data.gov.uk/id/local-authority/38,Oxfordshire County Council,Delegated Health Tasks  - Over 65,29/04/2022,5691,,3111168873,587.90,George Springall Homecare
http://statistics.data.gov.uk/id/local-authority/38,Oxfordshire County Council,Support at Home U65 Learning Disability,06/04/2022,5693,,3111154622,588.00,Acquire Care Ltd
http://statistics.data.gov.uk/id/local-authority/38,Oxfordshire County Council,"Rose Hill CC, The Oval",12/04/2022,4092,General Refuse Collection and Disposal,2200978541,588.86,Nationwide Business Relocations Ltd
http://statistics.data.gov.uk/id/local-authority/38,Oxfordshire County Council,HOUSING & IMMIGRATION & SOUTHWARK S17,20/04/2022,5365,Non-Staff Subsistence and Expenses,9300055370,589.25,OCC SS Oxford City Div 1 Cash
http://statistics.data.gov.uk/id/local-authority/38,Oxfordshire County Council,SM DISABILITIES,26/04/2022,5554,Childrens' Social Care - Direct Payments,3111166427,589.49,Purple Conversation Com In Co (DP)
http://statistics.data.gov.uk/id/local-authority/38,Oxfordshire County Council,Care Homes - Over 65 Physical Sypport,12/04/2022,5685,B*Cycle tracks,3111162545,589.60,Orders of St John
http://statistics.data.gov.uk/id/local-authority/38,Oxfordshire County Council,Bus Infrastructure Maintenance,01/04/2022,4407,Equipment,2200974604,589.63,Externiture Ltd
http://statistics.data.gov.uk/id/local-authority/38,Oxfordshire County Council,Support at Home 65+ Physical Support,20/04/2022,5693,,3111164585,589.76,CARE COMPASSION AND CONVERSATIONS
http://statistics.data.gov.uk/id/local-authority/38,Oxfordshire County Council,Support at Home 65+ Physical Support,27/04/2022,5693,,3111168205,589.76,CARE COMPASSION AND CONVERSATIONS
http://statistics.data.gov.uk/id/local-authority/38,Oxfordshire County Council,Oxfordshire Adoption Support Fund,04/04/2022,4861,Hired and Contracted Services,2200975083,590.00,Heads & Hearts Ltd
http://statistics.data.gov.uk/id/local-authority/38,Oxfordshire County Council,REGISTRAR,07/04/2022,7382,Ceremonies,3111155061,590.00,OCC One Time Vendor
http://statistics.data.gov.uk/id/local-authority/38,Oxfordshire County Council,Early Years SEN Funding,13/04/2022,5537,Payments to Other Establishments,3111163067,590.17,Dunmore Pre-School Association
http://statistics.data.gov.uk/id/local-authority/38,Oxfordshire County Council,Support at Home 65+ Physical Support,27/04/2022,5693,,3111168306,590.43,SureCare Oxfordshire
http://statistics.data.gov.uk/id/local-authority/38,Oxfordshire County Council,ATV Adoption Oxford,25/04/2022,5394,Other Expenses,3111165222,591.92,OCC One Time Vendor
http://statistics.data.gov.uk/id/local-authority/38,Oxfordshire County Council,Support at Home 65+ Physical Support,26/04/2022,5698,,3111167307,591.93,Day & Night Care Assistance
http://statistics.data.gov.uk/id/local-authority/38,Oxfordshire County Council,Support at Home 65+ Physical Support,26/04/2022,5699,,3111166556,592.20,Bridges Home Care Ltd
http://statistics.data.gov.uk/id/local-authority/38,Oxfordshire County Council,Support at Home U65 Memory & Cognition,26/04/2022,5696,,3111166714,592.80,All Care GB Ltd
http://statistics.data.gov.uk/id/local-authority/38,Oxfordshire County Council,Support at Home 65+ Physical Support,26/04/2022,5689,,3111167613,593.18,Greigcare Home Service
http://statistics.data.gov.uk/id/local-authority/38,Oxfordshire County Council,Support at Home 65+ Physical Support,26/04/2022,5689,,3111167025,593.30,Allied Health-Services Limited
http://statistics.data.gov.uk/id/local-authority/38,Oxfordshire County Council,CHC Fast Track - Sup at Homes - Over 65,14/04/2022,5691,,3111163569,593.35,Joining Hands Healthcare Ltd
http://statistics.data.gov.uk/id/local-authority/38,Oxfordshire County Council,MEADOWBROOK TRANSPT,22/04/2022,4330,Transport to School Activities,3111165426,594.00,The Oxfordshire Taxi Company Ltd T/
http://statistics.data.gov.uk/id/local-authority/38,Oxfordshire County Council,MAINSTREAM-PRIMARY,14/04/2022,4330,Transport to School Activities,3111163411,594.00,Vine Community Services Ltd T/A
http://statistics.data.gov.uk/id/local-authority/38,Oxfordshire County Council,Support at Home U65 Learning Disability,26/04/2022,5699,,3111166579,594.08,Care Hearted Ltd
http://statistics.data.gov.uk/id/local-authority/38,Oxfordshire County Council,Support at Home 65+ Physical Support,27/04/2022,5693,,3111168238,594.25,GET CARE LIMITED
http://statistics.data.gov.uk/id/local-authority/38,Oxfordshire County Council,Support at Home 65+ Physical Support,11/04/2022,5899,Social Care - Direct Payments,3111156820,594.52,Purple Conversation Com In Co (DP)
http://statistics.data.gov.uk/id/local-authority/38,Oxfordshire County Council,Support at Home 65+ Mental Health,26/04/2022,5699,,3111166964,594.53,YOD Ltd
http://statistics.data.gov.uk/id/local-authority/38,Oxfordshire County Council,Support at Home U65 Physical Support,26/04/2022,5698,,3111167143,594.60,Acquire Care Ltd
http://statistics.data.gov.uk/id/local-authority/38,Oxfordshire County Council,SM DISABILITIES,26/04/2022,5554,Childrens' Social Care - Direct Payments,3111166413,594.98,Purple Conversation Com In Co (DP)
http://statistics.data.gov.uk/id/local-authority/38,Oxfordshire County Council,"Didcot CC, Park Road",22/04/2022,3821,Grounds Maintenance Contracts,2200980032,595.00,Aspire Enterprise Services Ltd
http://statistics.data.gov.uk/id/local-authority/38,Oxfordshire County Council,Planned Maintenance,12/04/2022,3787,Premises Repairs,2200978654,595.00,MOORHOUSE HEATING LTD
http://statistics.data.gov.uk/id/local-authority/38,Oxfordshire County Council,Management Recharges,01/04/2022,3103,Other Training Courses and Qualification,3111153659,595.00,OCC One Time Vendor
http://statistics.data.gov.uk/id/local-authority/38,Oxfordshire County Council,Support at Home U65 Learning Disability,12/04/2022,5690,,3111159139,595.29,Turnstyle
http://statistics.data.gov.uk/id/local-authority/38,Oxfordshire County Council,Support at Home U65 Learning Disability,12/04/2022,5688,,3111158723,595.80,Mencap Contracts
http://statistics.data.gov.uk/id/local-authority/38,Oxfordshire County Council,Support at Home U65 Learning Disability,12/04/2022,5688,,3111158725,595.80,Mencap Contracts
http://statistics.data.gov.uk/id/local-authority/38,Oxfordshire County Council,Support at Home U65 Learning Disability,12/04/2022,5690,,3111158469,595.80,Real Life Options
http://statistics.data.gov.uk/id/local-authority/38,Oxfordshire County Council,Support at Home 65+ Learning Disability,12/04/2022,5688,,3111159422,595.80,The Brandon Trust
http://statistics.data.gov.uk/id/local-authority/38,Oxfordshire County Council,Support at Home U65 Physical Support,11/04/2022,5899,Social Care - Direct Payments,3111156171,596.00,Personal Redacted Data
http://statistics.data.gov.uk/id/local-authority/38,Oxfordshire County Council,GRASS CUTTING DIST.,11/04/2022,5526,Payments to Private Contractors,3111155296,596.14,Buckland Parish Council
http://statistics.data.gov.uk/id/local-authority/38,Oxfordshire County Council,SHARED LIVES,11/04/2022,5555,Payments to Carers,3111157416,597.15,Personal Redacted Data
http://statistics.data.gov.uk/id/local-authority/38,Oxfordshire County Council,Support at Home 65+ Physical Support,26/04/2022,5696,,3111166788,597.55,All Care GB Ltd
http://statistics.data.gov.uk/id/local-authority/38,Oxfordshire County Council,Planned Maintenance,01/04/2022,3787,Premises Repairs,2200981139,598.00,Barker & Evans Ltd
http://statistics.data.gov.uk/id/local-authority/38,Oxfordshire County Council,Support at Home U65 Learning Disability,14/04/2022,5227,Other Transport Arrangements,3111163383,598.00,BC CARS
http://statistics.data.gov.uk/id/local-authority/38,Oxfordshire County Council,CHC Fast Track - Sup at Homes - Over 65,01/04/2022,5691,,3111153704,598.00,Sue Ryder
http://statistics.data.gov.uk/id/local-authority/38,Oxfordshire County Council,Support at Home 65+ Physical Support,26/04/2022,5689,,3111167545,598.80,Greigcare Home Service
http://statistics.data.gov.uk/id/local-authority/38,Oxfordshire County Council,LDD AFTER SCHOOL,14/04/2022,4330,Transport to School Activities,3111163649,598.90,LINK SHIRES LTD
http://statistics.data.gov.uk/id/local-authority/38,Oxfordshire County Council,Support at Home 65+ Physical Support,22/04/2022,5693,,3111165139,598.92,Pioneering Care Bicester Limited
http://statistics.data.gov.uk/id/local-authority/38,Oxfordshire County Council,Support at Home U65 Physical Support,11/04/2022,5899,Social Care - Direct Payments,3111156415,599.08,Purple Conversation Com In Co (DP)
http://statistics.data.gov.uk/id/local-authority/38,Oxfordshire County Council,VACANT PROPERTY,01/04/2022,4000,Council Tax,3500082474,599.20,Oxford City Council
http://statistics.data.gov.uk/id/local-authority/38,Oxfordshire County Council,VACANT PROPERTY,11/04/2022,4000,Council Tax,3500083024,599.20,Oxford City Council
http://statistics.data.gov.uk/id/local-authority/38,Oxfordshire County Council,Planned Maintenance,12/04/2022,3787,Premises Repairs,2200978657,599.52,Darren Bryan Security Services
http://statistics.data.gov.uk/id/local-authority/38,Oxfordshire County Council,Support at Home 65+ Physical Support,26/04/2022,5689,,3111167302,599.63,Oxfordshire Crossroads
http://statistics.data.gov.uk/id/local-authority/38,Oxfordshire County Council,LEGAL SERVICES,07/04/2022,5251,Legal Costs,2200977012,600.00,Annie Sayers
http://statistics.data.gov.uk/id/local-authority/38,Oxfordshire County Council,LEGAL SERVICES,28/04/2022,5251,Legal Costs,2200981921,600.00,Personal Redacted Data
http://statistics.data.gov.uk/id/local-authority/38,Oxfordshire County Council,Wokingham Adoption Support Fund,05/04/2022,4861,Hired and Contracted Services,2200975948,600.00,Hands on Play Therapy
http://statistics.data.gov.uk/id/local-authority/38,Oxfordshire County Council,Support at Home U65 Physical Support,29/04/2022,5693,,3111168768,600.00,HEALTHCARE ACCESS LTD
http://statistics.data.gov.uk/id/local-authority/38,Oxfordshire County Council,Covid 19 CHC,12/04/2022,5687,,3111160077,600.00,Heathfield House Nursing Home
http://statistics.data.gov.uk/id/local-authority/38,Oxfordshire County Council,LEGAL SERVICES,12/04/2022,5251,Legal Costs,2200978515,600.00,Natasha Miller
http://statistics.data.gov.uk/id/local-authority/38,Oxfordshire County Council,TRANSPORT COSTS,11/04/2022,4330,Transport to School Activities,3111158012,600.00,Oxon Transport Services Ltd
http://statistics.data.gov.uk/id/local-authority/38,Oxfordshire County Council,Domestic Abuse Grant,05/04/2022,4940,Other Services,2200975652,600.00,SAFE!
http://statistics.data.gov.uk/id/local-authority/38,Oxfordshire County Council,Delegated Health Tasks  - Over 65,01/04/2022,5691,,3111153706,600.00,The Caring Company (Oxon)
http://statistics.data.gov.uk/id/local-authority/38,Oxfordshire County Council,Delegated Health Tasks  - Over 65,14/04/2022,5691,,3111163539,600.00,The Caring Company (Oxon)
http://statistics.data.gov.uk/id/local-authority/38,Oxfordshire County Council,Community Support Service Oxford,22/04/2022,5227,Other Transport Arrangements,3111165394,600.00,The Oxfordshire Taxi Company Ltd T/
http://statistics.data.gov.uk/id/local-authority/38,Oxfordshire County Council,East Oxfordshire Team,22/04/2022,5227,Other Transport Arrangements,3111165425,600.00,The Oxfordshire Taxi Company Ltd T/
http://statistics.data.gov.uk/id/local-authority/38,Oxfordshire County Council,Bracknell Adoption Support Fund,05/04/2022,4861,Hired and Contracted Services,2200975865,600.00,The Paperclip Group
http://statistics.data.gov.uk/id/local-authority/38,Oxfordshire County Council,Support at Home 65+ Memory & Cognition,11/04/2022,5899,Social Care - Direct Payments,3111155772,600.00,Personal Redacted Data
http://statistics.data.gov.uk/id/local-authority/38,Oxfordshire County Council,LEGAL SERVICES,28/04/2022,5251,Legal Costs,2200981745,600.00,Vicky Reynolds
http://statistics.data.gov.uk/id/local-authority/38,Oxfordshire County Council,Support at Home 65+ Physical Support,20/04/2022,5693,,3111164590,600.24,CARESTREAM HOME CARE
http://statistics.data.gov.uk/id/local-authority/38,Oxfordshire County Council,FOSTERING MAIN,05/04/2022,5227,Other Transport Arrangements,3111153908,600.24,Personal Redacted Data
http://statistics.data.gov.uk/id/local-authority/38,Oxfordshire County Council,Fire Protection,27/04/2022,4494,Purchase of IT Equipment,2200981003,601.00,TOTAL COMPUTERS NETWORK LTD
http://statistics.data.gov.uk/id/local-authority/38,Oxfordshire County Council,CHC Fast Track - Sup at Home - Under 65,01/04/2022,5691,,3111153689,601.66,Joining Hands Healthcare Ltd
http://statistics.data.gov.uk/id/local-authority/38,Oxfordshire County Council,Support at Home 65+ Physical Support,14/04/2022,5696,,3111163298,602.08,Orders of St John Care Trust
http://statistics.data.gov.uk/id/local-authority/38,Oxfordshire County Council,Support at Home 65+ Learning Disability,14/04/2022,5696,,3111163308,602.08,Orders of St John Care Trust
http://statistics.data.gov.uk/id/local-authority/38,Oxfordshire County Council,Support at Home 65+ Physical Support,26/04/2022,5689,,3111167701,602.21,Kare Plus Oxford
http://statistics.data.gov.uk/id/local-authority/38,Oxfordshire County Council,Support at Home 65+ Physical Support,26/04/2022,5689,,3111167726,602.44,My Carer Ltd
http://statistics.data.gov.uk/id/local-authority/38,Oxfordshire County Council,Support at Home 65+ Physical Support,14/04/2022,5696,,3111163262,602.86,Orders of St John Care Trust
http://statistics.data.gov.uk/id/local-authority/38,Oxfordshire County Council,Support at Home 65+ Physical Support,14/04/2022,5696,,3111163190,602.97,Orders of St John Care Trust
http://statistics.data.gov.uk/id/local-authority/38,Oxfordshire County Council,VACANT PROPERTY,27/04/2022,4000,Council Tax,3500083250,603.00,Oxford City Council
http://statistics.data.gov.uk/id/local-authority/38,Oxfordshire County Council,VACANT PROPERTY,27/04/2022,4000,Council Tax,3500083253,603.00,Oxford City Council
http://statistics.data.gov.uk/id/local-authority/38,Oxfordshire County Council,Support at Home 65+ Physical Support,26/04/2022,5689,,3111167582,603.93,Greigcare Home Service
http://statistics.data.gov.uk/id/local-authority/38,Oxfordshire County Council,Family Solutions Plus Non-staff - Centra,19/04/2022,5365,Non-Staff Subsistence and Expenses,9300055365,604.04,OCC SS Oxford City Div 1 Cash
http://statistics.data.gov.uk/id/local-authority/38,Oxfordshire County Council,Support at Home U65 Physical Support,11/04/2022,5899,Social Care - Direct Payments,3111157150,604.44,Purple Conversation Com In Co (DP)
http://statistics.data.gov.uk/id/local-authority/38,Oxfordshire County Council,Support at Home 65+ Physical Support,29/04/2022,5693,,3111168781,604.80,Pioneering Care Bicester Limited
http://statistics.data.gov.uk/id/local-authority/38,Oxfordshire County Council,Support at Home U65 Physical Support,11/04/2022,5899,Social Care - Direct Payments,3111156095,605.00,Personal Redacted Data
http://statistics.data.gov.uk/id/local-authority/38,Oxfordshire County Council,Support at Home U65 Autism /Abated,11/04/2022,5899,Social Care - Direct Payments,3111156271,605.08,Personal Redacted Data
http://statistics.data.gov.uk/id/local-authority/38,Oxfordshire County Council,Support at Home U65 Learning Disability,26/04/2022,5682,,3111166868,605.24,The Brandon Trust
http://statistics.data.gov.uk/id/local-authority/38,Oxfordshire County Council,POST 16 SEN,22/04/2022,4330,Transport to School Activities,3111164988,606.00,Bicester Cars UK Ltd
http://statistics.data.gov.uk/id/local-authority/38,Oxfordshire County Council,OXFORD LOCALITY,01/04/2022,4861,Hired and Contracted Services,2200974793,606.40,Sign Sense Consultants
http://statistics.data.gov.uk/id/local-authority/38,Oxfordshire County Council,Catering Management Soft FM,08/04/2022,4477,Catering Equipment,2200977367,607.07,Whitco Catering & Bakery Equipment
http://statistics.data.gov.uk/id/local-authority/38,Oxfordshire County Council,ADOPTION ALLOWANCES,26/04/2022,5664,B*Holiday Allowance,3111165732,607.30,Personal Redacted Data
http://statistics.data.gov.uk/id/local-authority/38,Oxfordshire County Council,ADOPTION ALLOWANCES,26/04/2022,5664,B*Holiday Allowance,3111165733,607.30,Personal Redacted Data
http://statistics.data.gov.uk/id/local-authority/38,Oxfordshire County Council,Support at Home 65+ Learning Disability,12/04/2022,5690,,3111159229,607.50,Style Acre
http://statistics.data.gov.uk/id/local-authority/38,Oxfordshire County Council,MAINSTREAM-SECONDARY,21/04/2022,4705,Printing,2200979806,608.58,EUCLID LTD
http://statistics.data.gov.uk/id/local-authority/38,Oxfordshire County Council,LEGAL BUDGET,01/04/2022,5251,Legal Costs,2200980125,609.43,K International PLC
http://statistics.data.gov.uk/id/local-authority/38,Oxfordshire County Council,Support at Home U65 Learning Disability,11/04/2022,5899,Social Care - Direct Payments,3111156407,611.08,Purple Conversation Com In Co (DP)
http://statistics.data.gov.uk/id/local-authority/38,Oxfordshire County Council,Support at Home U65 Learning Disability,11/04/2022,5899,Social Care - Direct Payments,3111157063,611.08,Purple Conversation Com In Co (DP)
http://statistics.data.gov.uk/id/local-authority/38,Oxfordshire County Council,Support at Home U65 Learning Disability,11/04/2022,5899,Social Care - Direct Payments,3111157302,611.08,Purple Conversation Com In Co (DP)
http://statistics.data.gov.uk/id/local-authority/38,Oxfordshire County Council,Property Cleaning,20/04/2022,3787,Premises Repairs,2200979472,611.17,Seldram Supplies
http://statistics.data.gov.uk/id/local-authority/38,Oxfordshire County Council,Support at Home 65+ Physical Support,11/04/2022,5899,Social Care - Direct Payments,3111156009,611.64,Personal Redacted Data
http://statistics.data.gov.uk/id/local-authority/38,Oxfordshire County Council,Care Homes - Over 65 Physical Sypport,12/04/2022,5687,,3111161880,611.65,The Triangle Nursing Home
http://statistics.data.gov.uk/id/local-authority/38,Oxfordshire County Council,Support at Home 65+ Physical Support,13/04/2022,5693,,3111162939,612.00,Care with Care Ltd
http://statistics.data.gov.uk/id/local-authority/38,Oxfordshire County Council,Support at Home U65 Learning Disability,11/04/2022,5899,Social Care - Direct Payments,3111156342,612.00,Personal Redacted Data
http://statistics.data.gov.uk/id/local-authority/38,Oxfordshire County Council,Support at Home U65 Mental Health,08/04/2022,5693,,3111155143,612.30,Care at Home
http://statistics.data.gov.uk/id/local-authority/38,Oxfordshire County Council,Support at Home U65 Learning Disability,11/04/2022,5899,Social Care - Direct Payments,3111155738,612.48,Personal Redacted Data
http://statistics.data.gov.uk/id/local-authority/38,Oxfordshire County Council,Councillors Priorities Fund,08/04/2022,4940,Other Services,3111155173,613.20,Cottisford Parish Meeting
http://statistics.data.gov.uk/id/local-authority/38,Oxfordshire County Council,Support at Home U65 Other /Soc Isolation,12/04/2022,5690,,3111158422,613.29,ADVANCE HOUSING & SUPPORT LTD
http://statistics.data.gov.uk/id/local-authority/38,Oxfordshire County Council,Delegated Health Tasks  - Over 65,06/04/2022,5691,,3111154757,613.50,Bluebird Care (Oxford South & West)
http://statistics.data.gov.uk/id/local-authority/38,Oxfordshire County Council,Support at Home 65+ Physical Support,14/04/2022,5696,,3111163247,613.82,Orders of St John Care Trust
http://statistics.data.gov.uk/id/local-authority/38,Oxfordshire County Council,SEN TRANSPORT,11/04/2022,5227,Other Transport Arrangements,3111158079,615.00,Oxon Transport Services Ltd
http://statistics.data.gov.uk/id/local-authority/38,Oxfordshire County Council,LAC PUPIL PREMIUM,26/04/2022,5537,Payments to Other Establishments,3111167999,615.00,The Vale Academy Trust
http://statistics.data.gov.uk/id/local-authority/38,Oxfordshire County Council,GRASS CUTTING DIST.,11/04/2022,5526,Payments to Private Contractors,3111155292,615.41,Arncott Parish Council
http://statistics.data.gov.uk/id/local-authority/38,Oxfordshire County Council,Support at Home U65 MH OBC Contract,11/04/2022,5899,Social Care - Direct Payments,3111157127,615.68,Purple Conversation Com In Co (DP)
http://statistics.data.gov.uk/id/local-authority/38,Oxfordshire County Council,Planned Maintenance,01/04/2022,3787,Premises Repairs,2200978530,615.75,Barker & Evans Ltd
http://statistics.data.gov.uk/id/local-authority/38,Oxfordshire County Council,Support at Home U65 Sensory Support,11/04/2022,5899,Social Care - Direct Payments,3111156659,615.88,Purple Conversation Com In Co (DP)
http://statistics.data.gov.uk/id/local-authority/38,Oxfordshire County Council,Early Years SEN Funding,29/04/2022,5537,Payments to Other Establishments,3111168724,616.00,Bloxham Pre-School
http://statistics.data.gov.uk/id/local-authority/38,Oxfordshire County Council,Support at Home U65 MH OBC Contract,26/04/2022,5689,,3111167290,616.45,Casa Care Ltd
http://statistics.data.gov.uk/id/local-authority/38,Oxfordshire County Council,Support at Home U65 Learning Disability,12/04/2022,5690,,3111159277,616.46,Style Acre
http://statistics.data.gov.uk/id/local-authority/38,Oxfordshire County Council,Support at Home U65 Learning Disability,12/04/2022,5690,,3111159337,616.46,Style Acre
http://statistics.data.gov.uk/id/local-authority/38,Oxfordshire County Council,Support at Home U65 Learning Disability,12/04/2022,5690,,3111159350,616.46,Style Acre
http://statistics.data.gov.uk/id/local-authority/38,Oxfordshire County Council,Support at Home U65 Learning Disability,12/04/2022,5690,,3111159388,616.46,Style Acre
http://statistics.data.gov.uk/id/local-authority/38,Oxfordshire County Council,Support at Home U65 Learning Disability,12/04/2022,5690,,3111159155,616.46,Turnstyle
http://statistics.data.gov.uk/id/local-authority/38,Oxfordshire County Council,Support at Home U65 Learning Disability,11/04/2022,5899,Social Care - Direct Payments,3111156319,616.88,Personal Redacted Data
http://statistics.data.gov.uk/id/local-authority/38,Oxfordshire County Council,Care Homes - Over 65 Memory & Cognition,12/04/2022,5685,B*Cycle tracks,3111159884,617.20,Freeland House
http://statistics.data.gov.uk/id/local-authority/38,Oxfordshire County Council,Support at Home U65 Mental Health,26/04/2022,5689,,3111167904,617.65,Response Organisation
http://statistics.data.gov.uk/id/local-authority/38,Oxfordshire County Council,Community Support Service Banbury,28/04/2022,4540,"Educational Supplies, Stationery & Mater",2200981828,618.00,ESPO
http://statistics.data.gov.uk/id/local-authority/38,Oxfordshire County Council,Care Packages & Placements- LD - OCC,11/04/2022,5227,Other Transport Arrangements,3111157573,618.00,Her Ride Limited
http://statistics.data.gov.uk/id/local-authority/38,Oxfordshire County Council,Support at Home U65 Sensory Support,11/04/2022,5899,Social Care - Direct Payments,3111156947,618.00,Purple Conversation Com In Co (DP)
http://statistics.data.gov.uk/id/local-authority/38,Oxfordshire County Council,Support at Home U65 Learning Disability,14/04/2022,5696,,3111163203,618.42,Orders of St John Care Trust
http://statistics.data.gov.uk/id/local-authority/38,Oxfordshire County Council,Support at Home U65 Learning Disability,14/04/2022,5696,,3111163231,618.42,Orders of St John Care Trust
http://statistics.data.gov.uk/id/local-authority/38,Oxfordshire County Council,MultiCAV,12/04/2022,4861,Hired and Contracted Services,2200978655,618.77,Nova Modus
http://statistics.data.gov.uk/id/local-authority/38,Oxfordshire County Council,Support at Home U65 MH OBC Contract,26/04/2022,5689,,3111167775,619.26,Oxford Private Care
http://statistics.data.gov.uk/id/local-authority/38,Oxfordshire County Council,LOOKED AFTER CITY 1,11/04/2022,5665,B*Fostering Project Care Fee,9300055323,619.40,OCC SS Witney Area Off Cash
http://statistics.data.gov.uk/id/local-authority/38,Oxfordshire County Council,Continuing Care - Support at Home - U65,06/04/2022,5691,,3111154724,619.41,Apex Healthcare Services Ltd
http://statistics.data.gov.uk/id/local-authority/38,Oxfordshire County Council,Support at Home U65 Learning Disability,05/04/2022,5899,Social Care - Direct Payments,3111153854,620.18,Personal Redacted Data
http://statistics.data.gov.uk/id/local-authority/38,Oxfordshire County Council,Support at Home U65 Learning Disability,11/04/2022,5899,Social Care - Direct Payments,3111156129,620.32,Personal Redacted Data
http://statistics.data.gov.uk/id/local-authority/38,Oxfordshire County Council,Support at Home 65+ Physical Support,26/04/2022,5689,,3111167805,620.95,PLL Care Services
http://statistics.data.gov.uk/id/local-authority/38,Oxfordshire County Council,LANDLORD & TENANT,05/04/2022,4001,Uniform Business Rates,3500082868,621.00,West Oxfordshire District Council
http://statistics.data.gov.uk/id/local-authority/38,Oxfordshire County Council,CHC Fast Track - Care Homes - Over 65,12/04/2022,5687,,3111159370,621.43,ACER HEALTHCARE LTD
http://statistics.data.gov.uk/id/local-authority/38,Oxfordshire County Council,Care Homes - Over 65 Memory & Cognition,12/04/2022,5685,B*Cycle tracks,3111160069,621.49,Heathfield House Nursing Home
http://statistics.data.gov.uk/id/local-authority/38,Oxfordshire County Council,Support at Home U65 Learning Disability,12/04/2022,5688,,3111159156,621.60,The Brandon Trust
http://statistics.data.gov.uk/id/local-authority/38,Oxfordshire County Council,FOSTERING MAIN,05/04/2022,5549,B*Fostering Allowance - Regulation 38,3111153911,622.00,Personal Redacted Data
http://statistics.data.gov.uk/id/local-authority/38,Oxfordshire County Council,ELEC NPR ST LTG,14/04/2022,5526,Payments to Private Contractors,2200978980,622.14,VolkerHighways
http://statistics.data.gov.uk/id/local-authority/38,Oxfordshire County Council,Support at Home 65+ Physical Support,26/04/2022,5696,,3111166799,622.44,All Care GB Ltd
http://statistics.data.gov.uk/id/local-authority/38,Oxfordshire County Council,Support at Home 65+ Memory & Cognition,26/04/2022,5696,,3111166822,622.44,All Care GB Ltd
http://statistics.data.gov.uk/id/local-authority/38,Oxfordshire County Council,Support at Home 65+ Memory & Cognition,26/04/2022,5696,,3111166826,622.44,All Care GB Ltd
http://statistics.data.gov.uk/id/local-authority/38,Oxfordshire County Council,TRAFF SIGNALS MTCE,26/04/2022,4531,Materials,2200980546,622.46,Telent Technology Services Limited
http://statistics.data.gov.uk/id/local-authority/38,Oxfordshire County Council,Planned Maintenance,01/04/2022,3787,Premises Repairs,2200979950,623.00,Ambiflex Ltd
http://statistics.data.gov.uk/id/local-authority/38,Oxfordshire County Council,Support at Home 65+ Physical Support,11/04/2022,5227,Other Transport Arrangements,3111157591,623.33,Go Green Taxis
http://statistics.data.gov.uk/id/local-authority/38,Oxfordshire County Council,SERVICE DELIVERY,01/04/2022,4685,Clothing and Uniforms,2200975236,624.00,Arco Wessex
http://statistics.data.gov.uk/id/local-authority/38,Oxfordshire County Council,Community Support Service Bicester,22/04/2022,5227,Other Transport Arrangements,3111164967,624.00,Bicester Cars UK Ltd
http://statistics.data.gov.uk/id/local-authority/38,Oxfordshire County Council,Support at Home U65 Learning Disability,11/04/2022,5899,Social Care - Direct Payments,3111155992,624.00,Personal Redacted Data
http://statistics.data.gov.uk/id/local-authority/38,Oxfordshire County Council,Delegated Health Tasks  - Under 65,29/04/2022,5691,,3111168920,624.00,Enable Health Ltd
http://statistics.data.gov.uk/id/local-authority/38,Oxfordshire County Council,LANDLORD & TENANT,27/04/2022,4001,Uniform Business Rates,3500083300,624.00,West Oxfordshire District Council
http://statistics.data.gov.uk/id/local-authority/38,Oxfordshire County Council,Support at Home U65 Mental Health,26/04/2022,5698,,3111167512,624.02,KCARE NURSING AGENCY
http://statistics.data.gov.uk/id/local-authority/38,Oxfordshire County Council,OPERATIONS,26/04/2022,4407,Equipment,2200980947,624.20,TW ENGINEERING CO LTD
http://statistics.data.gov.uk/id/local-authority/38,Oxfordshire County Council,OPERATIONS,26/04/2022,4407,Equipment,2200980952,624.20,TW ENGINEERING CO LTD
http://statistics.data.gov.uk/id/local-authority/38,Oxfordshire County Council,TREE MAINT OPS,22/04/2022,3821,Grounds Maintenance Contracts,2200980006,624.27,THE OUTDOORS COMPANY
http://statistics.data.gov.uk/id/local-authority/38,Oxfordshire County Council,Support at Home U65 Learning Disability,11/04/2022,5899,Social Care - Direct Payments,3111156147,624.40,Personal Redacted Data
http://statistics.data.gov.uk/id/local-authority/38,Oxfordshire County Council,Support at Home U65 Physical Support,14/04/2022,5696,,3111163206,624.65,Orders of St John Care Trust
http://statistics.data.gov.uk/id/local-authority/38,Oxfordshire County Council,LEGAL SERVICES,07/04/2022,5251,Legal Costs,2200977224,625.00,Personal Redacted Data
http://statistics.data.gov.uk/id/local-authority/38,Oxfordshire County Council,Oxfordshire Adoption Support Fund,05/04/2022,6500,Government Grants (Revenue),3111154594,625.00,OCC One Time Vendor
http://statistics.data.gov.uk/id/local-authority/38,Oxfordshire County Council,GRASS CUTTING DIST.,25/04/2022,5526,Payments to Private Contractors,3111165201,625.25,Shilton Parish Council
http://statistics.data.gov.uk/id/local-authority/38,Oxfordshire County Council,Support at Home 65+ Physical Support,26/04/2022,5689,,3111167746,625.54,Oasis Private Care Ltd
http://statistics.data.gov.uk/id/local-authority/38,Oxfordshire County Council,Support at Home 65+ Physical Support,26/04/2022,5698,,3111167601,625.63,Oxford Private Care
http://statistics.data.gov.uk/id/local-authority/38,Oxfordshire County Council,L&D CORE PROGRAMME,11/04/2022,3100,Educational and Vocational Training,2200978260,626.75,Premier Partnership
http://statistics.data.gov.uk/id/local-authority/38,Oxfordshire County Council,Support at Home U65 Physical Support,11/04/2022,5899,Social Care - Direct Payments,3111156975,626.92,Purple Conversation Com In Co (DP)
http://statistics.data.gov.uk/id/local-authority/38,Oxfordshire County Council,Planned Maintenance,27/04/2022,3787,Premises Repairs,2200981039,627.09,Darke & Taylor Ltd
http://statistics.data.gov.uk/id/local-authority/38,Oxfordshire County Council,SEN Miscellaneous Expenditure,06/04/2022,4861,Hired and Contracted Services,2200976075,627.25,Achieve Occupational Therapy Ltd
http://statistics.data.gov.uk/id/local-authority/38,Oxfordshire County Council,Support at Home U65 Physical Support,11/04/2022,5899,Social Care - Direct Payments,3111156873,627.44,Purple Conversation Com In Co (DP)
http://statistics.data.gov.uk/id/local-authority/38,Oxfordshire County Council,MOTOR FLEET,26/04/2022,3053,,3111165633,627.80,OCC One Time Vendor
http://statistics.data.gov.uk/id/local-authority/38,Oxfordshire County Council,Support at Home 65+ Physical Support,26/04/2022,5689,,3111167458,627.82,Genuine Carers Ltd
http://statistics.data.gov.uk/id/local-authority/38,Oxfordshire County Council,Support at Home 65+ Physical Support,26/04/2022,5689,,3111167236,627.90,Caremark (West Oxfordshire & Cherwe
http://statistics.data.gov.uk/id/local-authority/38,Oxfordshire County Council,LIBRARY COLLECTIONS,29/04/2022,4539,"Books, DVDs and CDs",2200982203,628.72,ULVERSCROFT LARGE PRINT BOOKS LTD
http://statistics.data.gov.uk/id/local-authority/38,Oxfordshire County Council,LIBRARY COLLECTIONS,29/04/2022,4539,"Books, DVDs and CDs",2200982205,628.72,ULVERSCROFT LARGE PRINT BOOKS LTD
http://statistics.data.gov.uk/id/local-authority/38,Oxfordshire County Council,FOSTERING MAIN,11/04/2022,5549,B*Fostering Allowance - Regulation 38,3111156715,628.90,Personal Redacted Data
http://statistics.data.gov.uk/id/local-authority/38,Oxfordshire County Council,FOSTERING MAIN,11/04/2022,5549,B*Fostering Allowance - Regulation 38,3111156522,628.90,Personal Redacted Data
http://statistics.data.gov.uk/id/local-authority/38,Oxfordshire County Council,BROADBAND PROJECT,08/04/2022,5668,Technical and Professional Consultant F,2200977844,630.00,Agile Collective Ltd
http://statistics.data.gov.uk/id/local-authority/38,Oxfordshire County Council,Support at Home 65+ Physical Support,28/04/2022,5693,,3111168665,630.00,BETTER LIFE CARE LTD
http://statistics.data.gov.uk/id/local-authority/38,Oxfordshire County Council,Family Solutions Plus Non-staff - North,19/04/2022,5227,Other Transport Arrangements,3111164471,630.00,Cherwell Cars
http://statistics.data.gov.uk/id/local-authority/38,Oxfordshire County Council,Children in Care Non-staffing - North,19/04/2022,4330,Transport to School Activities,3111164472,630.00,Cherwell Cars
http://statistics.data.gov.uk/id/local-authority/38,Oxfordshire County Council,COUNTY PRINT FINSHRS,08/04/2022,4705,Printing,2200977399,630.00,Fine Print (Services) Ltd
http://statistics.data.gov.uk/id/local-authority/38,Oxfordshire County Council,Wokingham Adoption Support Fund,04/04/2022,4861,Hired and Contracted Services,2200975383,630.00,Heads & Hearts Ltd
http://statistics.data.gov.uk/id/local-authority/38,Oxfordshire County Council,Support at Home U65 Physical Support,11/04/2022,5899,Social Care - Direct Payments,3111157241,630.00,Purple Conversation Com In Co (DP)
http://statistics.data.gov.uk/id/local-authority/38,Oxfordshire County Council,Oxfordshire Adoption Support Fund,01/04/2022,4861,Hired and Contracted Services,2200975641,630.00,The Owl Centre Ltd
http://statistics.data.gov.uk/id/local-authority/38,Oxfordshire County Council,Wokingham Adoption Support Fund,05/04/2022,6500,Government Grants (Revenue),2200975871,630.00,The Paperclip Group
http://statistics.data.gov.uk/id/local-authority/38,Oxfordshire County Council,Support at Home U65 Learning Disability,11/04/2022,5899,Social Care - Direct Payments,3111157154,630.36,Purple Conversation Com In Co (DP)
http://statistics.data.gov.uk/id/local-authority/38,Oxfordshire County Council,Support at Home 65+ Memory & Cognition,26/04/2022,5689,,3111167559,631.18,Greigcare Home Service
http://statistics.data.gov.uk/id/local-authority/38,Oxfordshire County Council,LIBRARY COLLECTIONS,20/04/2022,4539,"Books, DVDs and CDs",2200979455,631.20,W F HOWES LTD
http://statistics.data.gov.uk/id/local-authority/38,Oxfordshire County Council,Support at Home 65+ Physical Support,14/04/2022,5696,,3111163248,631.52,Orders of St John Care Trust
http://statistics.data.gov.uk/id/local-authority/38,Oxfordshire County Council,Support at Home U65 Physical Support,26/04/2022,5689,,3111167081,631.66,Care Outlook Ltd
http://statistics.data.gov.uk/id/local-authority/38,Oxfordshire County Council,GRASS CUTTING DIST.,25/04/2022,5526,Payments to Private Contractors,3111165200,631.91,OCC One Time Vendor
http://statistics.data.gov.uk/id/local-authority/38,Oxfordshire County Council,Support at Home U65 Learning Disability,12/04/2022,5690,,3111159347,632.57,Style Acre
http://statistics.data.gov.uk/id/local-authority/38,Oxfordshire County Council,Support at Home U65 Learning Disability,12/04/2022,5690,,3111159394,632.57,Style Acre
http://statistics.data.gov.uk/id/local-authority/38,Oxfordshire County Council,Support at Home U65 HFA,11/04/2022,5899,Social Care - Direct Payments,3111157082,633.80,Purple Conversation Com In Co (DP)
http://statistics.data.gov.uk/id/local-authority/38,Oxfordshire County Council,Delegated Health Tasks  - Under 65,25/04/2022,5691,,3111165493,633.95,Bluebird Care
http://statistics.data.gov.uk/id/local-authority/38,Oxfordshire County Council,Delegated Health Tasks  - Over 65,27/04/2022,5691,,3111168328,633.95,Bluebird Care
http://statistics.data.gov.uk/id/local-authority/38,Oxfordshire County Council,Delegated Health Tasks  - Over 65,06/04/2022,5691,,3111154756,633.95,Bluebird Care (Oxford South & West)
http://statistics.data.gov.uk/id/local-authority/38,Oxfordshire County Council,Support at Home 65+ Physical Support,26/04/2022,5689,,3111167844,634.05,Premier Personal Care
http://statistics.data.gov.uk/id/local-authority/38,Oxfordshire County Council,Planned Maintenance,01/04/2022,3787,Premises Repairs,2200978545,635.00,Windrush Door & Window Services Ltd
http://statistics.data.gov.uk/id/local-authority/38,Oxfordshire County Council,Planned Maintenance,01/04/2022,3787,Premises Repairs,2200978552,635.00,Windrush Door & Window Services Ltd
http://statistics.data.gov.uk/id/local-authority/38,Oxfordshire County Council,Support at Home U65 Physical Support,26/04/2022,5689,,3111167935,635.02,AVR (Oxon) Ltd
http://statistics.data.gov.uk/id/local-authority/38,Oxfordshire County Council,Support at Home 65+ Physical Support,11/04/2022,5899,Social Care - Direct Payments,3111157002,635.08,Purple Conversation Com In Co (DP)
http://statistics.data.gov.uk/id/local-authority/38,Oxfordshire County Council,Support at Home 65+ Physical Support,11/04/2022,5899,Social Care - Direct Payments,3111157374,635.08,Purple Conversation Com In Co (DP)
http://statistics.data.gov.uk/id/local-authority/38,Oxfordshire County Council,Support at Home U65 Physical Support,27/04/2022,5693,,3111168209,635.28,CaringPlus Healthcare Services Ltd
http://statistics.data.gov.uk/id/local-authority/38,Oxfordshire County Council,Support at Home 65+ Physical Support,08/04/2022,5693,,3111155134,635.85,Henley Care Ltd
http://statistics.data.gov.uk/id/local-authority/38,Oxfordshire County Council,Support at Home U65 Learning Disability,14/04/2022,5696,,3111163222,636.79,Orders of St John Care Trust
http://statistics.data.gov.uk/id/local-authority/38,Oxfordshire County Council,Support at Home U65 Physical Support,26/04/2022,5689,,3111167486,637.49,Golden Services Care Ltd
http://statistics.data.gov.uk/id/local-authority/38,Oxfordshire County Council,Growth Management,20/04/2022,5251,Legal Costs,2200979532,638.00,TLT LLP
http://statistics.data.gov.uk/id/local-authority/38,Oxfordshire County Council,Support at Home U65 Learning Disability,12/04/2022,5690,,3111158473,638.36,Style Acre
http://statistics.data.gov.uk/id/local-authority/38,Oxfordshire County Council,Support at Home U65 Learning Disability,12/04/2022,5690,,3111158475,638.36,Style Acre
http://statistics.data.gov.uk/id/local-authority/38,Oxfordshire County Council,Support at Home U65 Physical Support,26/04/2022,5698,,3111167273,638.49,Day & Night Care Assistance
http://statistics.data.gov.uk/id/local-authority/38,Oxfordshire County Council,Support at Home 65+ Physical Support,26/04/2022,5689,,3111167859,638.64,Prestige Nursing Ltd
http://statistics.data.gov.uk/id/local-authority/38,Oxfordshire County Council,Support at Home 65+ Physical Support,11/04/2022,5899,Social Care - Direct Payments,3111155831,638.76,Personal Redacted Data
http://statistics.data.gov.uk/id/local-authority/38,Oxfordshire County Council,SEN TRANSPORT,12/04/2022,4320,Pupil / Client Travel Reimbursement,3111162748,639.36,Personal Redacted Data
http://statistics.data.gov.uk/id/local-authority/38,Oxfordshire County Council,Property Cleaning,20/04/2022,3787,Premises Repairs,2200979491,639.43,Seldram Supplies
http://statistics.data.gov.uk/id/local-authority/38,Oxfordshire County Council,Support at Home 65+ Physical Support,11/04/2022,5899,Social Care - Direct Payments,3111156055,640.00,Personal Redacted Data
http://statistics.data.gov.uk/id/local-authority/38,Oxfordshire County Council,SEN TRANSPORT,11/04/2022,4330,Transport to School Activities,3111157792,640.00,Edchauffeurs Ltd
http://statistics.data.gov.uk/id/local-authority/38,Oxfordshire County Council,Support at Home 65+ Physical Support,11/04/2022,5899,Social Care - Direct Payments,3111156162,640.00,Personal Redacted Data
http://statistics.data.gov.uk/id/local-authority/38,Oxfordshire County Council,Swindon Adoption Support Fund,04/04/2022,4861,Hired and Contracted Services,2200975401,640.00,Julie Lender-Swain
http://statistics.data.gov.uk/id/local-authority/38,Oxfordshire County Council,Support at Home U65 Physical Support,11/04/2022,5899,Social Care - Direct Payments,3111156151,640.00,Personal Redacted Data
http://statistics.data.gov.uk/id/local-authority/38,Oxfordshire County Council,TREE MAINT OPS,22/04/2022,5526,Payments to Private Contractors,2200979855,640.00,South Bucks Tree Surgeons
http://statistics.data.gov.uk/id/local-authority/38,Oxfordshire County Council,Community Support Service Bicester,07/04/2022,2040,Agency Staff,2200976729,640.50,Completely Care Ltd
http://statistics.data.gov.uk/id/local-authority/38,Oxfordshire County Council,Community Support Service - Abingdon,12/04/2022,2040,Agency Staff,2200978579,640.50,Completely Care Ltd
http://statistics.data.gov.uk/id/local-authority/38,Oxfordshire County Council,Community Support Service - Abingdon,19/04/2022,2040,Agency Staff,2200979338,640.50,Completely Care Ltd
http://statistics.data.gov.uk/id/local-authority/38,Oxfordshire County Council,Community Support Service Banbury,28/04/2022,2040,Agency Staff,2200981804,640.50,Completely Care Ltd
http://statistics.data.gov.uk/id/local-authority/38,Oxfordshire County Council,Support at Home U65 Physical Support,11/04/2022,5899,Social Care - Direct Payments,3111156368,641.08,Purple Conversation Com In Co (DP)
http://statistics.data.gov.uk/id/local-authority/38,Oxfordshire County Council,Support at Home 65+ Memory & Cognition,26/04/2022,5698,,3111167199,641.09,Bridges Home Care Ltd
http://statistics.data.gov.uk/id/local-authority/38,Oxfordshire County Council,POST18 UASC DCSF FND,27/04/2022,5785,Client Lodgings and Accommodation,3111168117,641.10,KEY2 FUTURES LTD
http://statistics.data.gov.uk/id/local-authority/38,Oxfordshire County Council,Support at Home U65 Physical Support,11/04/2022,5899,Social Care - Direct Payments,3111157006,641.16,Purple Conversation Com In Co (DP)
http://statistics.data.gov.uk/id/local-authority/38,Oxfordshire County Council,Support at Home 65+ Physical Support,14/04/2022,5696,,3111163174,641.37,Orders of St John Care Trust
http://statistics.data.gov.uk/id/local-authority/38,Oxfordshire County Council,Support at Home 65+ Physical Support,08/04/2022,5693,,3111155133,641.79,Henley Care Ltd
http://statistics.data.gov.uk/id/local-authority/38,Oxfordshire County Council,Support at Home 65+ Physical Support,12/04/2022,5686,,3111162220,642.00,Orders of St John
http://statistics.data.gov.uk/id/local-authority/38,Oxfordshire County Council,Support at Home 65+ Physical Support,22/04/2022,5693,,3111165083,642.06,Genuine Carers Ltd
http://statistics.data.gov.uk/id/local-authority/38,Oxfordshire County Council,Support at Home 65+ Physical Support,26/04/2022,5699,,3111166598,642.33,Care Hearted Ltd
http://statistics.data.gov.uk/id/local-authority/38,Oxfordshire County Council,Support at Home 65+ Physical Support,27/04/2022,5693,,3111168217,642.64,Chamomile Care Ltd
http://statistics.data.gov.uk/id/local-authority/38,Oxfordshire County Council,Support at Home U65 Physical Support,11/04/2022,5899,Social Care - Direct Payments,3111156406,643.08,Purple Conversation Com In Co (DP)
http://statistics.data.gov.uk/id/local-authority/38,Oxfordshire County Council,Support at Home 65+ Memory & Cognition,11/04/2022,5899,Social Care - Direct Payments,3111157126,643.20,Purple Conversation Com In Co (DP)
http://statistics.data.gov.uk/id/local-authority/38,Oxfordshire County Council,Family Solutions Plus Non-staff - North,12/04/2022,4940,Other Services,2200978676,643.50,Co-Op Oxford Nursery
http://statistics.data.gov.uk/id/local-authority/38,Oxfordshire County Council,FOSTERING MAIN,26/04/2022,5227,Other Transport Arrangements,3111166179,643.68,Personal Redacted Data
http://statistics.data.gov.uk/id/local-authority/38,Oxfordshire County Council,Support at Home 65+ Physical Support,26/04/2022,5689,,3111167160,643.98,Caremark (West Oxfordshire & Cherwe
http://statistics.data.gov.uk/id/local-authority/38,Oxfordshire County Council,SEN TRANSPORT,21/04/2022,5227,Other Transport Arrangements,3111164755,644.00,Banbury Taxis
http://statistics.data.gov.uk/id/local-authority/38,Oxfordshire County Council,Support at Home 65+ Physical Support,27/04/2022,5693,,3111168248,644.00,Kwikfix Recruitment Services Ltd
http://statistics.data.gov.uk/id/local-authority/38,Oxfordshire County Council,Children in Care Non-staffing - South,14/04/2022,5227,Other Transport Arrangements,3111163150,644.00,OXFORD BLUE CARS
http://statistics.data.gov.uk/id/local-authority/38,Oxfordshire County Council,SEN TRANSPORT,13/04/2022,5227,Other Transport Arrangements,3111163019,644.46,24/7 LTD
http://statistics.data.gov.uk/id/local-authority/38,Oxfordshire County Council,Support at Home 65+ Physical Support,26/04/2022,5689,,3111167712,644.84,My Carer Ltd
http://statistics.data.gov.uk/id/local-authority/38,Oxfordshire County Council,Planned Maintenance,29/04/2022,3787,Premises Repairs,2200982157,644.84,Wolseley UK Limited
http://statistics.data.gov.uk/id/local-authority/38,Oxfordshire County Council,FOSTERING MAIN,26/04/2022,5227,Other Transport Arrangements,3111166281,644.99,Personal Redacted Data
http://statistics.data.gov.uk/id/local-authority/38,Oxfordshire County Council,SEN TRANSPORT,11/04/2022,5227,Other Transport Arrangements,3111157864,645.00,Thunderbird Transport Ltd
http://statistics.data.gov.uk/id/local-authority/38,Oxfordshire County Council,Support at Home 65+ Physical Support,06/04/2022,5693,,3111154664,645.80,AVR (Oxon) Ltd
http://statistics.data.gov.uk/id/local-authority/38,Oxfordshire County Council,FOSTERING MAIN,05/04/2022,5549,B*Fostering Allowance - Regulation 38,3111153914,646.00,Personal Redacted Data
http://statistics.data.gov.uk/id/local-authority/38,Oxfordshire County Council,FOSTERING MAIN,11/04/2022,5549,B*Fostering Allowance - Regulation 38,3111156526,646.00,Personal Redacted Data
http://statistics.data.gov.uk/id/local-authority/38,Oxfordshire County Council,FOSTERING MAIN,19/04/2022,5549,B*Fostering Allowance - Regulation 38,3111163941,646.00,Personal Redacted Data
http://statistics.data.gov.uk/id/local-authority/38,Oxfordshire County Council,FOSTERING MAIN,26/04/2022,5549,B*Fostering Allowance - Regulation 38,3111166088,646.00,Personal Redacted Data
http://statistics.data.gov.uk/id/local-authority/38,Oxfordshire County Council,TRANSPORT COSTS,22/04/2022,4330,Transport to School Activities,3111165330,646.00,The Oxfordshire Taxi Company Ltd T/
http://statistics.data.gov.uk/id/local-authority/38,Oxfordshire County Council,Support at Home U65 Physical Support,11/04/2022,5899,Social Care - Direct Payments,3111157088,646.36,Purple Conversation Com In Co (DP)
http://statistics.data.gov.uk/id/local-authority/38,Oxfordshire County Council,Support at Home 65+ Learning Disability,22/04/2022,5693,,3111165147,646.80,Pioneering Care Bicester Limited
http://statistics.data.gov.uk/id/local-authority/38,Oxfordshire County Council,"Banbury CC, Hilton Road",27/04/2022,4940,Other Services,2200981066,647.00,Nationwide Business Relocations Ltd
http://statistics.data.gov.uk/id/local-authority/38,Oxfordshire County Council,HISTORY SERVICE,01/04/2022,4861,Hired and Contracted Services,2200974801,647.00,Oxford Duplication Centre
http://statistics.data.gov.uk/id/local-authority/38,Oxfordshire County Council,Support at Home U65 Learning Disability,12/04/2022,5690,,3111159042,647.36,MacIntyre Care (Womaston)
http://statistics.data.gov.uk/id/local-authority/38,Oxfordshire County Council,Support at Home U65 Learning Disability,12/04/2022,5690,,3111159064,647.36,MacIntyre Care (Womaston)
http://statistics.data.gov.uk/id/local-authority/38,Oxfordshire County Council,Planned Maintenance,27/04/2022,3787,Premises Repairs,2200980970,648.00,Darren Bryan Security Services
http://statistics.data.gov.uk/id/local-authority/38,Oxfordshire County Council,Support at Home U65 Autism /Abated,12/04/2022,5690,,3111159265,648.69,Style Acre
http://statistics.data.gov.uk/id/local-authority/38,Oxfordshire County Council,Support at Home U65 Learning Disability,12/04/2022,5690,,3111159356,648.69,Style Acre
http://statistics.data.gov.uk/id/local-authority/38,Oxfordshire County Council,Support at Home U65 Learning Disability,12/04/2022,5690,,3111159026,648.69,The Ice Centre
http://statistics.data.gov.uk/id/local-authority/38,Oxfordshire County Council,Support at Home U65 Learning Disability,12/04/2022,5690,,3111159149,648.69,Turnstyle
http://statistics.data.gov.uk/id/local-authority/38,Oxfordshire County Council,Support at Home U65 Learning Disability,12/04/2022,5690,,3111159179,648.69,Turnstyle
http://statistics.data.gov.uk/id/local-authority/38,Oxfordshire County Council,Delegated Health Tasks  - Over 65,14/04/2022,5691,,3111163535,649.32,Bluebird Care (Oxford South & West)
http://statistics.data.gov.uk/id/local-authority/38,Oxfordshire County Council,Support at Home U65 Learning Disability,26/04/2022,5698,,3111167225,649.47,Bridges Home Care Ltd
http://statistics.data.gov.uk/id/local-authority/38,Oxfordshire County Council,Support at Home U65 Learning Disability,12/04/2022,5690,,3111158459,649.80,Mencap Contracts
http://statistics.data.gov.uk/id/local-authority/38,Oxfordshire County Council,Support at Home U65 Physical Support,11/04/2022,5899,Social Care - Direct Payments,3111156096,650.00,Personal Redacted Data
http://statistics.data.gov.uk/id/local-authority/38,Oxfordshire County Council,Vulnerable Learners,08/04/2022,4861,Hired and Contracted Services,3111155064,650.00,Personal Redacted Data
http://statistics.data.gov.uk/id/local-authority/38,Oxfordshire County Council,POST18 UASC DCSF FND,13/04/2022,3942,Hire of Accommodation and Facilities,3111162820,650.00,Personal Redacted Data
http://statistics.data.gov.uk/id/local-authority/38,Oxfordshire County Council,Family Solutions Plus Non-staff - South,11/04/2022,5227,Other Transport Arrangements,3111157843,650.00,Henley Taxis Ltd
http://statistics.data.gov.uk/id/local-authority/38,Oxfordshire County Council,FLEET OPERATIONS,05/04/2022,4270,HTM / Other Vehicle - Hire Charges,2200975946,650.00,London Hire
http://statistics.data.gov.uk/id/local-authority/38,Oxfordshire County Council,Support at Home U65 Learning Disability,11/04/2022,5227,Other Transport Arrangements,3111157994,650.00,Oxon Transport Services Ltd
http://statistics.data.gov.uk/id/local-authority/38,Oxfordshire County Council,Property Cleaning,26/04/2022,4070,Cleaning services,2200980899,650.00,Parker Contract Cleaning
http://statistics.data.gov.uk/id/local-authority/38,Oxfordshire County Council,LEGAL SERVICES,01/04/2022,5251,Legal Costs,2200978596,650.00,Soraya Pascoe
http://statistics.data.gov.uk/id/local-authority/38,Oxfordshire County Council,Swindon Adoption Support Fund,05/04/2022,6500,Government Grants (Revenue),2200975895,650.00,The Family Place
http://statistics.data.gov.uk/id/local-authority/38,Oxfordshire County Council,Support at Home U65 Physical Support,11/04/2022,5899,Social Care - Direct Payments,3111156338,650.08,Personal Redacted Data
http://statistics.data.gov.uk/id/local-authority/38,Oxfordshire County Council,Support at Home U65 Other /Soc Isolation,11/04/2022,5899,Social Care - Direct Payments,3111156510,651.08,Purple Conversation Com In Co (DP)
http://statistics.data.gov.uk/id/local-authority/38,Oxfordshire County Council,Support at Home 65+ Physical Support,11/04/2022,5899,Social Care - Direct Payments,3111156543,651.08,Purple Conversation Com In Co (DP)
http://statistics.data.gov.uk/id/local-authority/38,Oxfordshire County Council,Support at Home U65 Learning Disability,11/04/2022,5899,Social Care - Direct Payments,3111156686,651.08,Purple Conversation Com In Co (DP)
http://statistics.data.gov.uk/id/local-authority/38,Oxfordshire County Council,Support at Home 65+ Physical Support,26/04/2022,5689,,3111167772,651.57,Oxford Private Care
http://statistics.data.gov.uk/id/local-authority/38,Oxfordshire County Council,POST 16 SEN,22/04/2022,4330,Transport to School Activities,3111164989,652.00,Bicester Cars UK Ltd
http://statistics.data.gov.uk/id/local-authority/38,Oxfordshire County Council,Support at Home 65+ Memory & Cognition,11/04/2022,5899,Social Care - Direct Payments,3111155799,652.80,Personal Redacted Data
http://statistics.data.gov.uk/id/local-authority/38,Oxfordshire County Council,Support at Home U65 Physical Support,26/04/2022,5689,,3111167584,652.89,Greigcare Home Service
http://statistics.data.gov.uk/id/local-authority/38,Oxfordshire County Council,Planned Maintenance,01/04/2022,3787,Premises Repairs,2200978100,653.00,Ambiflex Ltd
http://statistics.data.gov.uk/id/local-authority/38,Oxfordshire County Council,Planned Maintenance,01/04/2022,3787,Premises Repairs,2200979939,653.00,Ambiflex Ltd
http://statistics.data.gov.uk/id/local-authority/38,Oxfordshire County Council,Support at Home 65+ Other /Soc Isolation,26/04/2022,5689,,3111167412,653.15,Elite Care Agency
http://statistics.data.gov.uk/id/local-authority/38,Oxfordshire County Council,Support at Home U65 Physical Support,06/04/2022,5693,,3111154626,653.68,CARESTREAM HOME CARE
http://statistics.data.gov.uk/id/local-authority/38,Oxfordshire County Council,Support at Home 65+ Memory & Cognition,13/04/2022,5693,,3111162979,653.95,Oxford Private Care
http://statistics.data.gov.uk/id/local-authority/38,Oxfordshire County Council,Delegated Health Tasks  - Over 65,25/04/2022,5691,,3111165499,654.40,Bluebird Care
http://statistics.data.gov.uk/id/local-authority/38,Oxfordshire County Council,Support at Home 65+ Physical Support,26/04/2022,5689,,3111167062,654.53,Bicester PA and Care LLP
http://statistics.data.gov.uk/id/local-authority/38,Oxfordshire County Council,Support at Home U65 Physical Support,08/04/2022,5697,,3111155104,655.00,Helping Hands for Hoarders
http://statistics.data.gov.uk/id/local-authority/38,Oxfordshire County Council,Support at Home U65 Learning Disability,11/04/2022,5899,Social Care - Direct Payments,3111155748,655.04,Personal Redacted Data
http://statistics.data.gov.uk/id/local-authority/38,Oxfordshire County Council,Support at Home U65 Physical Support,11/04/2022,5899,Social Care - Direct Payments,3111157162,655.08,Purple Conversation Com In Co (DP)
http://statistics.data.gov.uk/id/local-authority/38,Oxfordshire County Council,Support at Home 65+ Physical Support,26/04/2022,5689,,3111167697,655.13,Kare Plus Oxford
http://statistics.data.gov.uk/id/local-authority/38,Oxfordshire County Council,Support at Home 65+ Physical Support,26/04/2022,5698,,3111167591,655.21,Oxford Private Care
http://statistics.data.gov.uk/id/local-authority/38,Oxfordshire County Council,DEVELOPMENT MANAGEME,12/04/2022,4790,"Publicity, Promotions and Advertisement",2200978529,655.50,Tmp (Uk) Ltd
http://statistics.data.gov.uk/id/local-authority/38,Oxfordshire County Council,Support at Home U65 Learning Disability,11/04/2022,5899,Social Care - Direct Payments,3111156146,656.00,Personal Redacted Data
http://statistics.data.gov.uk/id/local-authority/38,Oxfordshire County Council,ON ST PARK OXFD P&D,26/04/2022,4861,Hired and Contracted Services,2200980817,656.00,Robelec Ltd
http://statistics.data.gov.uk/id/local-authority/38,Oxfordshire County Council,HOUSING & IMMIGRATION & SOUTHWARK S17,07/04/2022,5365,Non-Staff Subsistence and Expenses,9300055299,656.20,OCC SS Oxford City Div 1 Cash
http://statistics.data.gov.uk/id/local-authority/38,Oxfordshire County Council,Support at Home U65 Physical Support,26/04/2022,5682,,3111166907,656.63,The Brandon Trust
http://statistics.data.gov.uk/id/local-authority/38,Oxfordshire County Council,Support at Home U65 Other /Soc Isolation,11/04/2022,5899,Social Care - Direct Payments,3111157238,656.68,Purple Conversation Com In Co (DP)
http://statistics.data.gov.uk/id/local-authority/38,Oxfordshire County Council,COMM DRAWDOWN FUNDNG,06/04/2022,8102,Payments to main contractor,2200976110,656.75,Oxon Fastenings Ltd
http://statistics.data.gov.uk/id/local-authority/38,Oxfordshire County Council,Support at Home U65 Learning Disability,11/04/2022,5899,Social Care - Direct Payments,3111157291,657.56,Purple Conversation Com In Co (DP)
http://statistics.data.gov.uk/id/local-authority/38,Oxfordshire County Council,Support at Home U65 Learning Disability,26/04/2022,5682,,3111166897,658.04,The Brandon Trust
http://statistics.data.gov.uk/id/local-authority/38,Oxfordshire County Council,Support at Home U65 Learning Disability,12/04/2022,5690,,3111159034,658.71,The Ice Centre
http://statistics.data.gov.uk/id/local-authority/38,Oxfordshire County Council,Support at Home U65 Learning Disability,12/04/2022,5690,,3111159038,658.71,The Ice Centre
http://statistics.data.gov.uk/id/local-authority/38,Oxfordshire County Council,Support at Home U65 Autism /Abated,12/04/2022,5690,,3111159121,658.98,Turnstyle
http://statistics.data.gov.uk/id/local-authority/38,Oxfordshire County Council,Support at Home 65+ Physical Support,26/04/2022,5698,,3111167101,659.06,Acquire Care Ltd
http://statistics.data.gov.uk/id/local-authority/38,Oxfordshire County Council,Support at Home 65+ Physical Support,26/04/2022,5698,,3111167387,659.23,Day & Night Care Assistance
http://statistics.data.gov.uk/id/local-authority/38,Oxfordshire County Council,Support at Home U65 Learning Disability,14/04/2022,5696,,3111163212,659.76,Orders of St John Care Trust
http://statistics.data.gov.uk/id/local-authority/38,Oxfordshire County Council,SEN Alternative Provision,26/04/2022,4861,Hired and Contracted Services,2200980518,660.00,Animal Antiks
http://statistics.data.gov.uk/id/local-authority/38,Oxfordshire County Council,Swindon Adoption Support Fund,05/04/2022,4861,Hired and Contracted Services,2200975884,660.00,Integrate Families
http://statistics.data.gov.uk/id/local-authority/38,Oxfordshire County Council,Support at Home 65+ Other /Soc Isolation,11/04/2022,5899,Social Care - Direct Payments,3111156169,660.00,Personal Redacted Data
http://statistics.data.gov.uk/id/local-authority/38,Oxfordshire County Council,Youth Justice & Exploitation,11/04/2022,5227,Other Transport Arrangements,3111158025,660.00,Oxon Transport Services Ltd
http://statistics.data.gov.uk/id/local-authority/38,Oxfordshire County Council,Bracknell Adoption Support Fund,20/04/2022,4861,Hired and Contracted Services,2200979426,660.00,Partnership Projects
http://statistics.data.gov.uk/id/local-authority/38,Oxfordshire County Council,L&D CORE PROGRAMME,07/04/2022,3100,Educational and Vocational Training,2200977186,660.00,Premier Partnership
http://statistics.data.gov.uk/id/local-authority/38,Oxfordshire County Council,Support at Home 65+ Physical Support,26/04/2022,5689,,3111167140,660.82,Care Outlook Ltd
http://statistics.data.gov.uk/id/local-authority/38,Oxfordshire County Council,CONTRACT MANAGEMENT,27/04/2022,4001,Uniform Business Rates,3500083198,661.00,Cherwell District Council
http://statistics.data.gov.uk/id/local-authority/38,Oxfordshire County Council,LANDLORD & TENANT,27/04/2022,4001,Uniform Business Rates,3500083335,661.00,Vale of White Horse District Counci
http://statistics.data.gov.uk/id/local-authority/38,Oxfordshire County Council,Support at Home 65+ Memory & Cognition,26/04/2022,5696,,3111166665,661.03,All Care GB Ltd
http://statistics.data.gov.uk/id/local-authority/38,Oxfordshire County Council,Catering Management Soft FM,12/04/2022,4477,Catering Equipment,2200978675,661.05,BRAKES CATERING EQUIPMENT
http://statistics.data.gov.uk/id/local-authority/38,Oxfordshire County Council,Support at Home U65 Learning Disability,12/04/2022,5690,,3111159247,661.20,Style Acre
http://statistics.data.gov.uk/id/local-authority/38,Oxfordshire County Council,Support at Home 65+ Physical Support,29/04/2022,5693,,3111168789,661.22,Pioneering Care Bicester Limited
http://statistics.data.gov.uk/id/local-authority/38,Oxfordshire County Council,MAINSTREAM-PRIMARY,13/04/2022,4330,Transport to School Activities,3111163040,661.25,24/7 LTD
http://statistics.data.gov.uk/id/local-authority/38,Oxfordshire County Council,MAINSTREAM-SECONDARY,13/04/2022,4330,Transport to School Activities,3111163041,661.25,24/7 LTD
http://statistics.data.gov.uk/id/local-authority/38,Oxfordshire County Council,Support at Home U65 Learning Disability,22/04/2022,5693,,3111165102,661.32,Autism at Kingwood Limited
http://statistics.data.gov.uk/id/local-authority/38,Oxfordshire County Council,Support at Home U65 Learning Disability,22/04/2022,5693,,3111165103,661.32,Autism at Kingwood Limited
http://statistics.data.gov.uk/id/local-authority/38,Oxfordshire County Council,Support at Home U65 Learning Disability,22/04/2022,5693,,3111165104,661.32,Autism at Kingwood Limited
http://statistics.data.gov.uk/id/local-authority/38,Oxfordshire County Council,Support at Home U65 Learning Disability,22/04/2022,5693,,3111165105,661.32,Autism at Kingwood Limited
http://statistics.data.gov.uk/id/local-authority/38,Oxfordshire County Council,Support at Home U65 Learning Disability,22/04/2022,5693,,3111165106,661.32,Autism at Kingwood Limited
http://statistics.data.gov.uk/id/local-authority/38,Oxfordshire County Council,Support at Home U65 Learning Disability,22/04/2022,5693,,3111165107,661.32,Autism at Kingwood Limited
http://statistics.data.gov.uk/id/local-authority/38,Oxfordshire County Council,Support at Home U65 Learning Disability,22/04/2022,5693,,3111165108,661.32,Autism at Kingwood Limited
http://statistics.data.gov.uk/id/local-authority/38,Oxfordshire County Council,Support at Home U65 Learning Disability,22/04/2022,5693,,3111165109,661.32,Autism at Kingwood Limited
http://statistics.data.gov.uk/id/local-authority/38,Oxfordshire County Council,Support at Home U65 Learning Disability,22/04/2022,5693,,3111165110,661.32,Autism at Kingwood Limited
http://statistics.data.gov.uk/id/local-authority/38,Oxfordshire County Council,Support at Home U65 Learning Disability,22/04/2022,5693,,3111165111,661.32,Autism at Kingwood Limited
http://statistics.data.gov.uk/id/local-authority/38,Oxfordshire County Council,Support at Home U65 Learning Disability,22/04/2022,5693,,3111165112,661.32,Autism at Kingwood Limited
http://statistics.data.gov.uk/id/local-authority/38,Oxfordshire County Council,Support at Home U65 Learning Disability,22/04/2022,5693,,3111165113,661.32,Autism at Kingwood Limited
http://statistics.data.gov.uk/id/local-authority/38,Oxfordshire County Council,Support at Home U65 Learning Disability,22/04/2022,5693,,3111165114,661.32,Autism at Kingwood Limited
http://statistics.data.gov.uk/id/local-authority/38,Oxfordshire County Council,Support at Home U65 Learning Disability,22/04/2022,5693,,3111165115,661.32,Autism at Kingwood Limited
http://statistics.data.gov.uk/id/local-authority/38,Oxfordshire County Council,Support at Home U65 Learning Disability,22/04/2022,5693,,3111165116,661.32,Autism at Kingwood Limited
http://statistics.data.gov.uk/id/local-authority/38,Oxfordshire County Council,Support at Home U65 Learning Disability,22/04/2022,5693,,3111165117,661.32,Autism at Kingwood Limited
http://statistics.data.gov.uk/id/local-authority/38,Oxfordshire County Council,Support at Home U65 Learning Disability,22/04/2022,5693,,3111165118,661.32,Autism at Kingwood Limited
http://statistics.data.gov.uk/id/local-authority/38,Oxfordshire County Council,Support at Home U65 Learning Disability,22/04/2022,5693,,3111165119,661.32,Autism at Kingwood Limited
http://statistics.data.gov.uk/id/local-authority/38,Oxfordshire County Council,Support at Home U65 Learning Disability,22/04/2022,5693,,3111165120,661.32,Autism at Kingwood Limited
http://statistics.data.gov.uk/id/local-authority/38,Oxfordshire County Council,Support at Home U65 Learning Disability,22/04/2022,5693,,3111165121,661.32,Autism at Kingwood Limited
http://statistics.data.gov.uk/id/local-authority/38,Oxfordshire County Council,Support at Home U65 Learning Disability,22/04/2022,5693,,3111165122,661.32,Autism at Kingwood Limited
http://statistics.data.gov.uk/id/local-authority/38,Oxfordshire County Council,Support at Home U65 Learning Disability,22/04/2022,5693,,3111165123,661.32,Autism at Kingwood Limited
http://statistics.data.gov.uk/id/local-authority/38,Oxfordshire County Council,Support at Home U65 Learning Disability,22/04/2022,5693,,3111165124,661.32,Autism at Kingwood Limited
http://statistics.data.gov.uk/id/local-authority/38,Oxfordshire County Council,Support at Home U65 Learning Disability,27/04/2022,5693,,3111168244,661.32,Autism at Kingwood Limited
http://statistics.data.gov.uk/id/local-authority/38,Oxfordshire County Council,Support at Home 65+ Physical Support,11/04/2022,5899,Social Care - Direct Payments,3111157081,661.84,Purple Conversation Com In Co (DP)
http://statistics.data.gov.uk/id/local-authority/38,Oxfordshire County Council,Community Support Service Bicester,21/04/2022,2040,Agency Staff,2200979816,661.85,Completely Care Ltd
http://statistics.data.gov.uk/id/local-authority/38,Oxfordshire County Council,Support at Home U65 Mental Health,05/04/2022,5899,Social Care - Direct Payments,3111153855,662.64,Personal Redacted Data
http://statistics.data.gov.uk/id/local-authority/38,Oxfordshire County Council,CONTRACT MANAGEMENT,01/04/2022,4001,Uniform Business Rates,3500082437,662.75,Cherwell District Council
http://statistics.data.gov.uk/id/local-authority/38,Oxfordshire County Council,LANDLORD & TENANT,01/04/2022,4001,Uniform Business Rates,3500082572,662.75,Vale of White Horse District Counci
http://statistics.data.gov.uk/id/local-authority/38,Oxfordshire County Council,COUNTY PRINT FINSHRS,11/04/2022,5091,Postage and Delivery,2200978294,662.77,Whistl
http://statistics.data.gov.uk/id/local-authority/38,Oxfordshire County Council,FOSTERING MAIN,11/04/2022,5227,Other Transport Arrangements,3111156728,663.17,Personal Redacted Data
http://statistics.data.gov.uk/id/local-authority/38,Oxfordshire County Council,SHARED LIVES,11/04/2022,5555,Payments to Carers,3111157447,663.50,Personal Redacted Data
http://statistics.data.gov.uk/id/local-authority/38,Oxfordshire County Council,SHARED LIVES,11/04/2022,5555,Payments to Carers,3111157505,663.50,Personal Redacted Data
http://statistics.data.gov.uk/id/local-authority/38,Oxfordshire County Council,Support at Home U65 MH OBC Contract,26/04/2022,5689,,3111167909,663.96,Response Organisation
http://statistics.data.gov.uk/id/local-authority/38,Oxfordshire County Council,Support at Home U65 HFA,12/04/2022,5690,,3111159199,664.12,Turnstyle
http://statistics.data.gov.uk/id/local-authority/38,Oxfordshire County Council,TRADING STANDARDS,06/04/2022,4861,Hired and Contracted Services,9300055293,664.45,OCC Trading Standards Bank
http://statistics.data.gov.uk/id/local-authority/38,Oxfordshire County Council,Support at Home U65 Learning Disability,11/04/2022,5899,Social Care - Direct Payments,3111157175,664.52,Purple Conversation Com In Co (DP)
http://statistics.data.gov.uk/id/local-authority/38,Oxfordshire County Council,Support at Home 65+ Sensory Support,26/04/2022,5698,,3111167499,664.87,KCARE NURSING AGENCY
http://statistics.data.gov.uk/id/local-authority/38,Oxfordshire County Council,SAMUELSON HOUSE,25/04/2022,4470,Hire of Equipment,2200980218,665.00,COOLERAID LTD
http://statistics.data.gov.uk/id/local-authority/38,Oxfordshire County Council,Support at Home U65 Learning Disability,11/04/2022,5227,Other Transport Arrangements,3111158038,665.00,Oxon Transport Services Ltd
http://statistics.data.gov.uk/id/local-authority/38,Oxfordshire County Council,Support at Home 65+ Physical Support,26/04/2022,5689,,3111167644,665.19,Home Helpers Care Ltd
http://statistics.data.gov.uk/id/local-authority/38,Oxfordshire County Council,Support at Home 65+ Physical Support,08/04/2022,5693,,3111155112,665.28,ANCO CARE SERVICES LTD
http://statistics.data.gov.uk/id/local-authority/38,Oxfordshire County Council,Family Solutions Plus Non-staff - South,01/04/2022,3942,Hire of Accommodation and Facilities,2200975496,665.30,AG Family Support Limited
http://statistics.data.gov.uk/id/local-authority/38,Oxfordshire County Council,Support at Home 65+ Physical Support,27/04/2022,5693,,3111168235,665.56,GET CARE LIMITED
http://statistics.data.gov.uk/id/local-authority/38,Oxfordshire County Council,Support at Home 65+ Memory & Cognition,11/04/2022,5899,Social Care - Direct Payments,3111155886,665.56,Personal Redacted Data
http://statistics.data.gov.uk/id/local-authority/38,Oxfordshire County Council,Support at Home 65+ Physical Support,27/04/2022,5693,,3111168251,665.56,Kwikfix Recruitment Services Ltd
http://statistics.data.gov.uk/id/local-authority/38,Oxfordshire County Council,Support at Home 65+ Memory & Cognition,01/04/2022,5693,,3111153595,665.84,CaringPlus Healthcare Services Ltd
http://statistics.data.gov.uk/id/local-authority/38,Oxfordshire County Council,Support at Home 65+ Physical Support,01/04/2022,5693,,3111153596,665.84,CaringPlus Healthcare Services Ltd
http://statistics.data.gov.uk/id/local-authority/38,Oxfordshire County Council,Support at Home 65+ Mental Health,22/04/2022,5693,,3111165087,665.84,Genuine Carers Ltd
http://statistics.data.gov.uk/id/local-authority/38,Oxfordshire County Council,FOSTERING MAIN,19/04/2022,5548,B*Fostering - Special Rates & Plus Amou,3111163874,666.29,Personal Redacted Data
http://statistics.data.gov.uk/id/local-authority/38,Oxfordshire County Council,Support at Home 65+ Physical Support,26/04/2022,5696,,3111166724,666.90,All Care GB Ltd
http://statistics.data.gov.uk/id/local-authority/38,Oxfordshire County Council,SEN TRANSPORT,11/04/2022,5227,Other Transport Arrangements,3111157757,667.00,Crown Cabs Travel Ltd
http://statistics.data.gov.uk/id/local-authority/38,Oxfordshire County Council,SEN TRANSPORT,11/04/2022,5227,Other Transport Arrangements,3111157769,667.00,Crown Cabs Travel Ltd
http://statistics.data.gov.uk/id/local-authority/38,Oxfordshire County Council,SEN TRANSPORT,11/04/2022,5227,Other Transport Arrangements,3111157780,667.00,Crown Cabs Travel Ltd
http://statistics.data.gov.uk/id/local-authority/38,Oxfordshire County Council,Support at Home 65+ Mental Health,11/04/2022,5899,Social Care - Direct Payments,3111157331,667.08,Purple Conversation Com In Co (DP)
http://statistics.data.gov.uk/id/local-authority/38,Oxfordshire County Council,Support at Home 65+ Physical Support,26/04/2022,5689,,3111167846,667.16,Premier Personal Care
http://statistics.data.gov.uk/id/local-authority/38,Oxfordshire County Council,CAP CHRGES-PRIM SCHS,29/04/2022,8102,Payments to main contractor,2200982489,667.50,Heaton Design and Engineering Ltd
http://statistics.data.gov.uk/id/local-authority/38,Oxfordshire County Council,Support at Home U65 Learning Disability,12/04/2022,5690,,3111158442,667.54,Autism at Kingwood Limited
http://statistics.data.gov.uk/id/local-authority/38,Oxfordshire County Council,Support at Home 65+ Physical Support,26/04/2022,5689,,3111167362,667.74,Oxfordshire Crossroads
http://statistics.data.gov.uk/id/local-authority/38,Oxfordshire County Council,Unregulated Placements,26/04/2022,4940,Other Services,2200980763,667.76,THORNBURY NURSING SERVICES
http://statistics.data.gov.uk/id/local-authority/38,Oxfordshire County Council,Support at Home U65 Learning Disability,11/04/2022,5899,Social Care - Direct Payments,3111155848,667.88,Personal Redacted Data
http://statistics.data.gov.uk/id/local-authority/38,Oxfordshire County Council,TRO TEAM,22/04/2022,4790,"Publicity, Promotions and Advertisement",2200979866,668.61,Tmp (Uk) Ltd
http://statistics.data.gov.uk/id/local-authority/38,Oxfordshire County Council,Support at Home 65+ Physical Support,26/04/2022,5699,,3111166606,668.96,Care Hearted Ltd
http://statistics.data.gov.uk/id/local-authority/38,Oxfordshire County Council,FOSTERING MAIN,26/04/2022,7190,Other Recovered Costs,3111166150,669.14,Personal Redacted Data
http://statistics.data.gov.uk/id/local-authority/38,Oxfordshire County Council,Support at Home 65+ Mental Health,14/04/2022,5696,,3111163179,669.50,Orders of St John Care Trust
http://statistics.data.gov.uk/id/local-authority/38,Oxfordshire County Council,Support at Home U65 Physical Support,26/04/2022,5696,,3111166683,669.53,All Care GB Ltd
http://statistics.data.gov.uk/id/local-authority/38,Oxfordshire County Council,Support at Home U65 Memory & Cognition,11/04/2022,5899,Social Care - Direct Payments,3111157359,670.28,Purple Conversation Com In Co (DP)
http://statistics.data.gov.uk/id/local-authority/38,Oxfordshire County Council,LANDLORD & TENANT,14/04/2022,3980,Service Charges - Premises,2200979075,670.56,Cherwell DC
http://statistics.data.gov.uk/id/local-authority/38,Oxfordshire County Council,Support at Home 65+ Physical Support,26/04/2022,5689,,3111167146,670.72,Care Outlook Ltd
http://statistics.data.gov.uk/id/local-authority/38,Oxfordshire County Council,Support at Home 65+ Physical Support,27/04/2022,5693,,3111168313,670.94,SureCare Oxfordshire
http://statistics.data.gov.uk/id/local-authority/38,Oxfordshire County Council,Support at Home 65+ Physical Support,26/04/2022,5699,,3111166747,670.97,Greigcare Home Service
http://statistics.data.gov.uk/id/local-authority/38,Oxfordshire County Council,Swindon Adoption Support Fund,25/04/2022,6500,Government Grants (Revenue),3111165211,671.68,OCC One Time Vendor
http://statistics.data.gov.uk/id/local-authority/38,Oxfordshire County Council,Support at Home U65 Mental Health,20/04/2022,5693,,3111164598,672.00,JMC Care Solutions Limited
http://statistics.data.gov.uk/id/local-authority/38,Oxfordshire County Council,Culture CPD Budget,27/04/2022,3103,Other Training Courses and Qualification,2200981009,672.00,St John Ambulance
http://statistics.data.gov.uk/id/local-authority/38,Oxfordshire County Council,Reading Adoption Support Fund,04/04/2022,4861,Hired and Contracted Services,2200975397,672.50,The Cherrycroft Practice Limited
http://statistics.data.gov.uk/id/local-authority/38,Oxfordshire County Council,Support at Home U65 Learning Disability,12/04/2022,5688,,3111159218,673.33,The Brandon Trust
http://statistics.data.gov.uk/id/local-authority/38,Oxfordshire County Council,Support at Home U65 Memory & Cognition,11/04/2022,5899,Social Care - Direct Payments,3111157101,674.40,Purple Conversation Com In Co (DP)
http://statistics.data.gov.uk/id/local-authority/38,Oxfordshire County Council,Unregulated Placements,26/04/2022,4940,Other Services,2200980558,674.92,THORNBURY NURSING SERVICES
http://statistics.data.gov.uk/id/local-authority/38,Oxfordshire County Council,Unregulated Placements,26/04/2022,4940,Other Services,2200980565,674.92,THORNBURY NURSING SERVICES
http://statistics.data.gov.uk/id/local-authority/38,Oxfordshire County Council,Unregulated Placements,26/04/2022,4940,Other Services,2200980567,674.92,THORNBURY NURSING SERVICES
http://statistics.data.gov.uk/id/local-authority/38,Oxfordshire County Council,Support at Home U65 Physical Support,11/04/2022,5899,Social Care - Direct Payments,3111157265,674.96,Purple Conversation Com In Co (DP)
http://statistics.data.gov.uk/id/local-authority/38,Oxfordshire County Council,Support at Home U65 Learning Disability,11/04/2022,5227,Other Transport Arrangements,3111157522,675.00,Ambassador cars
http://statistics.data.gov.uk/id/local-authority/38,Oxfordshire County Council,POST 16 SEN,14/04/2022,4330,Transport to School Activities,3111163318,675.00,ART FM
http://statistics.data.gov.uk/id/local-authority/38,Oxfordshire County Council,CAP CHRGES-PRIM SCHS,13/04/2022,8102,Payments to main contractor,2200978857,675.00,Fraser Walker Associates Ltd.
http://statistics.data.gov.uk/id/local-authority/38,Oxfordshire County Council,Planned Maintenance,14/04/2022,3787,Premises Repairs,2200979115,675.00,Fraser Walker Associates Ltd.
http://statistics.data.gov.uk/id/local-authority/38,Oxfordshire County Council,LEGAL SERVICES,01/04/2022,5251,Legal Costs,2200974732,675.00,James Dove
http://statistics.data.gov.uk/id/local-authority/38,Oxfordshire County Council,Planned Maintenance,20/04/2022,5526,Payments to Private Contractors,2200979626,675.00,Jenks Oxford Ltd
http://statistics.data.gov.uk/id/local-authority/38,Oxfordshire County Council,Community Support Service Oxford,12/04/2022,5227,Other Transport Arrangements,3111158339,675.00,Lightway Services Ltd
http://statistics.data.gov.uk/id/local-authority/38,Oxfordshire County Council,LEGAL SERVICES,12/04/2022,5251,Legal Costs,2200978566,675.00,Miss Chloe Wilkins
http://statistics.data.gov.uk/id/local-authority/38,Oxfordshire County Council,LEGAL SERVICES,28/04/2022,5251,Legal Costs,2200981820,675.00,Mr J Turner
http://statistics.data.gov.uk/id/local-authority/38,Oxfordshire County Council,LEGAL SERVICES,01/04/2022,5251,Legal Costs,2200978643,675.00,Ms K M Styles
http://statistics.data.gov.uk/id/local-authority/38,Oxfordshire County Council,LEGAL SERVICES,22/04/2022,5251,Legal Costs,2200980038,675.00,Ms Sian Cox
http://statistics.data.gov.uk/id/local-authority/38,Oxfordshire County Council,COMMUNITY & ROAD SAFETY,06/04/2022,3103,Other Training Courses and Qualification,2200976041,675.00,Outspoken Training LLP
http://statistics.data.gov.uk/id/local-authority/38,Oxfordshire County Council,Planned Maintenance,21/04/2022,3787,Premises Repairs,2200979754,675.00,SH Carpentry & Construction LTD
http://statistics.data.gov.uk/id/local-authority/38,Oxfordshire County Council,LEGAL SERVICES,01/04/2022,5251,Legal Costs,2200980036,675.00,Personal Redacted Data
http://statistics.data.gov.uk/id/local-authority/38,Oxfordshire County Council,LEGAL SERVICES,01/04/2022,5251,Legal Costs,2200981810,675.00,Personal Redacted Data
http://statistics.data.gov.uk/id/local-authority/38,Oxfordshire County Council,LEGAL SERVICES,28/04/2022,5251,Legal Costs,2200981643,675.00,Personal Redacted Data
http://statistics.data.gov.uk/id/local-authority/38,Oxfordshire County Council,Family Solutions Plus Non-staff - North,22/04/2022,5227,Other Transport Arrangements,3111165361,675.00,The Oxfordshire Taxi Company Ltd T/
http://statistics.data.gov.uk/id/local-authority/38,Oxfordshire County Council,LAC PUPIL PREMIUM,26/04/2022,5537,Payments to Other Establishments,3111168000,675.00,The Vale Academy Trust
http://statistics.data.gov.uk/id/local-authority/38,Oxfordshire County Council,Support at Home 65+ Physical Support,01/04/2022,5689,,3111153663,675.41,OCC One Time Vendor
http://statistics.data.gov.uk/id/local-authority/38,Oxfordshire County Council,Support at Home 65+ Physical Support,26/04/2022,5698,,3111167630,675.51,Oxford Private Care
http://statistics.data.gov.uk/id/local-authority/38,Oxfordshire County Council,Contingency Home Care,26/04/2022,5689,,3111167779,675.95,Oxford University Hospitals NHS FT
http://statistics.data.gov.uk/id/local-authority/38,Oxfordshire County Council,Support at Home U65 Physical Support,11/04/2022,5899,Social Care - Direct Payments,3111155880,676.00,Personal Redacted Data
http://statistics.data.gov.uk/id/local-authority/38,Oxfordshire County Council,Support at Home U65 Learning Disability,11/04/2022,5899,Social Care - Direct Payments,3111156620,676.60,Purple Conversation Com In Co (DP)
http://statistics.data.gov.uk/id/local-authority/38,Oxfordshire County Council,,04/04/2022,1531,Cash Allocation Control Account,3111158154,676.80,Personal Redacted Data
http://statistics.data.gov.uk/id/local-authority/38,Oxfordshire County Council,Support at Home U65 Memory & Cognition,11/04/2022,5899,Social Care - Direct Payments,3111157096,677.28,Purple Conversation Com In Co (DP)
http://statistics.data.gov.uk/id/local-authority/38,Oxfordshire County Council,Unregulated Placements,26/04/2022,4940,Other Services,2200980583,677.72,THORNBURY NURSING SERVICES
http://statistics.data.gov.uk/id/local-authority/38,Oxfordshire County Council,Support at Home 65+ Physical Support,11/04/2022,5899,Social Care - Direct Payments,3111156998,677.80,Purple Conversation Com In Co (DP)
http://statistics.data.gov.uk/id/local-authority/38,Oxfordshire County Council,LEGAL BUDGET,04/04/2022,5251,Legal Costs,2200974996,677.84,Expert Court Reports Ltd
http://statistics.data.gov.uk/id/local-authority/38,Oxfordshire County Council,Care Homes - Over 65 Physical Sypport,12/04/2022,5686,,3111162173,678.00,Orders of St John
http://statistics.data.gov.uk/id/local-authority/38,Oxfordshire County Council,Support at Home 65+ Physical Support,26/04/2022,5689,,3111167851,678.38,Premier Personal Care
http://statistics.data.gov.uk/id/local-authority/38,Oxfordshire County Council,Support at Home U65 Learning Disability,12/04/2022,5690,,3111159211,678.69,Turnstyle
http://statistics.data.gov.uk/id/local-authority/38,Oxfordshire County Council,PROCUREMENT,26/04/2022,4232,Vehicle Fuel,2200980708,679.15,Certas Energy UK Ltd
http://statistics.data.gov.uk/id/local-authority/38,Oxfordshire County Council,Support at Home U65 Other /Soc Isolation,12/04/2022,5690,,3111159159,679.55,Turnstyle
http://statistics.data.gov.uk/id/local-authority/38,Oxfordshire County Council,Support at Home 65+ Physical Support,26/04/2022,5698,,3111167205,679.83,Bridges Home Care Ltd
http://statistics.data.gov.uk/id/local-authority/38,Oxfordshire County Council,Support at Home U65 HFA,11/04/2022,5899,Social Care - Direct Payments,3111156487,679.88,Purple Conversation Com In Co (DP)
http://statistics.data.gov.uk/id/local-authority/38,Oxfordshire County Council,Support at Home U65 Learning Disability,11/04/2022,5899,Social Care - Direct Payments,3111155749,680.00,Personal Redacted Data
http://statistics.data.gov.uk/id/local-authority/38,Oxfordshire County Council,Family Solutions Plus Non-staff - South,12/04/2022,5227,Other Transport Arrangements,2200978663,680.00,SMOOTH CABS LIMITED
http://statistics.data.gov.uk/id/local-authority/38,Oxfordshire County Council,TREE MAINT OPS,22/04/2022,5526,Payments to Private Contractors,2200979854,680.00,South Bucks Tree Surgeons
http://statistics.data.gov.uk/id/local-authority/38,Oxfordshire County Council,Family Solutions Plus Non-staff - South,22/04/2022,5227,Other Transport Arrangements,3111165334,680.00,The Oxfordshire Taxi Company Ltd T/
http://statistics.data.gov.uk/id/local-authority/38,Oxfordshire County Council,Support at Home 65+ Memory & Cognition,13/04/2022,5693,,3111162953,680.40,Direct Link Care Ltd
http://statistics.data.gov.uk/id/local-authority/38,Oxfordshire County Council,Support at Home U65 HFA,13/04/2022,5693,,3111162960,680.40,Direct Link Care Ltd
http://statistics.data.gov.uk/id/local-authority/38,Oxfordshire County Council,Support at Home 65+ Physical Support,13/04/2022,5693,,3111162962,680.40,Direct Link Care Ltd
http://statistics.data.gov.uk/id/local-authority/38,Oxfordshire County Council,Support at Home 65+ Memory & Cognition,12/04/2022,5686,,3111162599,680.57,Orders of St John
http://statistics.data.gov.uk/id/local-authority/38,Oxfordshire County Council,COMM DRAWDOWN FUNDNG,01/04/2022,8004,Design Consultant,2200974634,680.58,AECOM Infrastructure & Environment
http://statistics.data.gov.uk/id/local-authority/38,Oxfordshire County Council,Support at Home U65 Learning Disability,12/04/2022,5688,,3111158502,680.91,ADVANCE HOUSING & SUPPORT LTD
http://statistics.data.gov.uk/id/local-authority/38,Oxfordshire County Council,Support at Home 65+ Learning Disability,12/04/2022,5688,,3111158504,680.91,ADVANCE HOUSING & SUPPORT LTD
http://statistics.data.gov.uk/id/local-authority/38,Oxfordshire County Council,Support at Home 65+ Learning Disability,12/04/2022,5688,,3111158709,680.91,Mencap Contracts
